Workbook

Sheet Retirement Worksheet
A1: RETIREMENT WORKSHEET | D1: Retirement Savings Requirement Graph
A2: DIRECTIONS: 1) Enter assumptions, 2) click 'Enter'->
A4: Assumptions
A5: Life expectancy (# years old) | B5: 90
A6: Retirement age (# years old) | B6: 65
A7: Total Savings at Retirement Age ($) | B7: 3000000
A8: Annual retirement savings withdrawal rate (%) | B8: 0.04
A9: Federal Tax rate in retirement (%) | B9: 0.25
A10: State Tax rate in retirement (%) | B10: 0.06
A11: Annual investment fees (%) | B11: 0.0025
A12: Annual Social Security benfit at Retirement ($) | B12: 30000
A13: Annual Military Pension at Retirement Age ($) | B13: 70000
A14: Annual expenses ($) | B14: 150000
A15: Annual inflation rate and income increases (%) | B15: 0.02
A16: Annual return on investments (%) | B16: 0.05
C18: Chart Detail
D20: Investments | H20: Income | L20: Taxes | O20: Expenses
C22: ='Retirement Calculations'!A2 -> Age | D22: Savings Balance | E22: ='Retirement Calculations'!C2 -> Investment Fees | F22: ='Retirement Calculations'!D2 -> Return on Investments | G22: ='Retirement Calculations'!E2 -> Net Investments | H22: ='Retirement Calculations'!G2 -> Annual Withdrawal | I22: ='Retirement Calculations'!H2 -> Pension | J22: ='Retirement Calculations'!I2 -> SSA | K22: Annual Income | L22: ='Retirement Calculations'!L2 -> Federal Income Taxes | M22: ='Retirement Calculations'!M2 -> State Income Taxes | N22: ='Retirement Calculations'!O2 -> Income-Taxes | O22: ='Retirement Calculations'!P2 -> Annual Expenses | P22: ='Retirement Calculations'!Q2 -> Net Income
C23: =IFERROR('Retirement Calculations'!A3,"") -> 65 | D23: =IFERROR('Retirement Calculations'!B3,"") -> 3000000 | E23: =IFERROR('Retirement Calculations'!C3,"") -> 7500 | F23: =IFERROR('Retirement Calculations'!D3,"") -> 150000 | G23: =IFERROR('Retirement Calculations'!E3,"") -> 3142500 | H23: =IFERROR('Retirement Calculations'!G3,"") -> 120000 | I23: =IFERROR('Retirement Calculations'!H3,"") -> 70000 | J23: =IFERROR('Retirement Calculations'!I3,"") -> 30000 | K23: =IFERROR('Retirement Calculations'!J3,"") -> 220000 | L23: =IFERROR('Retirement Calculations'!L3,"") -> 55000 | M23: =IFERROR('Retirement Calculations'!M3,"") -> 13200 | N23: =IFERROR('Retirement Calculations'!O3,"") -> 151800 | O23: =IFERROR('Retirement Calculations'!P3,"") -> 150000 | P23: =IFERROR('Retirement Calculations'!Q3,"") -> 1800
C24: =IFERROR('Retirement Calculations'!A4,"") -> 66 | D24: =IFERROR('Retirement Calculations'!B4,"") -> 3024300 | E24: =IFERROR('Retirement Calculations'!C4,"") -> 7560.75 | F24: =IFERROR('Retirement Calculations'!D4,"") -> 151215 | G24: =IFERROR('Retirement Calculations'!E4,"") -> 3167954.25 | H24: =IFERROR('Retirement Calculations'!G4,"") -> 120972 | I24: =IFERROR('Retirement Calculations'!H4,"") -> 71400 | J24: =IFERROR('Retirement Calculations'!I4,"") -> 30600 | K24: =IFERROR('Retirement Calculations'!J4,"") -> 222972 | L24: =IFERROR('Retirement Calculations'!L4,"") -> 55743 | M24: =IFERROR('Retirement Calculations'!M4,"") -> 13378.32 | N24: =IFERROR('Retirement Calculations'!O4,"") -> 153850.68 | O24: =IFERROR('Retirement Calculations'!P4,"") -> 153000 | P24: =IFERROR('Retirement Calculations'!Q4,"") -> 850.68
C25: =IFERROR('Retirement Calculations'!A5,"") -> 67 | D25: =IFERROR('Retirement Calculations'!B5,"") -> 3047832.93 | E25: =IFERROR('Retirement Calculations'!C5,"") -> 7619.582325 | F25: =IFERROR('Retirement Calculations'!D5,"") -> 152391.6465 | G25: =IFERROR('Retirement Calculations'!E5,"") -> 3192604.994 | H25: =IFERROR('Retirement Calculations'!G5,"") -> 121913.3172 | I25: =IFERROR('Retirement Calculations'!H5,"") -> 72828 | J25: =IFERROR('Retirement Calculations'!I5,"") -> 31212 | K25: =IFERROR('Retirement Calculations'!J5,"") -> 225953.3172 | L25: =IFERROR('Retirement Calculations'!L5,"") -> 56488.3293 | M25: =IFERROR('Retirement Calculations'!M5,"") -> 13557.19903 | N25: =IFERROR('Retirement Calculations'!O5,"") -> 155907.7889 | O25: =IFERROR('Retirement Calculations'!P5,"") -> 156060 | P25: =IFERROR('Retirement Calculations'!Q5,"") -> -152.211132
C26: =IFERROR('Retirement Calculations'!A6,"") -> 68 | D26: =IFERROR('Retirement Calculations'!B6,"") -> 3070539.466 | E26: =IFERROR('Retirement Calculations'!C6,"") -> 7676.348665 | F26: =IFERROR('Retirement Calculations'!D6,"") -> 153526.9733 | G26: =IFERROR('Retirement Calculations'!E6,"") -> 3216390.09 | H26: =IFERROR('Retirement Calculations'!G6,"") -> 122821.5786 | I26: =IFERROR('Retirement Calculations'!H6,"") -> 74284.56 | J26: =IFERROR('Retirement Calculations'!I6,"") -> 31836.24 | K26: =IFERROR('Retirement Calculations'!J6,"") -> 228942.3786 | L26: =IFERROR('Retirement Calculations'!L6,"") -> 57235.59466 | M26: =IFERROR('Retirement Calculations'!M6,"") -> 13736.54272 | N26: =IFERROR('Retirement Calculations'!O6,"") -> 157970.2413 | O26: =IFERROR('Retirement Calculations'!P6,"") -> 159181.2 | P26: =IFERROR('Retirement Calculations'!Q6,"") -> -1210.958743
C27: =IFERROR('Retirement Calculations'!A7,"") -> 69 | D27: =IFERROR('Retirement Calculations'!B7,"") -> 3092357.553 | E27: =IFERROR('Retirement Calculations'!C7,"") -> 7730.893883 | F27: =IFERROR('Retirement Calculations'!D7,"") -> 154617.8777 | G27: =IFERROR('Retirement Calculations'!E7,"") -> 3239244.537 | H27: =IFERROR('Retirement Calculations'!G7,"") -> 123694.3021 | I27: =IFERROR('Retirement Calculations'!H7,"") -> 75770.2512 | J27: =IFERROR('Retirement Calculations'!I7,"") -> 32472.9648 | K27: =IFERROR('Retirement Calculations'!J7,"") -> 231937.5181 | L27: =IFERROR('Retirement Calculations'!L7,"") -> 57984.37953 | M27: =IFERROR('Retirement Calculations'!M7,"") -> 13916.25109 | N27: =IFERROR('Retirement Calculations'!O7,"") -> 160036.8875 | O27: =IFERROR('Retirement Calculations'!P7,"") -> 162364.824 | P27: =IFERROR('Retirement Calculations'!Q7,"") -> -2327.936495
C28: =IFERROR('Retirement Calculations'!A8,"") -> 70 | D28: =IFERROR('Retirement Calculations'!B8,"") -> 3113222.298 | E28: =IFERROR('Retirement Calculations'!C8,"") -> 7783.055746 | F28: =IFERROR('Retirement Calculations'!D8,"") -> 155661.1149 | G28: =IFERROR('Retirement Calculations'!E8,"") -> 3261100.357 | H28: =IFERROR('Retirement Calculations'!G8,"") -> 124528.8919 | I28: =IFERROR('Retirement Calculations'!H8,"") -> 77285.65622 | J28: =IFERROR('Retirement Calculations'!I8,"") -> 33122.4241 | K28: =IFERROR('Retirement Calculations'!J8,"") -> 234936.9722 | L28: =IFERROR('Retirement Calculations'!L8,"") -> 58734.24306 | M28: =IFERROR('Retirement Calculations'!M8,"") -> 14096.21833 | N28: =IFERROR('Retirement Calculations'!O8,"") -> 162106.5109 | O28: =IFERROR('Retirement Calculations'!P8,"") -> 165612.1205 | P28: =IFERROR('Retirement Calculations'!Q8,"") -> -3505.609628
C29: =IFERROR('Retirement Calculations'!A9,"") -> 71 | D29: =IFERROR('Retirement Calculations'!B9,"") -> 3133065.856 | E29: =IFERROR('Retirement Calculations'!C9,"") -> 7832.66464 | F29: =IFERROR('Retirement Calculations'!D9,"") -> 156653.2928 | G29: =IFERROR('Retirement Calculations'!E9,"") -> 3281886.484 | H29: =IFERROR('Retirement Calculations'!G9,"") -> 125322.6342 | I29: =IFERROR('Retirement Calculations'!H9,"") -> 78831.36935 | J29: =IFERROR('Retirement Calculations'!I9,"") -> 33784.87258 | K29: =IFERROR('Retirement Calculations'!J9,"") -> 237938.8762 | L29: =IFERROR('Retirement Calculations'!L9,"") -> 59484.71904 | M29: =IFERROR('Retirement Calculations'!M9,"") -> 14276.33257 | N29: =IFERROR('Retirement Calculations'!O9,"") -> 164177.8246 | O29: =IFERROR('Retirement Calculations'!P9,"") -> 168924.3629 | P29: =IFERROR('Retirement Calculations'!Q9,"") -> -4746.538339
C30: =IFERROR('Retirement Calculations'!A10,"") -> 72 | D30: =IFERROR('Retirement Calculations'!B10,"") -> 3151817.311 | E30: =IFERROR('Retirement Calculations'!C10,"") -> 7879.543279 | F30: =IFERROR('Retirement Calculations'!D10,"") -> 157590.8656 | G30: =IFERROR('Retirement Calculations'!E10,"") -> 3301528.634 | H30: =IFERROR('Retirement Calculations'!G10,"") -> 126072.6925 | I30: =IFERROR('Retirement Calculations'!H10,"") -> 80407.99674 | J30: =IFERROR('Retirement Calculations'!I10,"") -> 34460.57003 | K30: =IFERROR('Retirement Calculations'!J10,"") -> 240941.2592 | L30: =IFERROR('Retirement Calculations'!L10,"") -> 60235.31481 | M30: =IFERROR('Retirement Calculations'!M10,"") -> 14456.47555 | N30: =IFERROR('Retirement Calculations'!O10,"") -> 166249.4689 | O30: =IFERROR('Retirement Calculations'!P10,"") -> 172302.8501 | P30: =IFERROR('Retirement Calculations'!Q10,"") -> -6053.381284
C31: =IFERROR('Retirement Calculations'!A11,"") -> 73 | D31: =IFERROR('Retirement Calculations'!B11,"") -> 3169402.56 | E31: =IFERROR('Retirement Calculations'!C11,"") -> 7923.5064 | F31: =IFERROR('Retirement Calculations'!D11,"") -> 158470.128 | G31: =IFERROR('Retirement Calculations'!E11,"") -> 3319949.182 | H31: =IFERROR('Retirement Calculations'!G11,"") -> 126776.1024 | I31: =IFERROR('Retirement Calculations'!H11,"") -> 82016.15667 | J31: =IFERROR('Retirement Calculations'!I11,"") -> 35149.78143 | K31: =IFERROR('Retirement Calculations'!J11,"") -> 243942.0405 | L31: =IFERROR('Retirement Calculations'!L11,"") -> 60985.51012 | M31: =IFERROR('Retirement Calculations'!M11,"") -> 14636.52243 | N31: =IFERROR('Retirement Calculations'!O11,"") -> 168320.0079 | O31: =IFERROR('Retirement Calculations'!P11,"") -> 175748.9072 | P31: =IFERROR('Retirement Calculations'!Q11,"") -> -7428.899205
C32: =IFERROR('Retirement Calculations'!A12,"") -> 74 | D32: =IFERROR('Retirement Calculations'!B12,"") -> 3185744.18 | E32: =IFERROR('Retirement Calculations'!C12,"") -> 7964.36045 | F32: =IFERROR('Retirement Calculations'!D12,"") -> 159287.209 | G32: =IFERROR('Retirement Calculations'!E12,"") -> 3337067.029 | H32: =IFERROR('Retirement Calculations'!G12,"") -> 127429.7672 | I32: =IFERROR('Retirement Calculations'!H12,"") -> 83656.4798 | J32: =IFERROR('Retirement Calculations'!I12,"") -> 35852.77706 | K32: =IFERROR('Retirement Calculations'!J12,"") -> 246939.0241 | L32: =IFERROR('Retirement Calculations'!L12,"") -> 61734.75602 | M32: =IFERROR('Retirement Calculations'!M12,"") -> 14816.34144 | N32: =IFERROR('Retirement Calculations'!O12,"") -> 170387.9266 | O32: =IFERROR('Retirement Calculations'!P12,"") -> 179263.8853 | P32: =IFERROR('Retirement Calculations'!Q12,"") -> -8875.958691
C33: =IFERROR('Retirement Calculations'!A13,"") -> 75 | D33: =IFERROR('Retirement Calculations'!B13,"") -> 3200761.303 | E33: =IFERROR('Retirement Calculations'!C13,"") -> 8001.903257 | F33: =IFERROR('Retirement Calculations'!D13,"") -> 160038.0651 | G33: =IFERROR('Retirement Calculations'!E13,"") -> 3352797.465 | H33: =IFERROR('Retirement Calculations'!G13,"") -> 128030.4521 | I33: =IFERROR('Retirement Calculations'!H13,"") -> 85329.6094 | J33: =IFERROR('Retirement Calculations'!I13,"") -> 36569.8326 | K33: =IFERROR('Retirement Calculations'!J13,"") -> 249929.8941 | L33: =IFERROR('Retirement Calculations'!L13,"") -> 62482.47353 | M33: =IFERROR('Retirement Calculations'!M13,"") -> 14995.79365 | N33: =IFERROR('Retirement Calculations'!O13,"") -> 172451.6269 | O33: =IFERROR('Retirement Calculations'!P13,"") -> 182849.163 | P33: =IFERROR('Retirement Calculations'!Q13,"") -> -10397.53607
C34: =IFERROR('Retirement Calculations'!A14,"") -> 76 | D34: =IFERROR('Retirement Calculations'!B14,"") -> 3214369.476 | E34: =IFERROR('Retirement Calculations'!C14,"") -> 8035.923691 | F34: =IFERROR('Retirement Calculations'!D14,"") -> 160718.4738 | G34: =IFERROR('Retirement Calculations'!E14,"") -> 3367052.026 | H34: =IFERROR('Retirement Calculations'!G14,"") -> 128574.7791 | I34: =IFERROR('Retirement Calculations'!H14,"") -> 87036.20159 | J34: =IFERROR('Retirement Calculations'!I14,"") -> 37301.22925 | K34: =IFERROR('Retirement Calculations'!J14,"") -> 252912.2099 | L34: =IFERROR('Retirement Calculations'!L14,"") -> 63228.05247 | M34: =IFERROR('Retirement Calculations'!M14,"") -> 15174.73259 | N34: =IFERROR('Retirement Calculations'!O14,"") -> 174509.4248 | O34: =IFERROR('Retirement Calculations'!P14,"") -> 186506.1463 | P34: =IFERROR('Retirement Calculations'!Q14,"") -> -11996.72143
C35: =IFERROR('Retirement Calculations'!A15,"") -> 77 | D35: =IFERROR('Retirement Calculations'!B15,"") -> 3226480.526 | E35: =IFERROR('Retirement Calculations'!C15,"") -> 8066.201315 | F35: =IFERROR('Retirement Calculations'!D15,"") -> 161324.0263 | G35: =IFERROR('Retirement Calculations'!E15,"") -> 3379738.351 | H35: =IFERROR('Retirement Calculations'!G15,"") -> 129059.221 | I35: =IFERROR('Retirement Calculations'!H15,"") -> 88776.92562 | J35: =IFERROR('Retirement Calculations'!I15,"") -> 38047.25384 | K35: =IFERROR('Retirement Calculations'!J15,"") -> 255883.4005 | L35: =IFERROR('Retirement Calculations'!L15,"") -> 63970.85012 | M35: =IFERROR('Retirement Calculations'!M15,"") -> 15353.00403 | N35: =IFERROR('Retirement Calculations'!O15,"") -> 176559.5463 | O35: =IFERROR('Retirement Calculations'!P15,"") -> 190236.2692 | P35: =IFERROR('Retirement Calculations'!Q15,"") -> -13676.72284
C36: =IFERROR('Retirement Calculations'!A16,"") -> 78 | D36: =IFERROR('Retirement Calculations'!B16,"") -> 3237002.407 | E36: =IFERROR('Retirement Calculations'!C16,"") -> 8092.506018 | F36: =IFERROR('Retirement Calculations'!D16,"") -> 161850.1204 | G36: =IFERROR('Retirement Calculations'!E16,"") -> 3390760.021 | H36: =IFERROR('Retirement Calculations'!G16,"") -> 129480.0963 | I36: =IFERROR('Retirement Calculations'!H16,"") -> 90552.46413 | J36: =IFERROR('Retirement Calculations'!I16,"") -> 38808.19891 | K36: =IFERROR('Retirement Calculations'!J16,"") -> 258840.7593 | L36: =IFERROR('Retirement Calculations'!L16,"") -> 64710.18983 | M36: =IFERROR('Retirement Calculations'!M16,"") -> 15530.44556 | N36: =IFERROR('Retirement Calculations'!O16,"") -> 178600.1239 | O36: =IFERROR('Retirement Calculations'!P16,"") -> 194040.9946 | P36: =IFERROR('Retirement Calculations'!Q16,"") -> -15440.87063
C37: =IFERROR('Retirement Calculations'!A17,"") -> 79 | D37: =IFERROR('Retirement Calculations'!B17,"") -> 3245839.055 | E37: =IFERROR('Retirement Calculations'!C17,"") -> 8114.597636 | F37: =IFERROR('Retirement Calculations'!D17,"") -> 162291.9527 | G37: =IFERROR('Retirement Calculations'!E17,"") -> 3400016.41 | H37: =IFERROR('Retirement Calculations'!G17,"") -> 129833.5622 | I37: =IFERROR('Retirement Calculations'!H17,"") -> 92363.51341 | J37: =IFERROR('Retirement Calculations'!I17,"") -> 39584.36289 | K37: =IFERROR('Retirement Calculations'!J17,"") -> 261781.4385 | L37: =IFERROR('Retirement Calculations'!L17,"") -> 65445.35962 | M37: =IFERROR('Retirement Calculations'!M17,"") -> 15706.88631 | N37: =IFERROR('Retirement Calculations'!O17,"") -> 180629.1926 | O37: =IFERROR('Retirement Calculations'!P17,"") -> 197921.8145 | P37: =IFERROR('Retirement Calculations'!Q17,"") -> -17292.6219
C38: =IFERROR('Retirement Calculations'!A18,"") -> 80 | D38: =IFERROR('Retirement Calculations'!B18,"") -> 3252890.226 | E38: =IFERROR('Retirement Calculations'!C18,"") -> 8132.225564 | F38: =IFERROR('Retirement Calculations'!D18,"") -> 162644.5113 | G38: =IFERROR('Retirement Calculations'!E18,"") -> 3407402.511 | H38: =IFERROR('Retirement Calculations'!G18,"") -> 130115.609 | I38: =IFERROR('Retirement Calculations'!H18,"") -> 94210.78368 | J38: =IFERROR('Retirement Calculations'!I18,"") -> 40376.05015 | K38: =IFERROR('Retirement Calculations'!J18,"") -> 264702.4429 | L38: =IFERROR('Retirement Calculations'!L18,"") -> 66175.61071 | M38: =IFERROR('Retirement Calculations'!M18,"") -> 15882.14657 | N38: =IFERROR('Retirement Calculations'!O18,"") -> 182644.6856 | O38: =IFERROR('Retirement Calculations'!P18,"") -> 201880.2507 | P38: =IFERROR('Retirement Calculations'!Q18,"") -> -19235.56518
C39: =IFERROR('Retirement Calculations'!A19,"") -> 81 | D39: =IFERROR('Retirement Calculations'!B19,"") -> 3258051.337 | E39: =IFERROR('Retirement Calculations'!C19,"") -> 8145.128343 | F39: =IFERROR('Retirement Calculations'!D19,"") -> 162902.5669 | G39: =IFERROR('Retirement Calculations'!E19,"") -> 3412808.776 | H39: =IFERROR('Retirement Calculations'!G19,"") -> 130322.0535 | I39: =IFERROR('Retirement Calculations'!H19,"") -> 96094.99936 | J39: =IFERROR('Retirement Calculations'!I19,"") -> 41183.57115 | K39: =IFERROR('Retirement Calculations'!J19,"") -> 267600.624 | L39: =IFERROR('Retirement Calculations'!L19,"") -> 66900.156 | M39: =IFERROR('Retirement Calculations'!M19,"") -> 16056.03744 | N39: =IFERROR('Retirement Calculations'!O19,"") -> 184644.4306 | O39: =IFERROR('Retirement Calculations'!P19,"") -> 205917.8558 | P39: =IFERROR('Retirement Calculations'!Q19,"") -> -21273.42521
C40: =IFERROR('Retirement Calculations'!A20,"") -> 82 | D40: =IFERROR('Retirement Calculations'!B20,"") -> 3261213.297 | E40: =IFERROR('Retirement Calculations'!C20,"") -> 8153.033242 | F40: =IFERROR('Retirement Calculations'!D20,"") -> 163060.6648 | G40: =IFERROR('Retirement Calculations'!E20,"") -> 3416120.928 | H40: =IFERROR('Retirement Calculations'!G20,"") -> 130448.5319 | I40: =IFERROR('Retirement Calculations'!H20,"") -> 98016.89934 | J40: =IFERROR('Retirement Calculations'!I20,"") -> 42007.24258 | K40: =IFERROR('Retirement Calculations'!J20,"") -> 270472.6738 | L40: =IFERROR('Retirement Calculations'!L20,"") -> 67618.16845 | M40: =IFERROR('Retirement Calculations'!M20,"") -> 16228.36043 | N40: =IFERROR('Retirement Calculations'!O20,"") -> 186626.1449 | O40: =IFERROR('Retirement Calculations'!P20,"") -> 210036.2129 | P40: =IFERROR('Retirement Calculations'!Q20,"") -> -23410.06796
C41: =IFERROR('Retirement Calculations'!A21,"") -> 83 | D41: =IFERROR('Retirement Calculations'!B21,"") -> 3262262.329 | E41: =IFERROR('Retirement Calculations'!C21,"") -> 8155.655822 | F41: =IFERROR('Retirement Calculations'!D21,"") -> 163113.1164 | G41: =IFERROR('Retirement Calculations'!E21,"") -> 3417219.789 | H41: =IFERROR('Retirement Calculations'!G21,"") -> 130490.4931 | I41: =IFERROR('Retirement Calculations'!H21,"") -> 99977.23733 | J41: =IFERROR('Retirement Calculations'!I21,"") -> 42847.38743 | K41: =IFERROR('Retirement Calculations'!J21,"") -> 273315.1179 | L41: =IFERROR('Retirement Calculations'!L21,"") -> 68328.77948 | M41: =IFERROR('Retirement Calculations'!M21,"") -> 16398.90707 | N41: =IFERROR('Retirement Calculations'!O21,"") -> 188587.4314 | O41: =IFERROR('Retirement Calculations'!P21,"") -> 214236.9371 | P41: =IFERROR('Retirement Calculations'!Q21,"") -> -25649.50578
C42: =IFERROR('Retirement Calculations'!A22,"") -> 84 | D42: =IFERROR('Retirement Calculations'!B22,"") -> 3261079.79 | E42: =IFERROR('Retirement Calculations'!C22,"") -> 8152.699476 | F42: =IFERROR('Retirement Calculations'!D22,"") -> 163053.9895 | G42: =IFERROR('Retirement Calculations'!E22,"") -> 3415981.08 | H42: =IFERROR('Retirement Calculations'!G22,"") -> 130443.1916 | I42: =IFERROR('Retirement Calculations'!H22,"") -> 101976.7821 | J42: =IFERROR('Retirement Calculations'!I22,"") -> 43704.33518 | K42: =IFERROR('Retirement Calculations'!J22,"") -> 276124.3089 | L42: =IFERROR('Retirement Calculations'!L22,"") -> 69031.07722 | M42: =IFERROR('Retirement Calculations'!M22,"") -> 16567.45853 | N42: =IFERROR('Retirement Calculations'!O22,"") -> 190525.7731 | O42: =IFERROR('Retirement Calculations'!P22,"") -> 218521.6759 | P42: =IFERROR('Retirement Calculations'!Q22,"") -> -27995.90276
C43: =IFERROR('Retirement Calculations'!A23,"") -> 85 | D43: =IFERROR('Retirement Calculations'!B23,"") -> 3257541.986 | E43: =IFERROR('Retirement Calculations'!C23,"") -> 8143.854965 | F43: =IFERROR('Retirement Calculations'!D23,"") -> 162877.0993 | G43: =IFERROR('Retirement Calculations'!E23,"") -> 3412275.23 | H43: =IFERROR('Retirement Calculations'!G23,"") -> 130301.6794 | I43: =IFERROR('Retirement Calculations'!H23,"") -> 104016.3177 | J43: =IFERROR('Retirement Calculations'!I23,"") -> 44578.42188 | K43: =IFERROR('Retirement Calculations'!J23,"") -> 278896.419 | L43: =IFERROR('Retirement Calculations'!L23,"") -> 69724.10476 | M43: =IFERROR('Retirement Calculations'!M23,"") -> 16733.78514 | N43: =IFERROR('Retirement Calculations'!O23,"") -> 192438.5291 | O43: =IFERROR('Retirement Calculations'!P23,"") -> 222892.1094 | P43: =IFERROR('Retirement Calculations'!Q23,"") -> -30453.58026
C44: =IFERROR('Retirement Calculations'!A24,"") -> 86 | D44: =IFERROR('Retirement Calculations'!B24,"") -> 3251519.971 | E44: =IFERROR('Retirement Calculations'!C24,"") -> 8128.799926 | F44: =IFERROR('Retirement Calculations'!D24,"") -> 162575.9985 | G44: =IFERROR('Retirement Calculations'!E24,"") -> 3405967.169 | H44: =IFERROR('Retirement Calculations'!G24,"") -> 130060.7988 | I44: =IFERROR('Retirement Calculations'!H24,"") -> 106096.6441 | J44: =IFERROR('Retirement Calculations'!I24,"") -> 45469.99032 | K44: =IFERROR('Retirement Calculations'!J24,"") -> 281627.4332 | L44: =IFERROR('Retirement Calculations'!L24,"") -> 70406.8583 | M44: =IFERROR('Retirement Calculations'!M24,"") -> 16897.64599 | N44: =IFERROR('Retirement Calculations'!O24,"") -> 194322.9289 | O44: =IFERROR('Retirement Calculations'!P24,"") -> 227349.9516 | P44: =IFERROR('Retirement Calculations'!Q24,"") -> -33027.02267
C45: =IFERROR('Retirement Calculations'!A25,"") -> 87 | D45: =IFERROR('Retirement Calculations'!B25,"") -> 3242879.348 | E45: =IFERROR('Retirement Calculations'!C25,"") -> 8107.198369 | F45: =IFERROR('Retirement Calculations'!D25,"") -> 162143.9674 | G45: =IFERROR('Retirement Calculations'!E25,"") -> 3396916.117 | H45: =IFERROR('Retirement Calculations'!G25,"") -> 129715.1739 | I45: =IFERROR('Retirement Calculations'!H25,"") -> 108218.577 | J45: =IFERROR('Retirement Calculations'!I25,"") -> 46379.39012 | K45: =IFERROR('Retirement Calculations'!J25,"") -> 284313.141 | L45: =IFERROR('Retirement Calculations'!L25,"") -> 71078.28525 | M45: =IFERROR('Retirement Calculations'!M25,"") -> 17058.78846 | N45: =IFERROR('Retirement Calculations'!O25,"") -> 196176.0673 | O45: =IFERROR('Retirement Calculations'!P25,"") -> 231896.9506 | P45: =IFERROR('Retirement Calculations'!Q25,"") -> -35720.88334
C46: =IFERROR('Retirement Calculations'!A26,"") -> 88 | D46: =IFERROR('Retirement Calculations'!B26,"") -> 3231480.059 | E46: =IFERROR('Retirement Calculations'!C26,"") -> 8078.700149 | F46: =IFERROR('Retirement Calculations'!D26,"") -> 161574.003 | G46: =IFERROR('Retirement Calculations'!E26,"") -> 3384975.362 | H46: =IFERROR('Retirement Calculations'!G26,"") -> 129259.2024 | I46: =IFERROR('Retirement Calculations'!H26,"") -> 110382.9485 | J46: =IFERROR('Retirement Calculations'!I26,"") -> 47306.97793 | K46: =IFERROR('Retirement Calculations'!J26,"") -> 286949.1288 | L46: =IFERROR('Retirement Calculations'!L26,"") -> 71737.2822 | M46: =IFERROR('Retirement Calculations'!M26,"") -> 17216.94773 | N46: =IFERROR('Retirement Calculations'!O26,"") -> 197994.8989 | O46: =IFERROR('Retirement Calculations'!P26,"") -> 236534.8896 | P46: =IFERROR('Retirement Calculations'!Q26,"") -> -38539.99076
C47: =IFERROR('Retirement Calculations'!A27,"") -> 89 | D47: =IFERROR('Retirement Calculations'!B27,"") -> 3217176.169 | E47: =IFERROR('Retirement Calculations'!C27,"") -> 8042.940423 | F47: =IFERROR('Retirement Calculations'!D27,"") -> 160858.8085 | G47: =IFERROR('Retirement Calculations'!E27,"") -> 3369992.037 | H47: =IFERROR('Retirement Calculations'!G27,"") -> 128687.0468 | I47: =IFERROR('Retirement Calculations'!H27,"") -> 112590.6075 | J47: =IFERROR('Retirement Calculations'!I27,"") -> 48253.11748 | K47: =IFERROR('Retirement Calculations'!J27,"") -> 289530.7717 | L47: =IFERROR('Retirement Calculations'!L27,"") -> 72382.69293 | M47: =IFERROR('Retirement Calculations'!M27,"") -> 17371.8463 | N47: =IFERROR('Retirement Calculations'!O27,"") -> 199776.2325 | O47: =IFERROR('Retirement Calculations'!P27,"") -> 241265.5874 | P47: =IFERROR('Retirement Calculations'!Q27,"") -> -41489.35494
C48: =IFERROR('Retirement Calculations'!A28,"") -> 90 | D48: =IFERROR('Retirement Calculations'!B28,"") -> 3199815.635 | E48: =IFERROR('Retirement Calculations'!C28,"") -> 7999.539089 | F48: =IFERROR('Retirement Calculations'!D28,"") -> 159990.7818 | G48: =IFERROR('Retirement Calculations'!E28,"") -> 3351806.878 | H48: =IFERROR('Retirement Calculations'!G28,"") -> 127992.6254 | I48: =IFERROR('Retirement Calculations'!H28,"") -> 114842.4196 | J48: =IFERROR('Retirement Calculations'!I28,"") -> 49218.17983 | K48: =IFERROR('Retirement Calculations'!J28,"") -> 292053.2249 | L48: =IFERROR('Retirement Calculations'!L28,"") -> 73013.30622 | M48: =IFERROR('Retirement Calculations'!M28,"") -> 17523.19349 | N48: =IFERROR('Retirement Calculations'!O28,"") -> 201516.7252 | O48: =IFERROR('Retirement Calculations'!P28,"") -> 246090.8992 | P48: =IFERROR('Retirement Calculations'!Q28,"") -> -44574.17401
C49: =IFERROR('Retirement Calculations'!A29,"") ->  | D49: =IFERROR('Retirement Calculations'!B29,"") ->  | E49: =IFERROR('Retirement Calculations'!C29,"") ->  | F49: =IFERROR('Retirement Calculations'!D29,"") ->  | G49: =IFERROR('Retirement Calculations'!E29,"") ->  | H49: =IFERROR('Retirement Calculations'!G29,"") ->  | I49: =IFERROR('Retirement Calculations'!H29,"") ->  | J49: =IFERROR('Retirement Calculations'!I29,"") ->  | K49: =IFERROR('Retirement Calculations'!J29,"") ->  | L49: =IFERROR('Retirement Calculations'!L29,"") ->  | M49: =IFERROR('Retirement Calculations'!M29,"") ->  | N49: =IFERROR('Retirement Calculations'!O29,"") ->  | O49: =IFERROR('Retirement Calculations'!P29,"") ->  | P49: =IFERROR('Retirement Calculations'!Q29,"") -> 
C50: =IFERROR('Retirement Calculations'!A30,"") ->  | D50: =IFERROR('Retirement Calculations'!B30,"") ->  | E50: =IFERROR('Retirement Calculations'!C30,"") ->  | F50: =IFERROR('Retirement Calculations'!D30,"") ->  | G50: =IFERROR('Retirement Calculations'!E30,"") ->  | H50: =IFERROR('Retirement Calculations'!G30,"") ->  | I50: =IFERROR('Retirement Calculations'!H30,"") ->  | J50: =IFERROR('Retirement Calculations'!I30,"") ->  | K50: =IFERROR('Retirement Calculations'!J30,"") ->  | L50: =IFERROR('Retirement Calculations'!L30,"") ->  | M50: =IFERROR('Retirement Calculations'!M30,"") ->  | N50: =IFERROR('Retirement Calculations'!O30,"") ->  | O50: =IFERROR('Retirement Calculations'!P30,"") ->  | P50: =IFERROR('Retirement Calculations'!Q30,"") -> 
C51: =IFERROR('Retirement Calculations'!A31,"") ->  | D51: =IFERROR('Retirement Calculations'!B31,"") ->  | E51: =IFERROR('Retirement Calculations'!C31,"") ->  | F51: =IFERROR('Retirement Calculations'!D31,"") ->  | G51: =IFERROR('Retirement Calculations'!E31,"") ->  | H51: =IFERROR('Retirement Calculations'!G31,"") ->  | I51: =IFERROR('Retirement Calculations'!H31,"") ->  | J51: =IFERROR('Retirement Calculations'!I31,"") ->  | K51: =IFERROR('Retirement Calculations'!J31,"") ->  | L51: =IFERROR('Retirement Calculations'!L31,"") ->  | M51: =IFERROR('Retirement Calculations'!M31,"") ->  | N51: =IFERROR('Retirement Calculations'!O31,"") ->  | O51: =IFERROR('Retirement Calculations'!P31,"") ->  | P51: =IFERROR('Retirement Calculations'!Q31,"") -> 
C52: =IFERROR('Retirement Calculations'!A32,"") ->  | D52: =IFERROR('Retirement Calculations'!B32,"") ->  | E52: =IFERROR('Retirement Calculations'!C32,"") ->  | F52: =IFERROR('Retirement Calculations'!D32,"") ->  | G52: =IFERROR('Retirement Calculations'!E32,"") ->  | H52: =IFERROR('Retirement Calculations'!G32,"") ->  | I52: =IFERROR('Retirement Calculations'!H32,"") ->  | J52: =IFERROR('Retirement Calculations'!I32,"") ->  | K52: =IFERROR('Retirement Calculations'!J32,"") ->  | L52: =IFERROR('Retirement Calculations'!L32,"") ->  | M52: =IFERROR('Retirement Calculations'!M32,"") ->  | N52: =IFERROR('Retirement Calculations'!O32,"") ->  | O52: =IFERROR('Retirement Calculations'!P32,"") ->  | P52: =IFERROR('Retirement Calculations'!Q32,"") -> 
C53: =IFERROR('Retirement Calculations'!A33,"") ->  | D53: =IFERROR('Retirement Calculations'!B33,"") ->  | E53: =IFERROR('Retirement Calculations'!C33,"") ->  | F53: =IFERROR('Retirement Calculations'!D33,"") ->  | G53: =IFERROR('Retirement Calculations'!E33,"") ->  | H53: =IFERROR('Retirement Calculations'!G33,"") ->  | I53: =IFERROR('Retirement Calculations'!H33,"") ->  | J53: =IFERROR('Retirement Calculations'!I33,"") ->  | K53: =IFERROR('Retirement Calculations'!J33,"") ->  | L53: =IFERROR('Retirement Calculations'!L33,"") ->  | M53: =IFERROR('Retirement Calculations'!M33,"") ->  | N53: =IFERROR('Retirement Calculations'!O33,"") ->  | O53: =IFERROR('Retirement Calculations'!P33,"") ->  | P53: =IFERROR('Retirement Calculations'!Q33,"") -> 
C54: =IFERROR('Retirement Calculations'!A34,"") ->  | D54: =IFERROR('Retirement Calculations'!B34,"") ->  | E54: =IFERROR('Retirement Calculations'!C34,"") ->  | F54: =IFERROR('Retirement Calculations'!D34,"") ->  | G54: =IFERROR('Retirement Calculations'!E34,"") ->  | H54: =IFERROR('Retirement Calculations'!G34,"") ->  | I54: =IFERROR('Retirement Calculations'!H34,"") ->  | J54: =IFERROR('Retirement Calculations'!I34,"") ->  | K54: =IFERROR('Retirement Calculations'!J34,"") ->  | L54: =IFERROR('Retirement Calculations'!L34,"") ->  | M54: =IFERROR('Retirement Calculations'!M34,"") ->  | N54: =IFERROR('Retirement Calculations'!O34,"") ->  | O54: =IFERROR('Retirement Calculations'!P34,"") ->  | P54: =IFERROR('Retirement Calculations'!Q34,"") -> 
C55: =IFERROR('Retirement Calculations'!A35,"") ->  | D55: =IFERROR('Retirement Calculations'!B35,"") ->  | E55: =IFERROR('Retirement Calculations'!C35,"") ->  | F55: =IFERROR('Retirement Calculations'!D35,"") ->  | G55: =IFERROR('Retirement Calculations'!E35,"") ->  | H55: =IFERROR('Retirement Calculations'!G35,"") ->  | I55: =IFERROR('Retirement Calculations'!H35,"") ->  | J55: =IFERROR('Retirement Calculations'!I35,"") ->  | K55: =IFERROR('Retirement Calculations'!J35,"") ->  | L55: =IFERROR('Retirement Calculations'!L35,"") ->  | M55: =IFERROR('Retirement Calculations'!M35,"") ->  | N55: =IFERROR('Retirement Calculations'!O35,"") ->  | O55: =IFERROR('Retirement Calculations'!P35,"") ->  | P55: =IFERROR('Retirement Calculations'!Q35,"") -> 
C56: =IFERROR('Retirement Calculations'!A36,"") ->  | D56: =IFERROR('Retirement Calculations'!B36,"") ->  | E56: =IFERROR('Retirement Calculations'!C36,"") ->  | F56: =IFERROR('Retirement Calculations'!D36,"") ->  | G56: =IFERROR('Retirement Calculations'!E36,"") ->  | H56: =IFERROR('Retirement Calculations'!G36,"") ->  | I56: =IFERROR('Retirement Calculations'!H36,"") ->  | J56: =IFERROR('Retirement Calculations'!I36,"") ->  | K56: =IFERROR('Retirement Calculations'!J36,"") ->  | L56: =IFERROR('Retirement Calculations'!L36,"") ->  | M56: =IFERROR('Retirement Calculations'!M36,"") ->  | N56: =IFERROR('Retirement Calculations'!O36,"") ->  | O56: =IFERROR('Retirement Calculations'!P36,"") ->  | P56: =IFERROR('Retirement Calculations'!Q36,"") -> 
C57: =IFERROR('Retirement Calculations'!A37,"") ->  | D57: =IFERROR('Retirement Calculations'!B37,"") ->  | E57: =IFERROR('Retirement Calculations'!C37,"") ->  | F57: =IFERROR('Retirement Calculations'!D37,"") ->  | G57: =IFERROR('Retirement Calculations'!E37,"") ->  | H57: =IFERROR('Retirement Calculations'!G37,"") ->  | I57: =IFERROR('Retirement Calculations'!H37,"") ->  | J57: =IFERROR('Retirement Calculations'!I37,"") ->  | K57: =IFERROR('Retirement Calculations'!J37,"") ->  | L57: =IFERROR('Retirement Calculations'!L37,"") ->  | M57: =IFERROR('Retirement Calculations'!M37,"") ->  | N57: =IFERROR('Retirement Calculations'!O37,"") ->  | O57: =IFERROR('Retirement Calculations'!P37,"") ->  | P57: =IFERROR('Retirement Calculations'!Q37,"") -> 
C58: =IFERROR('Retirement Calculations'!A38,"") ->  | D58: =IFERROR('Retirement Calculations'!B38,"") ->  | E58: =IFERROR('Retirement Calculations'!C38,"") ->  | F58: =IFERROR('Retirement Calculations'!D38,"") ->  | G58: =IFERROR('Retirement Calculations'!E38,"") ->  | H58: =IFERROR('Retirement Calculations'!G38,"") ->  | I58: =IFERROR('Retirement Calculations'!H38,"") ->  | J58: =IFERROR('Retirement Calculations'!I38,"") ->  | K58: =IFERROR('Retirement Calculations'!J38,"") ->  | L58: =IFERROR('Retirement Calculations'!L38,"") ->  | M58: =IFERROR('Retirement Calculations'!M38,"") ->  | N58: =IFERROR('Retirement Calculations'!O38,"") ->  | O58: =IFERROR('Retirement Calculations'!P38,"") ->  | P58: =IFERROR('Retirement Calculations'!Q38,"") -> 
C59: =IFERROR('Retirement Calculations'!A39,"") ->  | D59: =IFERROR('Retirement Calculations'!B39,"") ->  | E59: =IFERROR('Retirement Calculations'!C39,"") ->  | F59: =IFERROR('Retirement Calculations'!D39,"") ->  | G59: =IFERROR('Retirement Calculations'!E39,"") ->  | H59: =IFERROR('Retirement Calculations'!G39,"") ->  | I59: =IFERROR('Retirement Calculations'!H39,"") ->  | J59: =IFERROR('Retirement Calculations'!I39,"") ->  | K59: =IFERROR('Retirement Calculations'!J39,"") ->  | L59: =IFERROR('Retirement Calculations'!L39,"") ->  | M59: =IFERROR('Retirement Calculations'!M39,"") ->  | N59: =IFERROR('Retirement Calculations'!O39,"") ->  | O59: =IFERROR('Retirement Calculations'!P39,"") ->  | P59: =IFERROR('Retirement Calculations'!Q39,"") -> 
C60: =IFERROR('Retirement Calculations'!A40,"") ->  | D60: =IFERROR('Retirement Calculations'!B40,"") ->  | E60: =IFERROR('Retirement Calculations'!C40,"") ->  | F60: =IFERROR('Retirement Calculations'!D40,"") ->  | G60: =IFERROR('Retirement Calculations'!E40,"") ->  | H60: =IFERROR('Retirement Calculations'!G40,"") ->  | I60: =IFERROR('Retirement Calculations'!H40,"") ->  | J60: =IFERROR('Retirement Calculations'!I40,"") ->  | K60: =IFERROR('Retirement Calculations'!J40,"") ->  | L60: =IFERROR('Retirement Calculations'!L40,"") ->  | M60: =IFERROR('Retirement Calculations'!M40,"") ->  | N60: =IFERROR('Retirement Calculations'!O40,"") ->  | O60: =IFERROR('Retirement Calculations'!P40,"") ->  | P60: =IFERROR('Retirement Calculations'!Q40,"") -> 
C61: =IFERROR('Retirement Calculations'!A41,"") ->  | D61: =IFERROR('Retirement Calculations'!B41,"") ->  | E61: =IFERROR('Retirement Calculations'!C41,"") ->  | F61: =IFERROR('Retirement Calculations'!D41,"") ->  | G61: =IFERROR('Retirement Calculations'!E41,"") ->  | H61: =IFERROR('Retirement Calculations'!G41,"") ->  | I61: =IFERROR('Retirement Calculations'!H41,"") ->  | J61: =IFERROR('Retirement Calculations'!I41,"") ->  | K61: =IFERROR('Retirement Calculations'!J41,"") ->  | L61: =IFERROR('Retirement Calculations'!L41,"") ->  | M61: =IFERROR('Retirement Calculations'!M41,"") ->  | N61: =IFERROR('Retirement Calculations'!O41,"") ->  | O61: =IFERROR('Retirement Calculations'!P41,"") ->  | P61: =IFERROR('Retirement Calculations'!Q41,"") -> 
C62: =IFERROR('Retirement Calculations'!A42,"") ->  | D62: =IFERROR('Retirement Calculations'!B42,"") ->  | E62: =IFERROR('Retirement Calculations'!C42,"") ->  | F62: =IFERROR('Retirement Calculations'!D42,"") ->  | G62: =IFERROR('Retirement Calculations'!E42,"") ->  | H62: =IFERROR('Retirement Calculations'!G42,"") ->  | I62: =IFERROR('Retirement Calculations'!H42,"") ->  | J62: =IFERROR('Retirement Calculations'!I42,"") ->  | K62: =IFERROR('Retirement Calculations'!J42,"") ->  | L62: =IFERROR('Retirement Calculations'!L42,"") ->  | M62: =IFERROR('Retirement Calculations'!M42,"") ->  | N62: =IFERROR('Retirement Calculations'!O42,"") ->  | O62: =IFERROR('Retirement Calculations'!P42,"") ->  | P62: =IFERROR('Retirement Calculations'!Q42,"") -> 
C63: =IFERROR('Retirement Calculations'!A43,"") ->  | D63: =IFERROR('Retirement Calculations'!B43,"") ->  | E63: =IFERROR('Retirement Calculations'!C43,"") ->  | F63: =IFERROR('Retirement Calculations'!D43,"") ->  | G63: =IFERROR('Retirement Calculations'!E43,"") ->  | H63: =IFERROR('Retirement Calculations'!G43,"") ->  | I63: =IFERROR('Retirement Calculations'!H43,"") ->  | J63: =IFERROR('Retirement Calculations'!I43,"") ->  | K63: =IFERROR('Retirement Calculations'!J43,"") ->  | L63: =IFERROR('Retirement Calculations'!L43,"") ->  | M63: =IFERROR('Retirement Calculations'!M43,"") ->  | N63: =IFERROR('Retirement Calculations'!O43,"") ->  | O63: =IFERROR('Retirement Calculations'!P43,"") ->  | P63: =IFERROR('Retirement Calculations'!Q43,"") -> 
C64: =IFERROR('Retirement Calculations'!A44,"") ->  | D64: =IFERROR('Retirement Calculations'!B44,"") ->  | E64: =IFERROR('Retirement Calculations'!C44,"") ->  | F64: =IFERROR('Retirement Calculations'!D44,"") ->  | G64: =IFERROR('Retirement Calculations'!E44,"") ->  | H64: =IFERROR('Retirement Calculations'!G44,"") ->  | I64: =IFERROR('Retirement Calculations'!H44,"") ->  | J64: =IFERROR('Retirement Calculations'!I44,"") ->  | K64: =IFERROR('Retirement Calculations'!J44,"") ->  | L64: =IFERROR('Retirement Calculations'!L44,"") ->  | M64: =IFERROR('Retirement Calculations'!M44,"") ->  | N64: =IFERROR('Retirement Calculations'!O44,"") ->  | O64: =IFERROR('Retirement Calculations'!P44,"") ->  | P64: =IFERROR('Retirement Calculations'!Q44,"") -> 
C65: =IFERROR('Retirement Calculations'!A45,"") ->  | D65: =IFERROR('Retirement Calculations'!B45,"") ->  | E65: =IFERROR('Retirement Calculations'!C45,"") ->  | F65: =IFERROR('Retirement Calculations'!D45,"") ->  | G65: =IFERROR('Retirement Calculations'!E45,"") ->  | H65: =IFERROR('Retirement Calculations'!G45,"") ->  | I65: =IFERROR('Retirement Calculations'!H45,"") ->  | J65: =IFERROR('Retirement Calculations'!I45,"") ->  | K65: =IFERROR('Retirement Calculations'!J45,"") ->  | L65: =IFERROR('Retirement Calculations'!L45,"") ->  | M65: =IFERROR('Retirement Calculations'!M45,"") ->  | N65: =IFERROR('Retirement Calculations'!O45,"") ->  | O65: =IFERROR('Retirement Calculations'!P45,"") ->  | P65: =IFERROR('Retirement Calculations'!Q45,"") -> 
C66: =IFERROR('Retirement Calculations'!A46,"") ->  | D66: =IFERROR('Retirement Calculations'!B46,"") ->  | E66: =IFERROR('Retirement Calculations'!C46,"") ->  | F66: =IFERROR('Retirement Calculations'!D46,"") ->  | G66: =IFERROR('Retirement Calculations'!E46,"") ->  | H66: =IFERROR('Retirement Calculations'!G46,"") ->  | I66: =IFERROR('Retirement Calculations'!H46,"") ->  | J66: =IFERROR('Retirement Calculations'!I46,"") ->  | K66: =IFERROR('Retirement Calculations'!J46,"") ->  | L66: =IFERROR('Retirement Calculations'!L46,"") ->  | M66: =IFERROR('Retirement Calculations'!M46,"") ->  | N66: =IFERROR('Retirement Calculations'!O46,"") ->  | O66: =IFERROR('Retirement Calculations'!P46,"") ->  | P66: =IFERROR('Retirement Calculations'!Q46,"") -> 
C67: =IFERROR('Retirement Calculations'!A47,"") ->  | D67: =IFERROR('Retirement Calculations'!B47,"") ->  | E67: =IFERROR('Retirement Calculations'!C47,"") ->  | F67: =IFERROR('Retirement Calculations'!D47,"") ->  | G67: =IFERROR('Retirement Calculations'!E47,"") ->  | H67: =IFERROR('Retirement Calculations'!G47,"") ->  | I67: =IFERROR('Retirement Calculations'!H47,"") ->  | J67: =IFERROR('Retirement Calculations'!I47,"") ->  | K67: =IFERROR('Retirement Calculations'!J47,"") ->  | L67: =IFERROR('Retirement Calculations'!L47,"") ->  | M67: =IFERROR('Retirement Calculations'!M47,"") ->  | N67: =IFERROR('Retirement Calculations'!O47,"") ->  | O67: =IFERROR('Retirement Calculations'!P47,"") ->  | P67: =IFERROR('Retirement Calculations'!Q47,"") -> 
C68: =IFERROR('Retirement Calculations'!A48,"") ->  | D68: =IFERROR('Retirement Calculations'!B48,"") ->  | E68: =IFERROR('Retirement Calculations'!C48,"") ->  | F68: =IFERROR('Retirement Calculations'!D48,"") ->  | G68: =IFERROR('Retirement Calculations'!E48,"") ->  | H68: =IFERROR('Retirement Calculations'!G48,"") ->  | I68: =IFERROR('Retirement Calculations'!H48,"") ->  | J68: =IFERROR('Retirement Calculations'!I48,"") ->  | K68: =IFERROR('Retirement Calculations'!J48,"") ->  | L68: =IFERROR('Retirement Calculations'!L48,"") ->  | M68: =IFERROR('Retirement Calculations'!M48,"") ->  | N68: =IFERROR('Retirement Calculations'!O48,"") ->  | O68: =IFERROR('Retirement Calculations'!P48,"") ->  | P68: =IFERROR('Retirement Calculations'!Q48,"") -> 
C69: =IFERROR('Retirement Calculations'!A49,"") ->  | D69: =IFERROR('Retirement Calculations'!B49,"") ->  | E69: =IFERROR('Retirement Calculations'!C49,"") ->  | F69: =IFERROR('Retirement Calculations'!D49,"") ->  | G69: =IFERROR('Retirement Calculations'!E49,"") ->  | H69: =IFERROR('Retirement Calculations'!G49,"") ->  | I69: =IFERROR('Retirement Calculations'!H49,"") ->  | J69: =IFERROR('Retirement Calculations'!I49,"") ->  | K69: =IFERROR('Retirement Calculations'!J49,"") ->  | L69: =IFERROR('Retirement Calculations'!L49,"") ->  | M69: =IFERROR('Retirement Calculations'!M49,"") ->  | N69: =IFERROR('Retirement Calculations'!O49,"") ->  | O69: =IFERROR('Retirement Calculations'!P49,"") ->  | P69: =IFERROR('Retirement Calculations'!Q49,"") -> 
C70: =IFERROR('Retirement Calculations'!A50,"") ->  | D70: =IFERROR('Retirement Calculations'!B50,"") ->  | E70: =IFERROR('Retirement Calculations'!C50,"") ->  | F70: =IFERROR('Retirement Calculations'!D50,"") ->  | G70: =IFERROR('Retirement Calculations'!E50,"") ->  | H70: =IFERROR('Retirement Calculations'!G50,"") ->  | I70: =IFERROR('Retirement Calculations'!H50,"") ->  | J70: =IFERROR('Retirement Calculations'!I50,"") ->  | K70: =IFERROR('Retirement Calculations'!J50,"") ->  | L70: =IFERROR('Retirement Calculations'!L50,"") ->  | M70: =IFERROR('Retirement Calculations'!M50,"") ->  | N70: =IFERROR('Retirement Calculations'!O50,"") ->  | O70: =IFERROR('Retirement Calculations'!P50,"") ->  | P70: =IFERROR('Retirement Calculations'!Q50,"") -> 
C71: =IFERROR('Retirement Calculations'!A51,"") ->  | D71: =IFERROR('Retirement Calculations'!B51,"") ->  | E71: =IFERROR('Retirement Calculations'!C51,"") ->  | F71: =IFERROR('Retirement Calculations'!D51,"") ->  | G71: =IFERROR('Retirement Calculations'!E51,"") ->  | H71: =IFERROR('Retirement Calculations'!G51,"") ->  | I71: =IFERROR('Retirement Calculations'!H51,"") ->  | J71: =IFERROR('Retirement Calculations'!I51,"") ->  | K71: =IFERROR('Retirement Calculations'!J51,"") ->  | L71: =IFERROR('Retirement Calculations'!L51,"") ->  | M71: =IFERROR('Retirement Calculations'!M51,"") ->  | N71: =IFERROR('Retirement Calculations'!O51,"") ->  | O71: =IFERROR('Retirement Calculations'!P51,"") ->  | P71: =IFERROR('Retirement Calculations'!Q51,"") -> 
C72: =IFERROR('Retirement Calculations'!A52,"") ->  | D72: =IFERROR('Retirement Calculations'!B52,"") ->  | E72: =IFERROR('Retirement Calculations'!C52,"") ->  | F72: =IFERROR('Retirement Calculations'!D52,"") ->  | G72: =IFERROR('Retirement Calculations'!E52,"") ->  | H72: =IFERROR('Retirement Calculations'!G52,"") ->  | I72: =IFERROR('Retirement Calculations'!H52,"") ->  | J72: =IFERROR('Retirement Calculations'!I52,"") ->  | K72: =IFERROR('Retirement Calculations'!J52,"") ->  | L72: =IFERROR('Retirement Calculations'!L52,"") ->  | M72: =IFERROR('Retirement Calculations'!M52,"") ->  | N72: =IFERROR('Retirement Calculations'!O52,"") ->  | O72: =IFERROR('Retirement Calculations'!P52,"") ->  | P72: =IFERROR('Retirement Calculations'!Q52,"") -> 
C73: =IFERROR('Retirement Calculations'!A53,"") ->  | D73: =IFERROR('Retirement Calculations'!B53,"") ->  | E73: =IFERROR('Retirement Calculations'!C53,"") ->  | F73: =IFERROR('Retirement Calculations'!D53,"") ->  | G73: =IFERROR('Retirement Calculations'!E53,"") ->  | H73: =IFERROR('Retirement Calculations'!G53,"") ->  | I73: =IFERROR('Retirement Calculations'!H53,"") ->  | J73: =IFERROR('Retirement Calculations'!I53,"") ->  | K73: =IFERROR('Retirement Calculations'!J53,"") ->  | L73: =IFERROR('Retirement Calculations'!L53,"") ->  | M73: =IFERROR('Retirement Calculations'!M53,"") ->  | N73: =IFERROR('Retirement Calculations'!O53,"") ->  | O73: =IFERROR('Retirement Calculations'!P53,"") ->  | P73: =IFERROR('Retirement Calculations'!Q53,"") -> 
C74: =IFERROR('Retirement Calculations'!A54,"") ->  | D74: =IFERROR('Retirement Calculations'!B54,"") ->  | E74: =IFERROR('Retirement Calculations'!C54,"") ->  | F74: =IFERROR('Retirement Calculations'!D54,"") ->  | G74: =IFERROR('Retirement Calculations'!E54,"") ->  | H74: =IFERROR('Retirement Calculations'!G54,"") ->  | I74: =IFERROR('Retirement Calculations'!H54,"") ->  | J74: =IFERROR('Retirement Calculations'!I54,"") ->  | K74: =IFERROR('Retirement Calculations'!J54,"") ->  | L74: =IFERROR('Retirement Calculations'!L54,"") ->  | M74: =IFERROR('Retirement Calculations'!M54,"") ->  | N74: =IFERROR('Retirement Calculations'!O54,"") ->  | O74: =IFERROR('Retirement Calculations'!P54,"") ->  | P74: =IFERROR('Retirement Calculations'!Q54,"") -> 
C75: =IFERROR('Retirement Calculations'!A55,"") ->  | D75: =IFERROR('Retirement Calculations'!B55,"") ->  | E75: =IFERROR('Retirement Calculations'!C55,"") ->  | F75: =IFERROR('Retirement Calculations'!D55,"") ->  | G75: =IFERROR('Retirement Calculations'!E55,"") ->  | H75: =IFERROR('Retirement Calculations'!G55,"") ->  | I75: =IFERROR('Retirement Calculations'!H55,"") ->  | J75: =IFERROR('Retirement Calculations'!I55,"") ->  | K75: =IFERROR('Retirement Calculations'!J55,"") ->  | L75: =IFERROR('Retirement Calculations'!L55,"") ->  | M75: =IFERROR('Retirement Calculations'!M55,"") ->  | N75: =IFERROR('Retirement Calculations'!O55,"") ->  | O75: =IFERROR('Retirement Calculations'!P55,"") ->  | P75: =IFERROR('Retirement Calculations'!Q55,"") -> 
C76: =IFERROR('Retirement Calculations'!A56,"") ->  | D76: =IFERROR('Retirement Calculations'!B56,"") ->  | E76: =IFERROR('Retirement Calculations'!C56,"") ->  | F76: =IFERROR('Retirement Calculations'!D56,"") ->  | G76: =IFERROR('Retirement Calculations'!E56,"") ->  | H76: =IFERROR('Retirement Calculations'!G56,"") ->  | I76: =IFERROR('Retirement Calculations'!H56,"") ->  | J76: =IFERROR('Retirement Calculations'!I56,"") ->  | K76: =IFERROR('Retirement Calculations'!J56,"") ->  | L76: =IFERROR('Retirement Calculations'!L56,"") ->  | M76: =IFERROR('Retirement Calculations'!M56,"") ->  | N76: =IFERROR('Retirement Calculations'!O56,"") ->  | O76: =IFERROR('Retirement Calculations'!P56,"") ->  | P76: =IFERROR('Retirement Calculations'!Q56,"") -> 
C77: =IFERROR('Retirement Calculations'!A57,"") ->  | D77: =IFERROR('Retirement Calculations'!B57,"") ->  | E77: =IFERROR('Retirement Calculations'!C57,"") ->  | F77: =IFERROR('Retirement Calculations'!D57,"") ->  | G77: =IFERROR('Retirement Calculations'!E57,"") ->  | H77: =IFERROR('Retirement Calculations'!G57,"") ->  | I77: =IFERROR('Retirement Calculations'!H57,"") ->  | J77: =IFERROR('Retirement Calculations'!I57,"") ->  | K77: =IFERROR('Retirement Calculations'!J57,"") ->  | L77: =IFERROR('Retirement Calculations'!L57,"") ->  | M77: =IFERROR('Retirement Calculations'!M57,"") ->  | N77: =IFERROR('Retirement Calculations'!O57,"") ->  | O77: =IFERROR('Retirement Calculations'!P57,"") ->  | P77: =IFERROR('Retirement Calculations'!Q57,"") -> 
C78: =IFERROR('Retirement Calculations'!A58,"") ->  | D78: =IFERROR('Retirement Calculations'!B58,"") ->  | E78: =IFERROR('Retirement Calculations'!C58,"") ->  | F78: =IFERROR('Retirement Calculations'!D58,"") ->  | G78: =IFERROR('Retirement Calculations'!E58,"") ->  | H78: =IFERROR('Retirement Calculations'!G58,"") ->  | I78: =IFERROR('Retirement Calculations'!H58,"") ->  | J78: =IFERROR('Retirement Calculations'!I58,"") ->  | K78: =IFERROR('Retirement Calculations'!J58,"") ->  | L78: =IFERROR('Retirement Calculations'!L58,"") ->  | M78: =IFERROR('Retirement Calculations'!M58,"") ->  | N78: =IFERROR('Retirement Calculations'!O58,"") ->  | O78: =IFERROR('Retirement Calculations'!P58,"") ->  | P78: =IFERROR('Retirement Calculations'!Q58,"") -> 
C79: =IFERROR('Retirement Calculations'!A59,"") ->  | D79: =IFERROR('Retirement Calculations'!B59,"") ->  | E79: =IFERROR('Retirement Calculations'!C59,"") ->  | F79: =IFERROR('Retirement Calculations'!D59,"") ->  | G79: =IFERROR('Retirement Calculations'!E59,"") ->  | H79: =IFERROR('Retirement Calculations'!G59,"") ->  | I79: =IFERROR('Retirement Calculations'!H59,"") ->  | J79: =IFERROR('Retirement Calculations'!I59,"") ->  | K79: =IFERROR('Retirement Calculations'!J59,"") ->  | L79: =IFERROR('Retirement Calculations'!L59,"") ->  | M79: =IFERROR('Retirement Calculations'!M59,"") ->  | N79: =IFERROR('Retirement Calculations'!O59,"") ->  | O79: =IFERROR('Retirement Calculations'!P59,"") ->  | P79: =IFERROR('Retirement Calculations'!Q59,"") -> 
C80: =IFERROR('Retirement Calculations'!A60,"") ->  | D80: =IFERROR('Retirement Calculations'!B60,"") ->  | E80: =IFERROR('Retirement Calculations'!C60,"") ->  | F80: =IFERROR('Retirement Calculations'!D60,"") ->  | G80: =IFERROR('Retirement Calculations'!E60,"") ->  | H80: =IFERROR('Retirement Calculations'!G60,"") ->  | I80: =IFERROR('Retirement Calculations'!H60,"") ->  | J80: =IFERROR('Retirement Calculations'!I60,"") ->  | K80: =IFERROR('Retirement Calculations'!J60,"") ->  | L80: =IFERROR('Retirement Calculations'!L60,"") ->  | M80: =IFERROR('Retirement Calculations'!M60,"") ->  | N80: =IFERROR('Retirement Calculations'!O60,"") ->  | O80: =IFERROR('Retirement Calculations'!P60,"") ->  | P80: =IFERROR('Retirement Calculations'!Q60,"") -> 
C81: =IFERROR('Retirement Calculations'!A61,"") ->  | D81: =IFERROR('Retirement Calculations'!B61,"") ->  | E81: =IFERROR('Retirement Calculations'!C61,"") ->  | F81: =IFERROR('Retirement Calculations'!D61,"") ->  | G81: =IFERROR('Retirement Calculations'!E61,"") ->  | H81: =IFERROR('Retirement Calculations'!G61,"") ->  | I81: =IFERROR('Retirement Calculations'!H61,"") ->  | J81: =IFERROR('Retirement Calculations'!I61,"") ->  | K81: =IFERROR('Retirement Calculations'!J61,"") ->  | L81: =IFERROR('Retirement Calculations'!L61,"") ->  | M81: =IFERROR('Retirement Calculations'!M61,"") ->  | N81: =IFERROR('Retirement Calculations'!O61,"") ->  | O81: =IFERROR('Retirement Calculations'!P61,"") ->  | P81: =IFERROR('Retirement Calculations'!Q61,"") -> 
C82: =IFERROR('Retirement Calculations'!A62,"") ->  | D82: =IFERROR('Retirement Calculations'!B62,"") ->  | E82: =IFERROR('Retirement Calculations'!C62,"") ->  | F82: =IFERROR('Retirement Calculations'!D62,"") ->  | G82: =IFERROR('Retirement Calculations'!E62,"") ->  | H82: =IFERROR('Retirement Calculations'!G62,"") ->  | I82: =IFERROR('Retirement Calculations'!H62,"") ->  | J82: =IFERROR('Retirement Calculations'!I62,"") ->  | K82: =IFERROR('Retirement Calculations'!J62,"") ->  | L82: =IFERROR('Retirement Calculations'!L62,"") ->  | M82: =IFERROR('Retirement Calculations'!M62,"") ->  | N82: =IFERROR('Retirement Calculations'!O62,"") ->  | O82: =IFERROR('Retirement Calculations'!P62,"") ->  | P82: =IFERROR('Retirement Calculations'!Q62,"") -> 
C83: =IFERROR('Retirement Calculations'!A63,"") ->  | D83: =IFERROR('Retirement Calculations'!B63,"") ->  | E83: =IFERROR('Retirement Calculations'!C63,"") ->  | F83: =IFERROR('Retirement Calculations'!D63,"") ->  | G83: =IFERROR('Retirement Calculations'!E63,"") ->  | H83: =IFERROR('Retirement Calculations'!G63,"") ->  | I83: =IFERROR('Retirement Calculations'!H63,"") ->  | J83: =IFERROR('Retirement Calculations'!I63,"") ->  | K83: =IFERROR('Retirement Calculations'!J63,"") ->  | L83: =IFERROR('Retirement Calculations'!L63,"") ->  | M83: =IFERROR('Retirement Calculations'!M63,"") ->  | N83: =IFERROR('Retirement Calculations'!O63,"") ->  | O83: =IFERROR('Retirement Calculations'!P63,"") ->  | P83: =IFERROR('Retirement Calculations'!Q63,"") -> 
C84: =IFERROR('Retirement Calculations'!A64,"") ->  | D84: =IFERROR('Retirement Calculations'!B64,"") ->  | E84: =IFERROR('Retirement Calculations'!C64,"") ->  | F84: =IFERROR('Retirement Calculations'!D64,"") ->  | G84: =IFERROR('Retirement Calculations'!E64,"") ->  | H84: =IFERROR('Retirement Calculations'!G64,"") ->  | I84: =IFERROR('Retirement Calculations'!H64,"") ->  | J84: =IFERROR('Retirement Calculations'!I64,"") ->  | K84: =IFERROR('Retirement Calculations'!J64,"") ->  | L84: =IFERROR('Retirement Calculations'!L64,"") ->  | M84: =IFERROR('Retirement Calculations'!M64,"") ->  | N84: =IFERROR('Retirement Calculations'!O64,"") ->  | O84: =IFERROR('Retirement Calculations'!P64,"") ->  | P84: =IFERROR('Retirement Calculations'!Q64,"") -> 
C85: =IFERROR('Retirement Calculations'!A65,"") ->  | D85: =IFERROR('Retirement Calculations'!B65,"") ->  | E85: =IFERROR('Retirement Calculations'!C65,"") ->  | F85: =IFERROR('Retirement Calculations'!D65,"") ->  | G85: =IFERROR('Retirement Calculations'!E65,"") ->  | H85: =IFERROR('Retirement Calculations'!G65,"") ->  | I85: =IFERROR('Retirement Calculations'!H65,"") ->  | J85: =IFERROR('Retirement Calculations'!I65,"") ->  | K85: =IFERROR('Retirement Calculations'!J65,"") ->  | L85: =IFERROR('Retirement Calculations'!L65,"") ->  | M85: =IFERROR('Retirement Calculations'!M65,"") ->  | N85: =IFERROR('Retirement Calculations'!O65,"") ->  | O85: =IFERROR('Retirement Calculations'!P65,"") ->  | P85: =IFERROR('Retirement Calculations'!Q65,"") -> 
C86: =IFERROR('Retirement Calculations'!A66,"") ->  | D86: =IFERROR('Retirement Calculations'!B66,"") ->  | E86: =IFERROR('Retirement Calculations'!C66,"") ->  | F86: =IFERROR('Retirement Calculations'!D66,"") ->  | G86: =IFERROR('Retirement Calculations'!E66,"") ->  | H86: =IFERROR('Retirement Calculations'!G66,"") ->  | I86: =IFERROR('Retirement Calculations'!H66,"") ->  | J86: =IFERROR('Retirement Calculations'!I66,"") ->  | K86: =IFERROR('Retirement Calculations'!J66,"") ->  | L86: =IFERROR('Retirement Calculations'!L66,"") ->  | M86: =IFERROR('Retirement Calculations'!M66,"") ->  | N86: =IFERROR('Retirement Calculations'!O66,"") ->  | O86: =IFERROR('Retirement Calculations'!P66,"") ->  | P86: =IFERROR('Retirement Calculations'!Q66,"") -> 
C87: =IFERROR('Retirement Calculations'!A67,"") ->  | D87: =IFERROR('Retirement Calculations'!B67,"") ->  | E87: =IFERROR('Retirement Calculations'!C67,"") ->  | F87: =IFERROR('Retirement Calculations'!D67,"") ->  | G87: =IFERROR('Retirement Calculations'!E67,"") ->  | H87: =IFERROR('Retirement Calculations'!G67,"") ->  | I87: =IFERROR('Retirement Calculations'!H67,"") ->  | J87: =IFERROR('Retirement Calculations'!I67,"") ->  | K87: =IFERROR('Retirement Calculations'!J67,"") ->  | L87: =IFERROR('Retirement Calculations'!L67,"") ->  | M87: =IFERROR('Retirement Calculations'!M67,"") ->  | N87: =IFERROR('Retirement Calculations'!O67,"") ->  | O87: =IFERROR('Retirement Calculations'!P67,"") ->  | P87: =IFERROR('Retirement Calculations'!Q67,"") -> 
C88: =IFERROR('Retirement Calculations'!A68,"") ->  | D88: =IFERROR('Retirement Calculations'!B68,"") ->  | E88: =IFERROR('Retirement Calculations'!C68,"") ->  | F88: =IFERROR('Retirement Calculations'!D68,"") ->  | G88: =IFERROR('Retirement Calculations'!E68,"") ->  | H88: =IFERROR('Retirement Calculations'!G68,"") ->  | I88: =IFERROR('Retirement Calculations'!H68,"") ->  | J88: =IFERROR('Retirement Calculations'!I68,"") ->  | K88: =IFERROR('Retirement Calculations'!J68,"") ->  | L88: =IFERROR('Retirement Calculations'!L68,"") ->  | M88: =IFERROR('Retirement Calculations'!M68,"") ->  | N88: =IFERROR('Retirement Calculations'!O68,"") ->  | O88: =IFERROR('Retirement Calculations'!P68,"") ->  | P88: =IFERROR('Retirement Calculations'!Q68,"") -> 
C89: =IFERROR('Retirement Calculations'!A69,"") ->  | D89: =IFERROR('Retirement Calculations'!B69,"") ->  | E89: =IFERROR('Retirement Calculations'!C69,"") ->  | F89: =IFERROR('Retirement Calculations'!D69,"") ->  | G89: =IFERROR('Retirement Calculations'!E69,"") ->  | H89: =IFERROR('Retirement Calculations'!G69,"") ->  | I89: =IFERROR('Retirement Calculations'!H69,"") ->  | J89: =IFERROR('Retirement Calculations'!I69,"") ->  | K89: =IFERROR('Retirement Calculations'!J69,"") ->  | L89: =IFERROR('Retirement Calculations'!L69,"") ->  | M89: =IFERROR('Retirement Calculations'!M69,"") ->  | N89: =IFERROR('Retirement Calculations'!O69,"") ->  | O89: =IFERROR('Retirement Calculations'!P69,"") ->  | P89: =IFERROR('Retirement Calculations'!Q69,"") -> 
C90: =IFERROR('Retirement Calculations'!A70,"") ->  | D90: =IFERROR('Retirement Calculations'!B70,"") ->  | E90: =IFERROR('Retirement Calculations'!C70,"") ->  | F90: =IFERROR('Retirement Calculations'!D70,"") ->  | G90: =IFERROR('Retirement Calculations'!E70,"") ->  | H90: =IFERROR('Retirement Calculations'!G70,"") ->  | I90: =IFERROR('Retirement Calculations'!H70,"") ->  | J90: =IFERROR('Retirement Calculations'!I70,"") ->  | K90: =IFERROR('Retirement Calculations'!J70,"") ->  | L90: =IFERROR('Retirement Calculations'!L70,"") ->  | M90: =IFERROR('Retirement Calculations'!M70,"") ->  | N90: =IFERROR('Retirement Calculations'!O70,"") ->  | O90: =IFERROR('Retirement Calculations'!P70,"") ->  | P90: =IFERROR('Retirement Calculations'!Q70,"") -> 
C91: =IFERROR('Retirement Calculations'!A71,"") ->  | D91: =IFERROR('Retirement Calculations'!B71,"") ->  | E91: =IFERROR('Retirement Calculations'!C71,"") ->  | F91: =IFERROR('Retirement Calculations'!D71,"") ->  | G91: =IFERROR('Retirement Calculations'!E71,"") ->  | H91: =IFERROR('Retirement Calculations'!G71,"") ->  | I91: =IFERROR('Retirement Calculations'!H71,"") ->  | J91: =IFERROR('Retirement Calculations'!I71,"") ->  | K91: =IFERROR('Retirement Calculations'!J71,"") ->  | L91: =IFERROR('Retirement Calculations'!L71,"") ->  | M91: =IFERROR('Retirement Calculations'!M71,"") ->  | N91: =IFERROR('Retirement Calculations'!O71,"") ->  | O91: =IFERROR('Retirement Calculations'!P71,"") ->  | P91: =IFERROR('Retirement Calculations'!Q71,"") -> 
C92: =IFERROR('Retirement Calculations'!A72,"") ->  | D92: =IFERROR('Retirement Calculations'!B72,"") ->  | E92: =IFERROR('Retirement Calculations'!C72,"") ->  | F92: =IFERROR('Retirement Calculations'!D72,"") ->  | G92: =IFERROR('Retirement Calculations'!E72,"") ->  | H92: =IFERROR('Retirement Calculations'!G72,"") ->  | I92: =IFERROR('Retirement Calculations'!H72,"") ->  | J92: =IFERROR('Retirement Calculations'!I72,"") ->  | K92: =IFERROR('Retirement Calculations'!J72,"") ->  | L92: =IFERROR('Retirement Calculations'!L72,"") ->  | M92: =IFERROR('Retirement Calculations'!M72,"") ->  | N92: =IFERROR('Retirement Calculations'!O72,"") ->  | O92: =IFERROR('Retirement Calculations'!P72,"") ->  | P92: =IFERROR('Retirement Calculations'!Q72,"") -> 
C93: =IFERROR('Retirement Calculations'!A73,"") ->  | D93: =IFERROR('Retirement Calculations'!B73,"") ->  | E93: =IFERROR('Retirement Calculations'!C73,"") ->  | F93: =IFERROR('Retirement Calculations'!D73,"") ->  | G93: =IFERROR('Retirement Calculations'!E73,"") ->  | H93: =IFERROR('Retirement Calculations'!G73,"") ->  | I93: =IFERROR('Retirement Calculations'!H73,"") ->  | J93: =IFERROR('Retirement Calculations'!I73,"") ->  | K93: =IFERROR('Retirement Calculations'!J73,"") ->  | L93: =IFERROR('Retirement Calculations'!L73,"") ->  | M93: =IFERROR('Retirement Calculations'!M73,"") ->  | N93: =IFERROR('Retirement Calculations'!O73,"") ->  | O93: =IFERROR('Retirement Calculations'!P73,"") ->  | P93: =IFERROR('Retirement Calculations'!Q73,"") -> 
C94: =IFERROR('Retirement Calculations'!A74,"") ->  | D94: =IFERROR('Retirement Calculations'!B74,"") ->  | E94: =IFERROR('Retirement Calculations'!C74,"") ->  | F94: =IFERROR('Retirement Calculations'!D74,"") ->  | G94: =IFERROR('Retirement Calculations'!E74,"") ->  | H94: =IFERROR('Retirement Calculations'!G74,"") ->  | I94: =IFERROR('Retirement Calculations'!H74,"") ->  | J94: =IFERROR('Retirement Calculations'!I74,"") ->  | K94: =IFERROR('Retirement Calculations'!J74,"") ->  | L94: =IFERROR('Retirement Calculations'!L74,"") ->  | M94: =IFERROR('Retirement Calculations'!M74,"") ->  | N94: =IFERROR('Retirement Calculations'!O74,"") ->  | O94: =IFERROR('Retirement Calculations'!P74,"") ->  | P94: =IFERROR('Retirement Calculations'!Q74,"") -> 
C95: =IFERROR('Retirement Calculations'!A75,"") ->  | D95: =IFERROR('Retirement Calculations'!B75,"") ->  | E95: =IFERROR('Retirement Calculations'!C75,"") ->  | F95: =IFERROR('Retirement Calculations'!D75,"") ->  | G95: =IFERROR('Retirement Calculations'!E75,"") ->  | H95: =IFERROR('Retirement Calculations'!G75,"") ->  | I95: =IFERROR('Retirement Calculations'!H75,"") ->  | J95: =IFERROR('Retirement Calculations'!I75,"") ->  | K95: =IFERROR('Retirement Calculations'!J75,"") ->  | L95: =IFERROR('Retirement Calculations'!L75,"") ->  | M95: =IFERROR('Retirement Calculations'!M75,"") ->  | N95: =IFERROR('Retirement Calculations'!O75,"") ->  | O95: =IFERROR('Retirement Calculations'!P75,"") ->  | P95: =IFERROR('Retirement Calculations'!Q75,"") -> 
C96: =IFERROR('Retirement Calculations'!A76,"") ->  | D96: =IFERROR('Retirement Calculations'!B76,"") ->  | E96: =IFERROR('Retirement Calculations'!C76,"") ->  | F96: =IFERROR('Retirement Calculations'!D76,"") ->  | G96: =IFERROR('Retirement Calculations'!E76,"") ->  | H96: =IFERROR('Retirement Calculations'!G76,"") ->  | I96: =IFERROR('Retirement Calculations'!H76,"") ->  | J96: =IFERROR('Retirement Calculations'!I76,"") ->  | K96: =IFERROR('Retirement Calculations'!J76,"") ->  | L96: =IFERROR('Retirement Calculations'!L76,"") ->  | M96: =IFERROR('Retirement Calculations'!M76,"") ->  | N96: =IFERROR('Retirement Calculations'!O76,"") ->  | O96: =IFERROR('Retirement Calculations'!P76,"") ->  | P96: =IFERROR('Retirement Calculations'!Q76,"") -> 
C97: =IFERROR('Retirement Calculations'!A77,"") ->  | D97: =IFERROR('Retirement Calculations'!B77,"") ->  | E97: =IFERROR('Retirement Calculations'!C77,"") ->  | F97: =IFERROR('Retirement Calculations'!D77,"") ->  | G97: =IFERROR('Retirement Calculations'!E77,"") ->  | H97: =IFERROR('Retirement Calculations'!G77,"") ->  | I97: =IFERROR('Retirement Calculations'!H77,"") ->  | J97: =IFERROR('Retirement Calculations'!I77,"") ->  | K97: =IFERROR('Retirement Calculations'!J77,"") ->  | L97: =IFERROR('Retirement Calculations'!L77,"") ->  | M97: =IFERROR('Retirement Calculations'!M77,"") ->  | N97: =IFERROR('Retirement Calculations'!O77,"") ->  | O97: =IFERROR('Retirement Calculations'!P77,"") ->  | P97: =IFERROR('Retirement Calculations'!Q77,"") -> 
C98: =IFERROR('Retirement Calculations'!A78,"") ->  | D98: =IFERROR('Retirement Calculations'!B78,"") ->  | E98: =IFERROR('Retirement Calculations'!C78,"") ->  | F98: =IFERROR('Retirement Calculations'!D78,"") ->  | G98: =IFERROR('Retirement Calculations'!E78,"") ->  | H98: =IFERROR('Retirement Calculations'!G78,"") ->  | I98: =IFERROR('Retirement Calculations'!H78,"") ->  | J98: =IFERROR('Retirement Calculations'!I78,"") ->  | K98: =IFERROR('Retirement Calculations'!J78,"") ->  | L98: =IFERROR('Retirement Calculations'!L78,"") ->  | M98: =IFERROR('Retirement Calculations'!M78,"") ->  | N98: =IFERROR('Retirement Calculations'!O78,"") ->  | O98: =IFERROR('Retirement Calculations'!P78,"") ->  | P98: =IFERROR('Retirement Calculations'!Q78,"") -> 
C99: =IFERROR('Retirement Calculations'!A79,"") ->  | D99: =IFERROR('Retirement Calculations'!B79,"") ->  | E99: =IFERROR('Retirement Calculations'!C79,"") ->  | F99: =IFERROR('Retirement Calculations'!D79,"") ->  | G99: =IFERROR('Retirement Calculations'!E79,"") ->  | H99: =IFERROR('Retirement Calculations'!G79,"") ->  | I99: =IFERROR('Retirement Calculations'!H79,"") ->  | J99: =IFERROR('Retirement Calculations'!I79,"") ->  | K99: =IFERROR('Retirement Calculations'!J79,"") ->  | L99: =IFERROR('Retirement Calculations'!L79,"") ->  | M99: =IFERROR('Retirement Calculations'!M79,"") ->  | N99: =IFERROR('Retirement Calculations'!O79,"") ->  | O99: =IFERROR('Retirement Calculations'!P79,"") ->  | P99: =IFERROR('Retirement Calculations'!Q79,"") -> 
C100: =IFERROR('Retirement Calculations'!A80,"") ->  | D100: =IFERROR('Retirement Calculations'!B80,"") ->  | E100: =IFERROR('Retirement Calculations'!C80,"") ->  | F100: =IFERROR('Retirement Calculations'!D80,"") ->  | G100: =IFERROR('Retirement Calculations'!E80,"") ->  | H100: =IFERROR('Retirement Calculations'!G80,"") ->  | I100: =IFERROR('Retirement Calculations'!H80,"") ->  | J100: =IFERROR('Retirement Calculations'!I80,"") ->  | K100: =IFERROR('Retirement Calculations'!J80,"") ->  | L100: =IFERROR('Retirement Calculations'!L80,"") ->  | M100: =IFERROR('Retirement Calculations'!M80,"") ->  | N100: =IFERROR('Retirement Calculations'!O80,"") ->  | O100: =IFERROR('Retirement Calculations'!P80,"") ->  | P100: =IFERROR('Retirement Calculations'!Q80,"") -> 
C101: =IFERROR('Retirement Calculations'!A81,"") ->  | D101: =IFERROR('Retirement Calculations'!B81,"") ->  | E101: =IFERROR('Retirement Calculations'!C81,"") ->  | F101: =IFERROR('Retirement Calculations'!D81,"") ->  | G101: =IFERROR('Retirement Calculations'!E81,"") ->  | H101: =IFERROR('Retirement Calculations'!G81,"") ->  | I101: =IFERROR('Retirement Calculations'!H81,"") ->  | J101: =IFERROR('Retirement Calculations'!I81,"") ->  | K101: =IFERROR('Retirement Calculations'!J81,"") ->  | L101: =IFERROR('Retirement Calculations'!L81,"") ->  | M101: =IFERROR('Retirement Calculations'!M81,"") ->  | N101: =IFERROR('Retirement Calculations'!O81,"") ->  | O101: =IFERROR('Retirement Calculations'!P81,"") ->  | P101: =IFERROR('Retirement Calculations'!Q81,"") -> 
C102: =IFERROR('Retirement Calculations'!A82,"") ->  | D102: =IFERROR('Retirement Calculations'!B82,"") ->  | E102: =IFERROR('Retirement Calculations'!C82,"") ->  | F102: =IFERROR('Retirement Calculations'!D82,"") ->  | G102: =IFERROR('Retirement Calculations'!E82,"") ->  | H102: =IFERROR('Retirement Calculations'!G82,"") ->  | I102: =IFERROR('Retirement Calculations'!H82,"") ->  | J102: =IFERROR('Retirement Calculations'!I82,"") ->  | K102: =IFERROR('Retirement Calculations'!J82,"") ->  | L102: =IFERROR('Retirement Calculations'!L82,"") ->  | M102: =IFERROR('Retirement Calculations'!M82,"") ->  | N102: =IFERROR('Retirement Calculations'!O82,"") ->  | O102: =IFERROR('Retirement Calculations'!P82,"") ->  | P102: =IFERROR('Retirement Calculations'!Q82,"") -> 
C103: =IFERROR('Retirement Calculations'!A83,"") ->  | D103: =IFERROR('Retirement Calculations'!B83,"") ->  | E103: =IFERROR('Retirement Calculations'!C83,"") ->  | F103: =IFERROR('Retirement Calculations'!D83,"") ->  | G103: =IFERROR('Retirement Calculations'!E83,"") ->  | H103: =IFERROR('Retirement Calculations'!G83,"") ->  | I103: =IFERROR('Retirement Calculations'!H83,"") ->  | J103: =IFERROR('Retirement Calculations'!I83,"") ->  | K103: =IFERROR('Retirement Calculations'!J83,"") ->  | L103: =IFERROR('Retirement Calculations'!L83,"") ->  | M103: =IFERROR('Retirement Calculations'!M83,"") ->  | N103: =IFERROR('Retirement Calculations'!O83,"") ->  | O103: =IFERROR('Retirement Calculations'!P83,"") ->  | P103: =IFERROR('Retirement Calculations'!Q83,"") -> 
C104: =IFERROR('Retirement Calculations'!A84,"") ->  | D104: =IFERROR('Retirement Calculations'!B84,"") ->  | E104: =IFERROR('Retirement Calculations'!C84,"") ->  | F104: =IFERROR('Retirement Calculations'!D84,"") ->  | G104: =IFERROR('Retirement Calculations'!E84,"") ->  | H104: =IFERROR('Retirement Calculations'!G84,"") ->  | I104: =IFERROR('Retirement Calculations'!H84,"") ->  | J104: =IFERROR('Retirement Calculations'!I84,"") ->  | K104: =IFERROR('Retirement Calculations'!J84,"") ->  | L104: =IFERROR('Retirement Calculations'!L84,"") ->  | M104: =IFERROR('Retirement Calculations'!M84,"") ->  | N104: =IFERROR('Retirement Calculations'!O84,"") ->  | O104: =IFERROR('Retirement Calculations'!P84,"") ->  | P104: =IFERROR('Retirement Calculations'!Q84,"") -> 
C105: =IFERROR('Retirement Calculations'!A85,"") ->  | D105: =IFERROR('Retirement Calculations'!B85,"") ->  | E105: =IFERROR('Retirement Calculations'!C85,"") ->  | F105: =IFERROR('Retirement Calculations'!D85,"") ->  | G105: =IFERROR('Retirement Calculations'!E85,"") ->  | H105: =IFERROR('Retirement Calculations'!G85,"") ->  | I105: =IFERROR('Retirement Calculations'!H85,"") ->  | J105: =IFERROR('Retirement Calculations'!I85,"") ->  | K105: =IFERROR('Retirement Calculations'!J85,"") ->  | L105: =IFERROR('Retirement Calculations'!L85,"") ->  | M105: =IFERROR('Retirement Calculations'!M85,"") ->  | N105: =IFERROR('Retirement Calculations'!O85,"") ->  | O105: =IFERROR('Retirement Calculations'!P85,"") ->  | P105: =IFERROR('Retirement Calculations'!Q85,"") -> 
C106: =IFERROR('Retirement Calculations'!A86,"") ->  | D106: =IFERROR('Retirement Calculations'!B86,"") ->  | E106: =IFERROR('Retirement Calculations'!C86,"") ->  | F106: =IFERROR('Retirement Calculations'!D86,"") ->  | G106: =IFERROR('Retirement Calculations'!E86,"") ->  | H106: =IFERROR('Retirement Calculations'!G86,"") ->  | I106: =IFERROR('Retirement Calculations'!H86,"") ->  | J106: =IFERROR('Retirement Calculations'!I86,"") ->  | K106: =IFERROR('Retirement Calculations'!J86,"") ->  | L106: =IFERROR('Retirement Calculations'!L86,"") ->  | M106: =IFERROR('Retirement Calculations'!M86,"") ->  | N106: =IFERROR('Retirement Calculations'!O86,"") ->  | O106: =IFERROR('Retirement Calculations'!P86,"") ->  | P106: =IFERROR('Retirement Calculations'!Q86,"") -> 
C107: =IFERROR('Retirement Calculations'!A87,"") ->  | D107: =IFERROR('Retirement Calculations'!B87,"") ->  | E107: =IFERROR('Retirement Calculations'!C87,"") ->  | F107: =IFERROR('Retirement Calculations'!D87,"") ->  | G107: =IFERROR('Retirement Calculations'!E87,"") ->  | H107: =IFERROR('Retirement Calculations'!G87,"") ->  | I107: =IFERROR('Retirement Calculations'!H87,"") ->  | J107: =IFERROR('Retirement Calculations'!I87,"") ->  | K107: =IFERROR('Retirement Calculations'!J87,"") ->  | L107: =IFERROR('Retirement Calculations'!L87,"") ->  | M107: =IFERROR('Retirement Calculations'!M87,"") ->  | N107: =IFERROR('Retirement Calculations'!O87,"") ->  | O107: =IFERROR('Retirement Calculations'!P87,"") ->  | P107: =IFERROR('Retirement Calculations'!Q87,"") -> 
C108: =IFERROR('Retirement Calculations'!A88,"") ->  | D108: =IFERROR('Retirement Calculations'!B88,"") ->  | E108: =IFERROR('Retirement Calculations'!C88,"") ->  | F108: =IFERROR('Retirement Calculations'!D88,"") ->  | G108: =IFERROR('Retirement Calculations'!E88,"") ->  | H108: =IFERROR('Retirement Calculations'!G88,"") ->  | I108: =IFERROR('Retirement Calculations'!H88,"") ->  | J108: =IFERROR('Retirement Calculations'!I88,"") ->  | K108: =IFERROR('Retirement Calculations'!J88,"") ->  | L108: =IFERROR('Retirement Calculations'!L88,"") ->  | M108: =IFERROR('Retirement Calculations'!M88,"") ->  | N108: =IFERROR('Retirement Calculations'!O88,"") ->  | O108: =IFERROR('Retirement Calculations'!P88,"") ->  | P108: =IFERROR('Retirement Calculations'!Q88,"") -> 
C109: =IFERROR('Retirement Calculations'!A89,"") ->  | D109: =IFERROR('Retirement Calculations'!B89,"") ->  | E109: =IFERROR('Retirement Calculations'!C89,"") ->  | F109: =IFERROR('Retirement Calculations'!D89,"") ->  | G109: =IFERROR('Retirement Calculations'!E89,"") ->  | H109: =IFERROR('Retirement Calculations'!G89,"") ->  | I109: =IFERROR('Retirement Calculations'!H89,"") ->  | J109: =IFERROR('Retirement Calculations'!I89,"") ->  | K109: =IFERROR('Retirement Calculations'!J89,"") ->  | L109: =IFERROR('Retirement Calculations'!L89,"") ->  | M109: =IFERROR('Retirement Calculations'!M89,"") ->  | N109: =IFERROR('Retirement Calculations'!O89,"") ->  | O109: =IFERROR('Retirement Calculations'!P89,"") ->  | P109: =IFERROR('Retirement Calculations'!Q89,"") -> 
C110: =IFERROR('Retirement Calculations'!A90,"") ->  | D110: =IFERROR('Retirement Calculations'!B90,"") ->  | E110: =IFERROR('Retirement Calculations'!C90,"") ->  | F110: =IFERROR('Retirement Calculations'!D90,"") ->  | G110: =IFERROR('Retirement Calculations'!E90,"") ->  | H110: =IFERROR('Retirement Calculations'!G90,"") ->  | I110: =IFERROR('Retirement Calculations'!H90,"") ->  | J110: =IFERROR('Retirement Calculations'!I90,"") ->  | K110: =IFERROR('Retirement Calculations'!J90,"") ->  | L110: =IFERROR('Retirement Calculations'!L90,"") ->  | M110: =IFERROR('Retirement Calculations'!M90,"") ->  | N110: =IFERROR('Retirement Calculations'!O90,"") ->  | O110: =IFERROR('Retirement Calculations'!P90,"") ->  | P110: =IFERROR('Retirement Calculations'!Q90,"") -> 
C111: =IFERROR('Retirement Calculations'!A91,"") ->  | D111: =IFERROR('Retirement Calculations'!B91,"") ->  | E111: =IFERROR('Retirement Calculations'!C91,"") ->  | F111: =IFERROR('Retirement Calculations'!D91,"") ->  | G111: =IFERROR('Retirement Calculations'!E91,"") ->  | H111: =IFERROR('Retirement Calculations'!G91,"") ->  | I111: =IFERROR('Retirement Calculations'!H91,"") ->  | J111: =IFERROR('Retirement Calculations'!I91,"") ->  | K111: =IFERROR('Retirement Calculations'!J91,"") ->  | L111: =IFERROR('Retirement Calculations'!L91,"") ->  | M111: =IFERROR('Retirement Calculations'!M91,"") ->  | N111: =IFERROR('Retirement Calculations'!O91,"") ->  | O111: =IFERROR('Retirement Calculations'!P91,"") ->  | P111: =IFERROR('Retirement Calculations'!Q91,"") -> 
C112: =IFERROR('Retirement Calculations'!A92,"") ->  | D112: =IFERROR('Retirement Calculations'!B92,"") ->  | E112: =IFERROR('Retirement Calculations'!C92,"") ->  | F112: =IFERROR('Retirement Calculations'!D92,"") ->  | G112: =IFERROR('Retirement Calculations'!E92,"") ->  | H112: =IFERROR('Retirement Calculations'!G92,"") ->  | I112: =IFERROR('Retirement Calculations'!H92,"") ->  | J112: =IFERROR('Retirement Calculations'!I92,"") ->  | K112: =IFERROR('Retirement Calculations'!J92,"") ->  | L112: =IFERROR('Retirement Calculations'!L92,"") ->  | M112: =IFERROR('Retirement Calculations'!M92,"") ->  | N112: =IFERROR('Retirement Calculations'!O92,"") ->  | O112: =IFERROR('Retirement Calculations'!P92,"") ->  | P112: =IFERROR('Retirement Calculations'!Q92,"") -> 
C113: =IFERROR('Retirement Calculations'!A93,"") ->  | D113: =IFERROR('Retirement Calculations'!B93,"") ->  | E113: =IFERROR('Retirement Calculations'!C93,"") ->  | F113: =IFERROR('Retirement Calculations'!D93,"") ->  | G113: =IFERROR('Retirement Calculations'!E93,"") ->  | H113: =IFERROR('Retirement Calculations'!G93,"") ->  | I113: =IFERROR('Retirement Calculations'!H93,"") ->  | J113: =IFERROR('Retirement Calculations'!I93,"") ->  | K113: =IFERROR('Retirement Calculations'!J93,"") ->  | L113: =IFERROR('Retirement Calculations'!L93,"") ->  | M113: =IFERROR('Retirement Calculations'!M93,"") ->  | N113: =IFERROR('Retirement Calculations'!O93,"") ->  | O113: =IFERROR('Retirement Calculations'!P93,"") ->  | P113: =IFERROR('Retirement Calculations'!Q93,"") -> 
C114: =IFERROR('Retirement Calculations'!A94,"") ->  | D114: =IFERROR('Retirement Calculations'!B94,"") ->  | E114: =IFERROR('Retirement Calculations'!C94,"") ->  | F114: =IFERROR('Retirement Calculations'!D94,"") ->  | G114: =IFERROR('Retirement Calculations'!E94,"") ->  | H114: =IFERROR('Retirement Calculations'!G94,"") ->  | I114: =IFERROR('Retirement Calculations'!H94,"") ->  | J114: =IFERROR('Retirement Calculations'!I94,"") ->  | K114: =IFERROR('Retirement Calculations'!J94,"") ->  | L114: =IFERROR('Retirement Calculations'!L94,"") ->  | M114: =IFERROR('Retirement Calculations'!M94,"") ->  | N114: =IFERROR('Retirement Calculations'!O94,"") ->  | O114: =IFERROR('Retirement Calculations'!P94,"") ->  | P114: =IFERROR('Retirement Calculations'!Q94,"") -> 
C115: =IFERROR('Retirement Calculations'!A95,"") ->  | D115: =IFERROR('Retirement Calculations'!B95,"") ->  | E115: =IFERROR('Retirement Calculations'!C95,"") ->  | F115: =IFERROR('Retirement Calculations'!D95,"") ->  | G115: =IFERROR('Retirement Calculations'!E95,"") ->  | H115: =IFERROR('Retirement Calculations'!G95,"") ->  | I115: =IFERROR('Retirement Calculations'!H95,"") ->  | J115: =IFERROR('Retirement Calculations'!I95,"") ->  | K115: =IFERROR('Retirement Calculations'!J95,"") ->  | L115: =IFERROR('Retirement Calculations'!L95,"") ->  | M115: =IFERROR('Retirement Calculations'!M95,"") ->  | N115: =IFERROR('Retirement Calculations'!O95,"") ->  | O115: =IFERROR('Retirement Calculations'!P95,"") ->  | P115: =IFERROR('Retirement Calculations'!Q95,"") -> 
C116: =IFERROR('Retirement Calculations'!A96,"") ->  | D116: =IFERROR('Retirement Calculations'!B96,"") ->  | E116: =IFERROR('Retirement Calculations'!C96,"") ->  | F116: =IFERROR('Retirement Calculations'!D96,"") ->  | G116: =IFERROR('Retirement Calculations'!E96,"") ->  | H116: =IFERROR('Retirement Calculations'!G96,"") ->  | I116: =IFERROR('Retirement Calculations'!H96,"") ->  | J116: =IFERROR('Retirement Calculations'!I96,"") ->  | K116: =IFERROR('Retirement Calculations'!J96,"") ->  | L116: =IFERROR('Retirement Calculations'!L96,"") ->  | M116: =IFERROR('Retirement Calculations'!M96,"") ->  | N116: =IFERROR('Retirement Calculations'!O96,"") ->  | O116: =IFERROR('Retirement Calculations'!P96,"") ->  | P116: =IFERROR('Retirement Calculations'!Q96,"") -> 
C117: =IFERROR('Retirement Calculations'!A97,"") ->  | D117: =IFERROR('Retirement Calculations'!B97,"") ->  | E117: =IFERROR('Retirement Calculations'!C97,"") ->  | F117: =IFERROR('Retirement Calculations'!D97,"") ->  | G117: =IFERROR('Retirement Calculations'!E97,"") ->  | H117: =IFERROR('Retirement Calculations'!G97,"") ->  | I117: =IFERROR('Retirement Calculations'!H97,"") ->  | J117: =IFERROR('Retirement Calculations'!I97,"") ->  | K117: =IFERROR('Retirement Calculations'!J97,"") ->  | L117: =IFERROR('Retirement Calculations'!L97,"") ->  | M117: =IFERROR('Retirement Calculations'!M97,"") ->  | N117: =IFERROR('Retirement Calculations'!O97,"") ->  | O117: =IFERROR('Retirement Calculations'!P97,"") ->  | P117: =IFERROR('Retirement Calculations'!Q97,"") -> 
C118: =IFERROR('Retirement Calculations'!A98,"") ->  | D118: =IFERROR('Retirement Calculations'!B98,"") ->  | E118: =IFERROR('Retirement Calculations'!C98,"") ->  | F118: =IFERROR('Retirement Calculations'!D98,"") ->  | G118: =IFERROR('Retirement Calculations'!E98,"") ->  | H118: =IFERROR('Retirement Calculations'!G98,"") ->  | I118: =IFERROR('Retirement Calculations'!H98,"") ->  | J118: =IFERROR('Retirement Calculations'!I98,"") ->  | K118: =IFERROR('Retirement Calculations'!J98,"") ->  | L118: =IFERROR('Retirement Calculations'!L98,"") ->  | M118: =IFERROR('Retirement Calculations'!M98,"") ->  | N118: =IFERROR('Retirement Calculations'!O98,"") ->  | O118: =IFERROR('Retirement Calculations'!P98,"") ->  | P118: =IFERROR('Retirement Calculations'!Q98,"") -> 
C119: =IFERROR('Retirement Calculations'!A99,"") ->  | D119: =IFERROR('Retirement Calculations'!B99,"") ->  | E119: =IFERROR('Retirement Calculations'!C99,"") ->  | F119: =IFERROR('Retirement Calculations'!D99,"") ->  | G119: =IFERROR('Retirement Calculations'!E99,"") ->  | H119: =IFERROR('Retirement Calculations'!G99,"") ->  | I119: =IFERROR('Retirement Calculations'!H99,"") ->  | J119: =IFERROR('Retirement Calculations'!I99,"") ->  | K119: =IFERROR('Retirement Calculations'!J99,"") ->  | L119: =IFERROR('Retirement Calculations'!L99,"") ->  | M119: =IFERROR('Retirement Calculations'!M99,"") ->  | N119: =IFERROR('Retirement Calculations'!O99,"") ->  | O119: =IFERROR('Retirement Calculations'!P99,"") ->  | P119: =IFERROR('Retirement Calculations'!Q99,"") -> 
C120: =IFERROR('Retirement Calculations'!A100,"") ->  | D120: =IFERROR('Retirement Calculations'!B100,"") ->  | E120: =IFERROR('Retirement Calculations'!C100,"") ->  | F120: =IFERROR('Retirement Calculations'!D100,"") ->  | G120: =IFERROR('Retirement Calculations'!E100,"") ->  | H120: =IFERROR('Retirement Calculations'!G100,"") ->  | I120: =IFERROR('Retirement Calculations'!H100,"") ->  | J120: =IFERROR('Retirement Calculations'!I100,"") ->  | K120: =IFERROR('Retirement Calculations'!J100,"") ->  | L120: =IFERROR('Retirement Calculations'!L100,"") ->  | M120: =IFERROR('Retirement Calculations'!M100,"") ->  | N120: =IFERROR('Retirement Calculations'!O100,"") ->  | O120: =IFERROR('Retirement Calculations'!P100,"") ->  | P120: =IFERROR('Retirement Calculations'!Q100,"") -> 
C121: =IFERROR('Retirement Calculations'!A101,"") ->  | D121: =IFERROR('Retirement Calculations'!B101,"") ->  | E121: =IFERROR('Retirement Calculations'!C101,"") ->  | F121: =IFERROR('Retirement Calculations'!D101,"") ->  | G121: =IFERROR('Retirement Calculations'!E101,"") ->  | H121: =IFERROR('Retirement Calculations'!G101,"") ->  | I121: =IFERROR('Retirement Calculations'!H101,"") ->  | J121: =IFERROR('Retirement Calculations'!I101,"") ->  | K121: =IFERROR('Retirement Calculations'!J101,"") ->  | L121: =IFERROR('Retirement Calculations'!L101,"") ->  | M121: =IFERROR('Retirement Calculations'!M101,"") ->  | N121: =IFERROR('Retirement Calculations'!O101,"") ->  | O121: =IFERROR('Retirement Calculations'!P101,"") ->  | P121: =IFERROR('Retirement Calculations'!Q101,"") -> 
C122: =IFERROR('Retirement Calculations'!A102,"") ->  | D122: =IFERROR('Retirement Calculations'!B102,"") ->  | E122: =IFERROR('Retirement Calculations'!C102,"") ->  | F122: =IFERROR('Retirement Calculations'!D102,"") ->  | G122: =IFERROR('Retirement Calculations'!E102,"") ->  | H122: =IFERROR('Retirement Calculations'!G102,"") ->  | I122: =IFERROR('Retirement Calculations'!H102,"") ->  | J122: =IFERROR('Retirement Calculations'!I102,"") ->  | K122: =IFERROR('Retirement Calculations'!J102,"") ->  | L122: =IFERROR('Retirement Calculations'!L102,"") ->  | M122: =IFERROR('Retirement Calculations'!M102,"") ->  | N122: =IFERROR('Retirement Calculations'!O102,"") ->  | O122: =IFERROR('Retirement Calculations'!P102,"") ->  | P122: =IFERROR('Retirement Calculations'!Q102,"") -> 
C123: =IFERROR('Retirement Calculations'!A103,"") ->  | D123: =IFERROR('Retirement Calculations'!B103,"") ->  | E123: =IFERROR('Retirement Calculations'!C103,"") ->  | F123: =IFERROR('Retirement Calculations'!D103,"") ->  | G123: =IFERROR('Retirement Calculations'!E103,"") ->  | H123: =IFERROR('Retirement Calculations'!G103,"") ->  | I123: =IFERROR('Retirement Calculations'!H103,"") ->  | J123: =IFERROR('Retirement Calculations'!I103,"") ->  | K123: =IFERROR('Retirement Calculations'!J103,"") ->  | L123: =IFERROR('Retirement Calculations'!L103,"") ->  | M123: =IFERROR('Retirement Calculations'!M103,"") ->  | N123: =IFERROR('Retirement Calculations'!O103,"") ->  | O123: =IFERROR('Retirement Calculations'!P103,"") ->  | P123: =IFERROR('Retirement Calculations'!Q103,"") -> 
C124: =IFERROR('Retirement Calculations'!A104,"") ->  | D124: =IFERROR('Retirement Calculations'!B104,"") ->  | E124: =IFERROR('Retirement Calculations'!C104,"") ->  | F124: =IFERROR('Retirement Calculations'!D104,"") ->  | G124: =IFERROR('Retirement Calculations'!E104,"") ->  | H124: =IFERROR('Retirement Calculations'!G104,"") ->  | I124: =IFERROR('Retirement Calculations'!H104,"") ->  | J124: =IFERROR('Retirement Calculations'!I104,"") ->  | K124: =IFERROR('Retirement Calculations'!J104,"") ->  | L124: =IFERROR('Retirement Calculations'!L104,"") ->  | M124: =IFERROR('Retirement Calculations'!M104,"") ->  | N124: =IFERROR('Retirement Calculations'!O104,"") ->  | O124: =IFERROR('Retirement Calculations'!P104,"") ->  | P124: =IFERROR('Retirement Calculations'!Q104,"") -> 
C125: =IFERROR('Retirement Calculations'!A105,"") ->  | D125: =IFERROR('Retirement Calculations'!B105,"") ->  | E125: =IFERROR('Retirement Calculations'!C105,"") ->  | F125: =IFERROR('Retirement Calculations'!D105,"") ->  | G125: =IFERROR('Retirement Calculations'!E105,"") ->  | H125: =IFERROR('Retirement Calculations'!G105,"") ->  | I125: =IFERROR('Retirement Calculations'!H105,"") ->  | J125: =IFERROR('Retirement Calculations'!I105,"") ->  | K125: =IFERROR('Retirement Calculations'!J105,"") ->  | L125: =IFERROR('Retirement Calculations'!L105,"") ->  | M125: =IFERROR('Retirement Calculations'!M105,"") ->  | N125: =IFERROR('Retirement Calculations'!O105,"") ->  | O125: =IFERROR('Retirement Calculations'!P105,"") ->  | P125: =IFERROR('Retirement Calculations'!Q105,"") -> 
C126: =IFERROR('Retirement Calculations'!A106,"") ->  | D126: =IFERROR('Retirement Calculations'!B106,"") ->  | E126: =IFERROR('Retirement Calculations'!C106,"") ->  | F126: =IFERROR('Retirement Calculations'!D106,"") ->  | G126: =IFERROR('Retirement Calculations'!E106,"") ->  | H126: =IFERROR('Retirement Calculations'!G106,"") ->  | I126: =IFERROR('Retirement Calculations'!H106,"") ->  | J126: =IFERROR('Retirement Calculations'!I106,"") ->  | K126: =IFERROR('Retirement Calculations'!J106,"") ->  | L126: =IFERROR('Retirement Calculations'!L106,"") ->  | M126: =IFERROR('Retirement Calculations'!M106,"") ->  | N126: =IFERROR('Retirement Calculations'!O106,"") ->  | O126: =IFERROR('Retirement Calculations'!P106,"") ->  | P126: =IFERROR('Retirement Calculations'!Q106,"") -> 
C127: =IFERROR('Retirement Calculations'!A107,"") ->  | D127: =IFERROR('Retirement Calculations'!B107,"") ->  | E127: =IFERROR('Retirement Calculations'!C107,"") ->  | F127: =IFERROR('Retirement Calculations'!D107,"") ->  | G127: =IFERROR('Retirement Calculations'!E107,"") ->  | H127: =IFERROR('Retirement Calculations'!G107,"") ->  | I127: =IFERROR('Retirement Calculations'!H107,"") ->  | J127: =IFERROR('Retirement Calculations'!I107,"") ->  | K127: =IFERROR('Retirement Calculations'!J107,"") ->  | L127: =IFERROR('Retirement Calculations'!L107,"") ->  | M127: =IFERROR('Retirement Calculations'!M107,"") ->  | N127: =IFERROR('Retirement Calculations'!O107,"") ->  | O127: =IFERROR('Retirement Calculations'!P107,"") ->  | P127: =IFERROR('Retirement Calculations'!Q107,"") -> 
C130: Row Labels | D130: Sum of Savings Balance | E130: Sum of Annual Income
C131: 65 | D131: 3000000 | E131: 220000
C132: 66 | D132: 3024300 | E132: 222972
C133: 67 | D133: 3047832.93 | E133: 225953.3172
C134: 68 | D134: 3070539.466 | E134: 228942.3786
C135: 69 | D135: 3092357.553 | E135: 231937.5181
C136: 70 | D136: 3113222.298 | E136: 234936.9722
C137: 71 | D137: 3133065.856 | E137: 237938.8762
C138: 72 | D138: 3151817.311 | E138: 240941.2592
C139: 73 | D139: 3169402.56 | E139: 243942.0405
C140: 74 | D140: 3185744.18 | E140: 246939.0241
C141: 75 | D141: 3200761.303 | E141: 249929.8941
C142: 76 | D142: 3214369.476 | E142: 252912.2099
C143: 77 | D143: 3226480.526 | E143: 255883.4005
C144: 78 | D144: 3237002.407 | E144: 258840.7593
C145: 79 | D145: 3245839.055 | E145: 261781.4385
C146: 80 | D146: 3252890.226 | E146: 264702.4429
C147: 81 | D147: 3258051.337 | E147: 267600.624
C148: 82 | D148: 3261213.297 | E148: 270472.6738
C149: 83 | D149: 3262262.329 | E149: 273315.1179
C150: 84 | D150: 3261079.79 | E150: 276124.3089
C151: 85 | D151: 3257541.986 | E151: 278896.419
C152: 86 | D152: 3251519.971 | E152: 281627.4332
C153: 87 | D153: 3242879.348 | E153: 284313.141
C154: 88 | D154: 3231480.059 | E154: 286949.1288
C155: 89 | D155: 3217176.169 | E155: 289530.7717
C156: 90 | D156: 3199815.635 | E156: 292053.2249
C157: Grand Total | D157: 82808645.07 | E157: 6679436.374

Sheet Retirement Calculations (hidden)
B1: Investments | G1: Annual Income | L1: Taxes
A2: Age | B2: Savings | C2: Investment Fees | D2: Return on Investments | E2: Net Investments | G2: Annual Withdrawal | H2: Pension | I2: SSA | J2: Total Income | L2: Federal Income Taxes | M2: State Income Taxes | O2: Income-Taxes | P2: Annual Expenses | Q2: Net Income
A3: ='Retirement Worksheet'!B6 -> 65 | B3: ='Retirement Worksheet'!B7 -> 3000000 | C3: =B3*'Retirement Worksheet'!$B$11 -> 7500 | D3: =B3*'Retirement Worksheet'!$B$16 -> 150000 | E3: =B3-C3+D3 -> 3142500 | G3: =B3*'Retirement Worksheet'!$B$8 -> 120000 | H3: ='Retirement Worksheet'!$B$13 -> 70000 | I3: ='Retirement Worksheet'!B12 -> 30000 | J3: =SUM(G3:I3) -> 220000 | L3: =SUM('Retirement Calculations'!G3:I3)*'Retirement Worksheet'!$B$9 -> 55000 | M3: =SUM(G3:I3)*'Retirement Worksheet'!$B$10 -> 13200 | O3: =SUM(G3:I3)-SUM(L3:M3) -> 151800 | P3: ='Retirement Worksheet'!$B$14 -> 150000 | Q3: =O3-P3 -> 1800
A4: =IF(A3<'Retirement Worksheet'!$B$5,A3+1,NA()) -> 66 | B4: =IF(ISERROR(A4),NA(),E3-G3+Q3) -> 3024300 | C4: =B4*'Retirement Worksheet'!$B$11 -> 7560.75 | D4: =B4*'Retirement Worksheet'!$B$16 -> 151215 | E4: =B4-C4+D4 -> 3167954.25 | G4: =B4*'Retirement Worksheet'!$B$8 -> 120972 | H4: =IF(ISERROR(A4),NA(),H3*(1+'Retirement Worksheet'!$B$15)) -> 71400 | I4: =IF(ISERROR(A4),NA(),I3*(1+'Retirement Worksheet'!$B$15)) -> 30600 | J4: =SUM(G4:I4) -> 222972 | L4: =SUM('Retirement Calculations'!G4:I4)*'Retirement Worksheet'!$B$9 -> 55743 | M4: =SUM(G4:I4)*'Retirement Worksheet'!$B$10 -> 13378.32 | O4: =SUM(G4:I4)-SUM(L4:M4) -> 153850.68 | P4: =IF(ISERROR(A4),NA(),P3*(1+'Retirement Worksheet'!$B$15)) -> 153000 | Q4: =O4-P4 -> 850.68
A5: =IF(A4<'Retirement Worksheet'!$B$5,A4+1,NA()) -> 67 | B5: =IF(ISERROR(A5),NA(),E4-G4+Q4) -> 3047832.93 | C5: =B5*'Retirement Worksheet'!$B$11 -> 7619.582325 | D5: =B5*'Retirement Worksheet'!$B$16 -> 152391.6465 | E5: =B5-C5+D5 -> 3192604.994 | G5: =B5*'Retirement Worksheet'!$B$8 -> 121913.3172 | H5: =IF(ISERROR(A5),NA(),H4*(1+'Retirement Worksheet'!$B$15)) -> 72828 | I5: =IF(ISERROR(A5),NA(),I4*(1+'Retirement Worksheet'!$B$15)) -> 31212 | J5: 225953.3172 | L5: =SUM('Retirement Calculations'!G5:I5)*'Retirement Worksheet'!$B$9 -> 56488.3293 | M5: =SUM(G5:I5)*'Retirement Worksheet'!$B$10 -> 13557.19903 | O5: =SUM(G5:I5)-SUM(L5:M5) -> 155907.7889 | P5: =IF(ISERROR(A5),NA(),P4*(1+'Retirement Worksheet'!$B$15)) -> 156060 | Q5: =O5-P5 -> -152.211132
A6: =IF(A5<'Retirement Worksheet'!$B$5,A5+1,NA()) -> 68 | B6: 3070539.466 | C6: =B6*'Retirement Worksheet'!$B$11 -> 7676.348665 | D6: =B6*'Retirement Worksheet'!$B$16 -> 153526.9733 | E6: =B6-C6+D6 -> 3216390.09 | G6: =B6*'Retirement Worksheet'!$B$8 -> 122821.5786 | H6: =IF(ISERROR(A6),NA(),H5*(1+'Retirement Worksheet'!$B$15)) -> 74284.56 | I6: =IF(ISERROR(A6),NA(),I5*(1+'Retirement Worksheet'!$B$15)) -> 31836.24 | J6: 228942.3786 | L6: =SUM('Retirement Calculations'!G6:I6)*'Retirement Worksheet'!$B$9 -> 57235.59466 | M6: =SUM(G6:I6)*'Retirement Worksheet'!$B$10 -> 13736.54272 | O6: =SUM(G6:I6)-SUM(L6:M6) -> 157970.2413 | P6: =IF(ISERROR(A6),NA(),P5*(1+'Retirement Worksheet'!$B$15)) -> 159181.2 | Q6: =O6-P6 -> -1210.958743
A7: =IF(A6<'Retirement Worksheet'!$B$5,A6+1,NA()) -> 69 | B7: 3092357.553 | C7: =B7*'Retirement Worksheet'!$B$11 -> 7730.893883 | D7: =B7*'Retirement Worksheet'!$B$16 -> 154617.8777 | E7: =B7-C7+D7 -> 3239244.537 | G7: =B7*'Retirement Worksheet'!$B$8 -> 123694.3021 | H7: =IF(ISERROR(A7),NA(),H6*(1+'Retirement Worksheet'!$B$15)) -> 75770.2512 | I7: =IF(ISERROR(A7),NA(),I6*(1+'Retirement Worksheet'!$B$15)) -> 32472.9648 | J7: 231937.5181 | L7: =SUM('Retirement Calculations'!G7:I7)*'Retirement Worksheet'!$B$9 -> 57984.37953 | M7: =SUM(G7:I7)*'Retirement Worksheet'!$B$10 -> 13916.25109 | O7: =SUM(G7:I7)-SUM(L7:M7) -> 160036.8875 | P7: =IF(ISERROR(A7),NA(),P6*(1+'Retirement Worksheet'!$B$15)) -> 162364.824 | Q7: =O7-P7 -> -2327.936495
A8: =IF(A7<'Retirement Worksheet'!$B$5,A7+1,NA()) -> 70 | B8: 3113222.298 | C8: =B8*'Retirement Worksheet'!$B$11 -> 7783.055746 | D8: =B8*'Retirement Worksheet'!$B$16 -> 155661.1149 | E8: 3261100.357 | G8: =B8*'Retirement Worksheet'!$B$8 -> 124528.8919 | H8: =IF(ISERROR(A8),NA(),H7*(1+'Retirement Worksheet'!$B$15)) -> 77285.65622 | I8: =IF(ISERROR(A8),NA(),I7*(1+'Retirement Worksheet'!$B$15)) -> 33122.4241 | J8: 234936.9722 | L8: =SUM('Retirement Calculations'!G8:I8)*'Retirement Worksheet'!$B$9 -> 58734.24306 | M8: =SUM(G8:I8)*'Retirement Worksheet'!$B$10 -> 14096.21833 | O8: 162106.5109 | P8: =IF(ISERROR(A8),NA(),P7*(1+'Retirement Worksheet'!$B$15)) -> 165612.1205 | Q8: -3505.609628
A9: =IF(A8<'Retirement Worksheet'!$B$5,A8+1,NA()) -> 71 | B9: 3133065.856 | C9: =B9*'Retirement Worksheet'!$B$11 -> 7832.66464 | D9: =B9*'Retirement Worksheet'!$B$16 -> 156653.2928 | E9: 3281886.484 | G9: =B9*'Retirement Worksheet'!$B$8 -> 125322.6342 | H9: =IF(ISERROR(A9),NA(),H8*(1+'Retirement Worksheet'!$B$15)) -> 78831.36935 | I9: =IF(ISERROR(A9),NA(),I8*(1+'Retirement Worksheet'!$B$15)) -> 33784.87258 | J9: 237938.8762 | L9: =SUM('Retirement Calculations'!G9:I9)*'Retirement Worksheet'!$B$9 -> 59484.71904 | M9: =SUM(G9:I9)*'Retirement Worksheet'!$B$10 -> 14276.33257 | O9: 164177.8246 | P9: =IF(ISERROR(A9),NA(),P8*(1+'Retirement Worksheet'!$B$15)) -> 168924.3629 | Q9: -4746.538339
A10: =IF(A9<'Retirement Worksheet'!$B$5,A9+1,NA()) -> 72 | B10: 3151817.311 | C10: =B10*'Retirement Worksheet'!$B$11 -> 7879.543279 | D10: =B10*'Retirement Worksheet'!$B$16 -> 157590.8656 | E10: 3301528.634 | G10: =B10*'Retirement Worksheet'!$B$8 -> 126072.6925 | H10: =IF(ISERROR(A10),NA(),H9*(1+'Retirement Worksheet'!$B$15)) -> 80407.99674 | I10: =IF(ISERROR(A10),NA(),I9*(1+'Retirement Worksheet'!$B$15)) -> 34460.57003 | J10: 240941.2592 | L10: =SUM('Retirement Calculations'!G10:I10)*'Retirement Worksheet'!$B$9 -> 60235.31481 | M10: =SUM(G10:I10)*'Retirement Worksheet'!$B$10 -> 14456.47555 | O10: 166249.4689 | P10: =IF(ISERROR(A10),NA(),P9*(1+'Retirement Worksheet'!$B$15)) -> 172302.8501 | Q10: -6053.381284
A11: =IF(A10<'Retirement Worksheet'!$B$5,A10+1,NA()) -> 73 | B11: 3169402.56 | C11: =B11*'Retirement Worksheet'!$B$11 -> 7923.5064 | D11: =B11*'Retirement Worksheet'!$B$16 -> 158470.128 | E11: 3319949.182 | G11: =B11*'Retirement Worksheet'!$B$8 -> 126776.1024 | H11: =IF(ISERROR(A11),NA(),H10*(1+'Retirement Worksheet'!$B$15)) -> 82016.15667 | I11: =IF(ISERROR(A11),NA(),I10*(1+'Retirement Worksheet'!$B$15)) -> 35149.78143 | J11: 243942.0405 | L11: =SUM('Retirement Calculations'!G11:I11)*'Retirement Worksheet'!$B$9 -> 60985.51012 | M11: =SUM(G11:I11)*'Retirement Worksheet'!$B$10 -> 14636.52243 | O11: 168320.0079 | P11: =IF(ISERROR(A11),NA(),P10*(1+'Retirement Worksheet'!$B$15)) -> 175748.9072 | Q11: -7428.899205
A12: =IF(A11<'Retirement Worksheet'!$B$5,A11+1,NA()) -> 74 | B12: 3185744.18 | C12: =B12*'Retirement Worksheet'!$B$11 -> 7964.36045 | D12: =B12*'Retirement Worksheet'!$B$16 -> 159287.209 | E12: 3337067.029 | G12: =B12*'Retirement Worksheet'!$B$8 -> 127429.7672 | H12: =IF(ISERROR(A12),NA(),H11*(1+'Retirement Worksheet'!$B$15)) -> 83656.4798 | I12: =IF(ISERROR(A12),NA(),I11*(1+'Retirement Worksheet'!$B$15)) -> 35852.77706 | J12: 246939.0241 | L12: =SUM('Retirement Calculations'!G12:I12)*'Retirement Worksheet'!$B$9 -> 61734.75602 | M12: =SUM(G12:I12)*'Retirement Worksheet'!$B$10 -> 14816.34144 | O12: 170387.9266 | P12: =IF(ISERROR(A12),NA(),P11*(1+'Retirement Worksheet'!$B$15)) -> 179263.8853 | Q12: -8875.958691
A13: =IF(A12<'Retirement Worksheet'!$B$5,A12+1,NA()) -> 75 | B13: 3200761.303 | C13: =B13*'Retirement Worksheet'!$B$11 -> 8001.903257 | D13: =B13*'Retirement Worksheet'!$B$16 -> 160038.0651 | E13: 3352797.465 | G13: =B13*'Retirement Worksheet'!$B$8 -> 128030.4521 | H13: =IF(ISERROR(A13),NA(),H12*(1+'Retirement Worksheet'!$B$15)) -> 85329.6094 | I13: =IF(ISERROR(A13),NA(),I12*(1+'Retirement Worksheet'!$B$15)) -> 36569.8326 | J13: 249929.8941 | L13: =SUM('Retirement Calculations'!G13:I13)*'Retirement Worksheet'!$B$9 -> 62482.47353 | M13: =SUM(G13:I13)*'Retirement Worksheet'!$B$10 -> 14995.79365 | O13: 172451.6269 | P13: =IF(ISERROR(A13),NA(),P12*(1+'Retirement Worksheet'!$B$15)) -> 182849.163 | Q13: -10397.53607
A14: =IF(A13<'Retirement Worksheet'!$B$5,A13+1,NA()) -> 76 | B14: 3214369.476 | C14: =B14*'Retirement Worksheet'!$B$11 -> 8035.923691 | D14: =B14*'Retirement Worksheet'!$B$16 -> 160718.4738 | E14: 3367052.026 | G14: =B14*'Retirement Worksheet'!$B$8 -> 128574.7791 | H14: =IF(ISERROR(A14),NA(),H13*(1+'Retirement Worksheet'!$B$15)) -> 87036.20159 | I14: =IF(ISERROR(A14),NA(),I13*(1+'Retirement Worksheet'!$B$15)) -> 37301.22925 | J14: 252912.2099 | L14: =SUM('Retirement Calculations'!G14:I14)*'Retirement Worksheet'!$B$9 -> 63228.05247 | M14: =SUM(G14:I14)*'Retirement Worksheet'!$B$10 -> 15174.73259 | O14: 174509.4248 | P14: =IF(ISERROR(A14),NA(),P13*(1+'Retirement Worksheet'!$B$15)) -> 186506.1463 | Q14: -11996.72143
A15: =IF(A14<'Retirement Worksheet'!$B$5,A14+1,NA()) -> 77 | B15: 3226480.526 | C15: =B15*'Retirement Worksheet'!$B$11 -> 8066.201315 | D15: =B15*'Retirement Worksheet'!$B$16 -> 161324.0263 | E15: 3379738.351 | G15: =B15*'Retirement Worksheet'!$B$8 -> 129059.221 | H15: =IF(ISERROR(A15),NA(),H14*(1+'Retirement Worksheet'!$B$15)) -> 88776.92562 | I15: =IF(ISERROR(A15),NA(),I14*(1+'Retirement Worksheet'!$B$15)) -> 38047.25384 | J15: 255883.4005 | L15: =SUM('Retirement Calculations'!G15:I15)*'Retirement Worksheet'!$B$9 -> 63970.85012 | M15: =SUM(G15:I15)*'Retirement Worksheet'!$B$10 -> 15353.00403 | O15: 176559.5463 | P15: =IF(ISERROR(A15),NA(),P14*(1+'Retirement Worksheet'!$B$15)) -> 190236.2692 | Q15: -13676.72284
A16: =IF(A15<'Retirement Worksheet'!$B$5,A15+1,NA()) -> 78 | B16: 3237002.407 | C16: =B16*'Retirement Worksheet'!$B$11 -> 8092.506018 | D16: =B16*'Retirement Worksheet'!$B$16 -> 161850.1204 | E16: 3390760.021 | G16: =B16*'Retirement Worksheet'!$B$8 -> 129480.0963 | H16: =IF(ISERROR(A16),NA(),H15*(1+'Retirement Worksheet'!$B$15)) -> 90552.46413 | I16: =IF(ISERROR(A16),NA(),I15*(1+'Retirement Worksheet'!$B$15)) -> 38808.19891 | J16: 258840.7593 | L16: =SUM('Retirement Calculations'!G16:I16)*'Retirement Worksheet'!$B$9 -> 64710.18983 | M16: =SUM(G16:I16)*'Retirement Worksheet'!$B$10 -> 15530.44556 | O16: 178600.1239 | P16: =IF(ISERROR(A16),NA(),P15*(1+'Retirement Worksheet'!$B$15)) -> 194040.9946 | Q16: -15440.87063
A17: =IF(A16<'Retirement Worksheet'!$B$5,A16+1,NA()) -> 79 | B17: 3245839.055 | C17: =B17*'Retirement Worksheet'!$B$11 -> 8114.597636 | D17: =B17*'Retirement Worksheet'!$B$16 -> 162291.9527 | E17: 3400016.41 | G17: =B17*'Retirement Worksheet'!$B$8 -> 129833.5622 | H17: =IF(ISERROR(A17),NA(),H16*(1+'Retirement Worksheet'!$B$15)) -> 92363.51341 | I17: =IF(ISERROR(A17),NA(),I16*(1+'Retirement Worksheet'!$B$15)) -> 39584.36289 | J17: 261781.4385 | L17: =SUM('Retirement Calculations'!G17:I17)*'Retirement Worksheet'!$B$9 -> 65445.35962 | M17: =SUM(G17:I17)*'Retirement Worksheet'!$B$10 -> 15706.88631 | O17: 180629.1926 | P17: =IF(ISERROR(A17),NA(),P16*(1+'Retirement Worksheet'!$B$15)) -> 197921.8145 | Q17: -17292.6219
A18: =IF(A17<'Retirement Worksheet'!$B$5,A17+1,NA()) -> 80 | B18: 3252890.226 | C18: =B18*'Retirement Worksheet'!$B$11 -> 8132.225564 | D18: =B18*'Retirement Worksheet'!$B$16 -> 162644.5113 | E18: 3407402.511 | G18: =B18*'Retirement Worksheet'!$B$8 -> 130115.609 | H18: =IF(ISERROR(A18),NA(),H17*(1+'Retirement Worksheet'!$B$15)) -> 94210.78368 | I18: =IF(ISERROR(A18),NA(),I17*(1+'Retirement Worksheet'!$B$15)) -> 40376.05015 | J18: 264702.4429 | L18: =SUM('Retirement Calculations'!G18:I18)*'Retirement Worksheet'!$B$9 -> 66175.61071 | M18: =SUM(G18:I18)*'Retirement Worksheet'!$B$10 -> 15882.14657 | O18: 182644.6856 | P18: =IF(ISERROR(A18),NA(),P17*(1+'Retirement Worksheet'!$B$15)) -> 201880.2507 | Q18: -19235.56518
A19: =IF(A18<'Retirement Worksheet'!$B$5,A18+1,NA()) -> 81 | B19: 3258051.337 | C19: =B19*'Retirement Worksheet'!$B$11 -> 8145.128343 | D19: =B19*'Retirement Worksheet'!$B$16 -> 162902.5669 | E19: 3412808.776 | G19: =B19*'Retirement Worksheet'!$B$8 -> 130322.0535 | H19: =IF(ISERROR(A19),NA(),H18*(1+'Retirement Worksheet'!$B$15)) -> 96094.99936 | I19: =IF(ISERROR(A19),NA(),I18*(1+'Retirement Worksheet'!$B$15)) -> 41183.57115 | J19: 267600.624 | L19: =SUM('Retirement Calculations'!G19:I19)*'Retirement Worksheet'!$B$9 -> 66900.156 | M19: =SUM(G19:I19)*'Retirement Worksheet'!$B$10 -> 16056.03744 | O19: 184644.4306 | P19: =IF(ISERROR(A19),NA(),P18*(1+'Retirement Worksheet'!$B$15)) -> 205917.8558 | Q19: -21273.42521
A20: =IF(A19<'Retirement Worksheet'!$B$5,A19+1,NA()) -> 82 | B20: 3261213.297 | C20: =B20*'Retirement Worksheet'!$B$11 -> 8153.033242 | D20: =B20*'Retirement Worksheet'!$B$16 -> 163060.6648 | E20: 3416120.928 | G20: =B20*'Retirement Worksheet'!$B$8 -> 130448.5319 | H20: =IF(ISERROR(A20),NA(),H19*(1+'Retirement Worksheet'!$B$15)) -> 98016.89934 | I20: =IF(ISERROR(A20),NA(),I19*(1+'Retirement Worksheet'!$B$15)) -> 42007.24258 | J20: 270472.6738 | L20: =SUM('Retirement Calculations'!G20:I20)*'Retirement Worksheet'!$B$9 -> 67618.16845 | M20: =SUM(G20:I20)*'Retirement Worksheet'!$B$10 -> 16228.36043 | O20: 186626.1449 | P20: =IF(ISERROR(A20),NA(),P19*(1+'Retirement Worksheet'!$B$15)) -> 210036.2129 | Q20: -23410.06796
A21: =IF(A20<'Retirement Worksheet'!$B$5,A20+1,NA()) -> 83 | B21: 3262262.329 | C21: =B21*'Retirement Worksheet'!$B$11 -> 8155.655822 | D21: =B21*'Retirement Worksheet'!$B$16 -> 163113.1164 | E21: 3417219.789 | G21: =B21*'Retirement Worksheet'!$B$8 -> 130490.4931 | H21: =IF(ISERROR(A21),NA(),H20*(1+'Retirement Worksheet'!$B$15)) -> 99977.23733 | I21: =IF(ISERROR(A21),NA(),I20*(1+'Retirement Worksheet'!$B$15)) -> 42847.38743 | J21: 273315.1179 | L21: =SUM('Retirement Calculations'!G21:I21)*'Retirement Worksheet'!$B$9 -> 68328.77948 | M21: =SUM(G21:I21)*'Retirement Worksheet'!$B$10 -> 16398.90707 | O21: 188587.4314 | P21: =IF(ISERROR(A21),NA(),P20*(1+'Retirement Worksheet'!$B$15)) -> 214236.9371 | Q21: -25649.50578
A22: =IF(A21<'Retirement Worksheet'!$B$5,A21+1,NA()) -> 84 | B22: 3261079.79 | C22: =B22*'Retirement Worksheet'!$B$11 -> 8152.699476 | D22: =B22*'Retirement Worksheet'!$B$16 -> 163053.9895 | E22: 3415981.08 | G22: =B22*'Retirement Worksheet'!$B$8 -> 130443.1916 | H22: =IF(ISERROR(A22),NA(),H21*(1+'Retirement Worksheet'!$B$15)) -> 101976.7821 | I22: =IF(ISERROR(A22),NA(),I21*(1+'Retirement Worksheet'!$B$15)) -> 43704.33518 | J22: 276124.3089 | L22: =SUM('Retirement Calculations'!G22:I22)*'Retirement Worksheet'!$B$9 -> 69031.07722 | M22: =SUM(G22:I22)*'Retirement Worksheet'!$B$10 -> 16567.45853 | O22: 190525.7731 | P22: =IF(ISERROR(A22),NA(),P21*(1+'Retirement Worksheet'!$B$15)) -> 218521.6759 | Q22: -27995.90276
A23: =IF(A22<'Retirement Worksheet'!$B$5,A22+1,NA()) -> 85 | B23: 3257541.986 | C23: =B23*'Retirement Worksheet'!$B$11 -> 8143.854965 | D23: =B23*'Retirement Worksheet'!$B$16 -> 162877.0993 | E23: 3412275.23 | G23: =B23*'Retirement Worksheet'!$B$8 -> 130301.6794 | H23: =IF(ISERROR(A23),NA(),H22*(1+'Retirement Worksheet'!$B$15)) -> 104016.3177 | I23: =IF(ISERROR(A23),NA(),I22*(1+'Retirement Worksheet'!$B$15)) -> 44578.42188 | J23: 278896.419 | L23: =SUM('Retirement Calculations'!G23:I23)*'Retirement Worksheet'!$B$9 -> 69724.10476 | M23: =SUM(G23:I23)*'Retirement Worksheet'!$B$10 -> 16733.78514 | O23: 192438.5291 | P23: =IF(ISERROR(A23),NA(),P22*(1+'Retirement Worksheet'!$B$15)) -> 222892.1094 | Q23: -30453.58026
A24: =IF(A23<'Retirement Worksheet'!$B$5,A23+1,NA()) -> 86 | B24: 3251519.971 | C24: =B24*'Retirement Worksheet'!$B$11 -> 8128.799926 | D24: =B24*'Retirement Worksheet'!$B$16 -> 162575.9985 | E24: 3405967.169 | G24: =B24*'Retirement Worksheet'!$B$8 -> 130060.7988 | H24: =IF(ISERROR(A24),NA(),H23*(1+'Retirement Worksheet'!$B$15)) -> 106096.6441 | I24: =IF(ISERROR(A24),NA(),I23*(1+'Retirement Worksheet'!$B$15)) -> 45469.99032 | J24: 281627.4332 | L24: =SUM('Retirement Calculations'!G24:I24)*'Retirement Worksheet'!$B$9 -> 70406.8583 | M24: =SUM(G24:I24)*'Retirement Worksheet'!$B$10 -> 16897.64599 | O24: 194322.9289 | P24: =IF(ISERROR(A24),NA(),P23*(1+'Retirement Worksheet'!$B$15)) -> 227349.9516 | Q24: -33027.02267
A25: =IF(A24<'Retirement Worksheet'!$B$5,A24+1,NA()) -> 87 | B25: 3242879.348 | C25: =B25*'Retirement Worksheet'!$B$11 -> 8107.198369 | D25: =B25*'Retirement Worksheet'!$B$16 -> 162143.9674 | E25: 3396916.117 | G25: =B25*'Retirement Worksheet'!$B$8 -> 129715.1739 | H25: =IF(ISERROR(A25),NA(),H24*(1+'Retirement Worksheet'!$B$15)) -> 108218.577 | I25: =IF(ISERROR(A25),NA(),I24*(1+'Retirement Worksheet'!$B$15)) -> 46379.39012 | J25: 284313.141 | L25: =SUM('Retirement Calculations'!G25:I25)*'Retirement Worksheet'!$B$9 -> 71078.28525 | M25: =SUM(G25:I25)*'Retirement Worksheet'!$B$10 -> 17058.78846 | O25: 196176.0673 | P25: =IF(ISERROR(A25),NA(),P24*(1+'Retirement Worksheet'!$B$15)) -> 231896.9506 | Q25: -35720.88334
A26: =IF(A25<'Retirement Worksheet'!$B$5,A25+1,NA()) -> 88 | B26: 3231480.059 | C26: =B26*'Retirement Worksheet'!$B$11 -> 8078.700149 | D26: =B26*'Retirement Worksheet'!$B$16 -> 161574.003 | E26: 3384975.362 | G26: =B26*'Retirement Worksheet'!$B$8 -> 129259.2024 | H26: =IF(ISERROR(A26),NA(),H25*(1+'Retirement Worksheet'!$B$15)) -> 110382.9485 | I26: =IF(ISERROR(A26),NA(),I25*(1+'Retirement Worksheet'!$B$15)) -> 47306.97793 | J26: 286949.1288 | L26: =SUM('Retirement Calculations'!G26:I26)*'Retirement Worksheet'!$B$9 -> 71737.2822 | M26: =SUM(G26:I26)*'Retirement Worksheet'!$B$10 -> 17216.94773 | O26: 197994.8989 | P26: =IF(ISERROR(A26),NA(),P25*(1+'Retirement Worksheet'!$B$15)) -> 236534.8896 | Q26: -38539.99076
A27: =IF(A26<'Retirement Worksheet'!$B$5,A26+1,NA()) -> 89 | B27: 3217176.169 | C27: =B27*'Retirement Worksheet'!$B$11 -> 8042.940423 | D27: =B27*'Retirement Worksheet'!$B$16 -> 160858.8085 | E27: 3369992.037 | G27: =B27*'Retirement Worksheet'!$B$8 -> 128687.0468 | H27: =IF(ISERROR(A27),NA(),H26*(1+'Retirement Worksheet'!$B$15)) -> 112590.6075 | I27: =IF(ISERROR(A27),NA(),I26*(1+'Retirement Worksheet'!$B$15)) -> 48253.11748 | J27: 289530.7717 | L27: =SUM('Retirement Calculations'!G27:I27)*'Retirement Worksheet'!$B$9 -> 72382.69293 | M27: =SUM(G27:I27)*'Retirement Worksheet'!$B$10 -> 17371.8463 | O27: 199776.2325 | P27: =IF(ISERROR(A27),NA(),P26*(1+'Retirement Worksheet'!$B$15)) -> 241265.5874 | Q27: -41489.35494
A28: =IF(A27<'Retirement Worksheet'!$B$5,A27+1,NA()) -> 90 | B28: 3199815.635 | C28: =B28*'Retirement Worksheet'!$B$11 -> 7999.539089 | D28: =B28*'Retirement Worksheet'!$B$16 -> 159990.7818 | E28: 3351806.878 | G28: =B28*'Retirement Worksheet'!$B$8 -> 127992.6254 | H28: =IF(ISERROR(A28),NA(),H27*(1+'Retirement Worksheet'!$B$15)) -> 114842.4196 | I28: =IF(ISERROR(A28),NA(),I27*(1+'Retirement Worksheet'!$B$15)) -> 49218.17983 | J28: 292053.2249 | L28: =SUM('Retirement Calculations'!G28:I28)*'Retirement Worksheet'!$B$9 -> 73013.30622 | M28: =SUM(G28:I28)*'Retirement Worksheet'!$B$10 -> 17523.19349 | O28: 201516.7252 | P28: =IF(ISERROR(A28),NA(),P27*(1+'Retirement Worksheet'!$B$15)) -> 246090.8992 | Q28: -44574.17401
A29: =IF(A28<'Retirement Worksheet'!$B$5,A28+1,NA()) ->  | C29: =B29*'Retirement Worksheet'!$B$11 ->  | D29: =B29*'Retirement Worksheet'!$B$16 ->  | G29: =B29*'Retirement Worksheet'!$B$8 ->  | H29: =IF(ISERROR(A29),NA(),H28*(1+'Retirement Worksheet'!$B$15)) ->  | I29: =IF(ISERROR(A29),NA(),I28*(1+'Retirement Worksheet'!$B$15)) ->  | L29: =SUM('Retirement Calculations'!G29:I29)*'Retirement Worksheet'!$B$9 ->  | M29: =SUM(G29:I29)*'Retirement Worksheet'!$B$10 ->  | P29: =IF(ISERROR(A29),NA(),P28*(1+'Retirement Worksheet'!$B$15)) -> 
A30: =IF(A29<'Retirement Worksheet'!$B$5,A29+1,NA()) ->  | C30: =B30*'Retirement Worksheet'!$B$11 ->  | D30: =B30*'Retirement Worksheet'!$B$16 ->  | G30: =B30*'Retirement Worksheet'!$B$8 ->  | H30: =IF(ISERROR(A30),NA(),H29*(1+'Retirement Worksheet'!$B$15)) ->  | I30: =IF(ISERROR(A30),NA(),I29*(1+'Retirement Worksheet'!$B$15)) ->  | L30: =SUM('Retirement Calculations'!G30:I30)*'Retirement Worksheet'!$B$9 ->  | M30: =SUM(G30:I30)*'Retirement Worksheet'!$B$10 ->  | P30: =IF(ISERROR(A30),NA(),P29*(1+'Retirement Worksheet'!$B$15)) -> 
A31: =IF(A30<'Retirement Worksheet'!$B$5,A30+1,NA()) ->  | C31: =B31*'Retirement Worksheet'!$B$11 ->  | D31: =B31*'Retirement Worksheet'!$B$16 ->  | G31: =B31*'Retirement Worksheet'!$B$8 ->  | H31: =IF(ISERROR(A31),NA(),H30*(1+'Retirement Worksheet'!$B$15)) ->  | I31: =IF(ISERROR(A31),NA(),I30*(1+'Retirement Worksheet'!$B$15)) ->  | L31: =SUM('Retirement Calculations'!G31:I31)*'Retirement Worksheet'!$B$9 ->  | M31: =SUM(G31:I31)*'Retirement Worksheet'!$B$10 ->  | P31: =IF(ISERROR(A31),NA(),P30*(1+'Retirement Worksheet'!$B$15)) -> 
A32: =IF(A31<'Retirement Worksheet'!$B$5,A31+1,NA()) ->  | C32: =B32*'Retirement Worksheet'!$B$11 ->  | D32: =B32*'Retirement Worksheet'!$B$16 ->  | G32: =B32*'Retirement Worksheet'!$B$8 ->  | H32: =IF(ISERROR(A32),NA(),H31*(1+'Retirement Worksheet'!$B$15)) ->  | I32: =IF(ISERROR(A32),NA(),I31*(1+'Retirement Worksheet'!$B$15)) ->  | L32: =SUM('Retirement Calculations'!G32:I32)*'Retirement Worksheet'!$B$9 ->  | M32: =SUM(G32:I32)*'Retirement Worksheet'!$B$10 ->  | P32: =IF(ISERROR(A32),NA(),P31*(1+'Retirement Worksheet'!$B$15)) -> 
A33: =IF(A32<'Retirement Worksheet'!$B$5,A32+1,NA()) ->  | C33: =B33*'Retirement Worksheet'!$B$11 ->  | D33: =B33*'Retirement Worksheet'!$B$16 ->  | G33: =B33*'Retirement Worksheet'!$B$8 ->  | H33: =IF(ISERROR(A33),NA(),H32*(1+'Retirement Worksheet'!$B$15)) ->  | I33: =IF(ISERROR(A33),NA(),I32*(1+'Retirement Worksheet'!$B$15)) ->  | L33: =SUM('Retirement Calculations'!G33:I33)*'Retirement Worksheet'!$B$9 ->  | M33: =SUM(G33:I33)*'Retirement Worksheet'!$B$10 ->  | P33: =IF(ISERROR(A33),NA(),P32*(1+'Retirement Worksheet'!$B$15)) -> 
A34: =IF(A33<'Retirement Worksheet'!$B$5,A33+1,NA()) ->  | C34: =B34*'Retirement Worksheet'!$B$11 ->  | D34: =B34*'Retirement Worksheet'!$B$16 ->  | G34: =B34*'Retirement Worksheet'!$B$8 ->  | H34: =IF(ISERROR(A34),NA(),H33*(1+'Retirement Worksheet'!$B$15)) ->  | I34: =IF(ISERROR(A34),NA(),I33*(1+'Retirement Worksheet'!$B$15)) ->  | L34: =SUM('Retirement Calculations'!G34:I34)*'Retirement Worksheet'!$B$9 ->  | M34: =SUM(G34:I34)*'Retirement Worksheet'!$B$10 ->  | P34: =IF(ISERROR(A34),NA(),P33*(1+'Retirement Worksheet'!$B$15)) -> 
A35: =IF(A34<'Retirement Worksheet'!$B$5,A34+1,NA()) ->  | C35: =B35*'Retirement Worksheet'!$B$11 ->  | D35: =B35*'Retirement Worksheet'!$B$16 ->  | G35: =B35*'Retirement Worksheet'!$B$8 ->  | H35: =IF(ISERROR(A35),NA(),H34*(1+'Retirement Worksheet'!$B$15)) ->  | I35: =IF(ISERROR(A35),NA(),I34*(1+'Retirement Worksheet'!$B$15)) ->  | L35: =SUM('Retirement Calculations'!G35:I35)*'Retirement Worksheet'!$B$9 ->  | M35: =SUM(G35:I35)*'Retirement Worksheet'!$B$10 ->  | P35: =IF(ISERROR(A35),NA(),P34*(1+'Retirement Worksheet'!$B$15)) -> 
A36: =IF(A35<'Retirement Worksheet'!$B$5,A35+1,NA()) ->  | C36: =B36*'Retirement Worksheet'!$B$11 ->  | D36: =B36*'Retirement Worksheet'!$B$16 ->  | G36: =B36*'Retirement Worksheet'!$B$8 ->  | H36: =IF(ISERROR(A36),NA(),H35*(1+'Retirement Worksheet'!$B$15)) ->  | I36: =IF(ISERROR(A36),NA(),I35*(1+'Retirement Worksheet'!$B$15)) ->  | L36: =SUM('Retirement Calculations'!G36:I36)*'Retirement Worksheet'!$B$9 ->  | M36: =SUM(G36:I36)*'Retirement Worksheet'!$B$10 ->  | P36: =IF(ISERROR(A36),NA(),P35*(1+'Retirement Worksheet'!$B$15)) -> 
A37: =IF(A36<'Retirement Worksheet'!$B$5,A36+1,NA()) ->  | C37: =B37*'Retirement Worksheet'!$B$11 ->  | D37: =B37*'Retirement Worksheet'!$B$16 ->  | G37: =B37*'Retirement Worksheet'!$B$8 ->  | H37: =IF(ISERROR(A37),NA(),H36*(1+'Retirement Worksheet'!$B$15)) ->  | I37: =IF(ISERROR(A37),NA(),I36*(1+'Retirement Worksheet'!$B$15)) ->  | L37: =SUM('Retirement Calculations'!G37:I37)*'Retirement Worksheet'!$B$9 ->  | M37: =SUM(G37:I37)*'Retirement Worksheet'!$B$10 ->  | P37: =IF(ISERROR(A37),NA(),P36*(1+'Retirement Worksheet'!$B$15)) -> 
A38: =IF(A37<'Retirement Worksheet'!$B$5,A37+1,NA()) ->  | C38: =B38*'Retirement Worksheet'!$B$11 ->  | D38: =B38*'Retirement Worksheet'!$B$16 ->  | G38: =B38*'Retirement Worksheet'!$B$8 ->  | H38: =IF(ISERROR(A38),NA(),H37*(1+'Retirement Worksheet'!$B$15)) ->  | I38: =IF(ISERROR(A38),NA(),I37*(1+'Retirement Worksheet'!$B$15)) ->  | L38: =SUM('Retirement Calculations'!G38:I38)*'Retirement Worksheet'!$B$9 ->  | M38: =SUM(G38:I38)*'Retirement Worksheet'!$B$10 ->  | P38: =IF(ISERROR(A38),NA(),P37*(1+'Retirement Worksheet'!$B$15)) -> 
A39: =IF(A38<'Retirement Worksheet'!$B$5,A38+1,NA()) ->  | C39: =B39*'Retirement Worksheet'!$B$11 ->  | D39: =B39*'Retirement Worksheet'!$B$16 ->  | G39: =B39*'Retirement Worksheet'!$B$8 ->  | H39: =IF(ISERROR(A39),NA(),H38*(1+'Retirement Worksheet'!$B$15)) ->  | I39: =IF(ISERROR(A39),NA(),I38*(1+'Retirement Worksheet'!$B$15)) ->  | L39: =SUM('Retirement Calculations'!G39:I39)*'Retirement Worksheet'!$B$9 ->  | M39: =SUM(G39:I39)*'Retirement Worksheet'!$B$10 ->  | P39: =IF(ISERROR(A39),NA(),P38*(1+'Retirement Worksheet'!$B$15)) -> 
A40: =IF(A39<'Retirement Worksheet'!$B$5,A39+1,NA()) ->  | C40: =B40*'Retirement Worksheet'!$B$11 ->  | D40: =B40*'Retirement Worksheet'!$B$16 ->  | G40: =B40*'Retirement Worksheet'!$B$8 ->  | H40: =IF(ISERROR(A40),NA(),H39*(1+'Retirement Worksheet'!$B$15)) ->  | I40: =IF(ISERROR(A40),NA(),I39*(1+'Retirement Worksheet'!$B$15)) ->  | L40: =SUM('Retirement Calculations'!G40:I40)*'Retirement Worksheet'!$B$9 ->  | M40: =SUM(G40:I40)*'Retirement Worksheet'!$B$10 ->  | P40: =IF(ISERROR(A40),NA(),P39*(1+'Retirement Worksheet'!$B$15)) -> 
A41: =IF(A40<'Retirement Worksheet'!$B$5,A40+1,NA()) ->  | C41: =B41*'Retirement Worksheet'!$B$11 ->  | D41: =B41*'Retirement Worksheet'!$B$16 ->  | G41: =B41*'Retirement Worksheet'!$B$8 ->  | H41: =IF(ISERROR(A41),NA(),H40*(1+'Retirement Worksheet'!$B$15)) ->  | I41: =IF(ISERROR(A41),NA(),I40*(1+'Retirement Worksheet'!$B$15)) ->  | L41: =SUM('Retirement Calculations'!G41:I41)*'Retirement Worksheet'!$B$9 ->  | M41: =SUM(G41:I41)*'Retirement Worksheet'!$B$10 ->  | P41: =IF(ISERROR(A41),NA(),P40*(1+'Retirement Worksheet'!$B$15)) -> 
A42: =IF(A41<'Retirement Worksheet'!$B$5,A41+1,NA()) ->  | C42: =B42*'Retirement Worksheet'!$B$11 ->  | D42: =B42*'Retirement Worksheet'!$B$16 ->  | G42: =B42*'Retirement Worksheet'!$B$8 ->  | H42: =IF(ISERROR(A42),NA(),H41*(1+'Retirement Worksheet'!$B$15)) ->  | I42: =IF(ISERROR(A42),NA(),I41*(1+'Retirement Worksheet'!$B$15)) ->  | L42: =SUM('Retirement Calculations'!G42:I42)*'Retirement Worksheet'!$B$9 ->  | M42: =SUM(G42:I42)*'Retirement Worksheet'!$B$10 ->  | P42: =IF(ISERROR(A42),NA(),P41*(1+'Retirement Worksheet'!$B$15)) -> 
A43: =IF(A42<'Retirement Worksheet'!$B$5,A42+1,NA()) ->  | C43: =B43*'Retirement Worksheet'!$B$11 ->  | D43: =B43*'Retirement Worksheet'!$B$16 ->  | G43: =B43*'Retirement Worksheet'!$B$8 ->  | H43: =IF(ISERROR(A43),NA(),H42*(1+'Retirement Worksheet'!$B$15)) ->  | I43: =IF(ISERROR(A43),NA(),I42*(1+'Retirement Worksheet'!$B$15)) ->  | L43: =SUM('Retirement Calculations'!G43:I43)*'Retirement Worksheet'!$B$9 ->  | M43: =SUM(G43:I43)*'Retirement Worksheet'!$B$10 ->  | P43: =IF(ISERROR(A43),NA(),P42*(1+'Retirement Worksheet'!$B$15)) -> 
A44: =IF(A43<'Retirement Worksheet'!$B$5,A43+1,NA()) ->  | C44: =B44*'Retirement Worksheet'!$B$11 ->  | D44: =B44*'Retirement Worksheet'!$B$16 ->  | G44: =B44*'Retirement Worksheet'!$B$8 ->  | H44: =IF(ISERROR(A44),NA(),H43*(1+'Retirement Worksheet'!$B$15)) ->  | I44: =IF(ISERROR(A44),NA(),I43*(1+'Retirement Worksheet'!$B$15)) ->  | L44: =SUM('Retirement Calculations'!G44:I44)*'Retirement Worksheet'!$B$9 ->  | M44: =SUM(G44:I44)*'Retirement Worksheet'!$B$10 ->  | P44: =IF(ISERROR(A44),NA(),P43*(1+'Retirement Worksheet'!$B$15)) -> 
A45: =IF(A44<'Retirement Worksheet'!$B$5,A44+1,NA()) ->  | C45: =B45*'Retirement Worksheet'!$B$11 ->  | D45: =B45*'Retirement Worksheet'!$B$16 ->  | G45: =B45*'Retirement Worksheet'!$B$8 ->  | H45: =IF(ISERROR(A45),NA(),H44*(1+'Retirement Worksheet'!$B$15)) ->  | I45: =IF(ISERROR(A45),NA(),I44*(1+'Retirement Worksheet'!$B$15)) ->  | L45: =SUM('Retirement Calculations'!G45:I45)*'Retirement Worksheet'!$B$9 ->  | M45: =SUM(G45:I45)*'Retirement Worksheet'!$B$10 ->  | P45: =IF(ISERROR(A45),NA(),P44*(1+'Retirement Worksheet'!$B$15)) -> 
A46: =IF(A45<'Retirement Worksheet'!$B$5,A45+1,NA()) ->  | C46: =B46*'Retirement Worksheet'!$B$11 ->  | D46: =B46*'Retirement Worksheet'!$B$16 ->  | G46: =B46*'Retirement Worksheet'!$B$8 ->  | H46: =IF(ISERROR(A46),NA(),H45*(1+'Retirement Worksheet'!$B$15)) ->  | I46: =IF(ISERROR(A46),NA(),I45*(1+'Retirement Worksheet'!$B$15)) ->  | L46: =SUM('Retirement Calculations'!G46:I46)*'Retirement Worksheet'!$B$9 ->  | M46: =SUM(G46:I46)*'Retirement Worksheet'!$B$10 ->  | P46: =IF(ISERROR(A46),NA(),P45*(1+'Retirement Worksheet'!$B$15)) -> 
A47: =IF(A46<'Retirement Worksheet'!$B$5,A46+1,NA()) ->  | C47: =B47*'Retirement Worksheet'!$B$11 ->  | D47: =B47*'Retirement Worksheet'!$B$16 ->  | G47: =B47*'Retirement Worksheet'!$B$8 ->  | H47: =IF(ISERROR(A47),NA(),H46*(1+'Retirement Worksheet'!$B$15)) ->  | I47: =IF(ISERROR(A47),NA(),I46*(1+'Retirement Worksheet'!$B$15)) ->  | L47: =SUM('Retirement Calculations'!G47:I47)*'Retirement Worksheet'!$B$9 ->  | M47: =SUM(G47:I47)*'Retirement Worksheet'!$B$10 ->  | P47: =IF(ISERROR(A47),NA(),P46*(1+'Retirement Worksheet'!$B$15)) -> 
A48: =IF(A47<'Retirement Worksheet'!$B$5,A47+1,NA()) ->  | C48: =B48*'Retirement Worksheet'!$B$11 ->  | D48: =B48*'Retirement Worksheet'!$B$16 ->  | G48: =B48*'Retirement Worksheet'!$B$8 ->  | H48: =IF(ISERROR(A48),NA(),H47*(1+'Retirement Worksheet'!$B$15)) ->  | I48: =IF(ISERROR(A48),NA(),I47*(1+'Retirement Worksheet'!$B$15)) ->  | L48: =SUM('Retirement Calculations'!G48:I48)*'Retirement Worksheet'!$B$9 ->  | M48: =SUM(G48:I48)*'Retirement Worksheet'!$B$10 ->  | P48: =IF(ISERROR(A48),NA(),P47*(1+'Retirement Worksheet'!$B$15)) -> 
A49: =IF(A48<'Retirement Worksheet'!$B$5,A48+1,NA()) ->  | C49: =B49*'Retirement Worksheet'!$B$11 ->  | D49: =B49*'Retirement Worksheet'!$B$16 ->  | G49: =B49*'Retirement Worksheet'!$B$8 ->  | H49: =IF(ISERROR(A49),NA(),H48*(1+'Retirement Worksheet'!$B$15)) ->  | I49: =IF(ISERROR(A49),NA(),I48*(1+'Retirement Worksheet'!$B$15)) ->  | L49: =SUM('Retirement Calculations'!G49:I49)*'Retirement Worksheet'!$B$9 ->  | M49: =SUM(G49:I49)*'Retirement Worksheet'!$B$10 ->  | P49: =IF(ISERROR(A49),NA(),P48*(1+'Retirement Worksheet'!$B$15)) -> 
A50: =IF(A49<'Retirement Worksheet'!$B$5,A49+1,NA()) ->  | C50: =B50*'Retirement Worksheet'!$B$11 ->  | D50: =B50*'Retirement Worksheet'!$B$16 ->  | G50: =B50*'Retirement Worksheet'!$B$8 ->  | H50: =IF(ISERROR(A50),NA(),H49*(1+'Retirement Worksheet'!$B$15)) ->  | I50: =IF(ISERROR(A50),NA(),I49*(1+'Retirement Worksheet'!$B$15)) ->  | L50: =SUM('Retirement Calculations'!G50:I50)*'Retirement Worksheet'!$B$9 ->  | M50: =SUM(G50:I50)*'Retirement Worksheet'!$B$10 ->  | P50: =IF(ISERROR(A50),NA(),P49*(1+'Retirement Worksheet'!$B$15)) -> 
A51: =IF(A50<'Retirement Worksheet'!$B$5,A50+1,NA()) ->  | C51: =B51*'Retirement Worksheet'!$B$11 ->  | D51: =B51*'Retirement Worksheet'!$B$16 ->  | G51: =B51*'Retirement Worksheet'!$B$8 ->  | H51: =IF(ISERROR(A51),NA(),H50*(1+'Retirement Worksheet'!$B$15)) ->  | I51: =IF(ISERROR(A51),NA(),I50*(1+'Retirement Worksheet'!$B$15)) ->  | L51: =SUM('Retirement Calculations'!G51:I51)*'Retirement Worksheet'!$B$9 ->  | M51: =SUM(G51:I51)*'Retirement Worksheet'!$B$10 ->  | P51: =IF(ISERROR(A51),NA(),P50*(1+'Retirement Worksheet'!$B$15)) -> 
A52: =IF(A51<'Retirement Worksheet'!$B$5,A51+1,NA()) ->  | C52: =B52*'Retirement Worksheet'!$B$11 ->  | D52: =B52*'Retirement Worksheet'!$B$16 ->  | G52: =B52*'Retirement Worksheet'!$B$8 ->  | H52: =IF(ISERROR(A52),NA(),H51*(1+'Retirement Worksheet'!$B$15)) ->  | I52: =IF(ISERROR(A52),NA(),I51*(1+'Retirement Worksheet'!$B$15)) ->  | L52: =SUM('Retirement Calculations'!G52:I52)*'Retirement Worksheet'!$B$9 ->  | M52: =SUM(G52:I52)*'Retirement Worksheet'!$B$10 ->  | P52: =IF(ISERROR(A52),NA(),P51*(1+'Retirement Worksheet'!$B$15)) -> 
A53: =IF(A52<'Retirement Worksheet'!$B$5,A52+1,NA()) ->  | C53: =B53*'Retirement Worksheet'!$B$11 ->  | D53: =B53*'Retirement Worksheet'!$B$16 ->  | G53: =B53*'Retirement Worksheet'!$B$8 ->  | H53: =IF(ISERROR(A53),NA(),H52*(1+'Retirement Worksheet'!$B$15)) ->  | I53: =IF(ISERROR(A53),NA(),I52*(1+'Retirement Worksheet'!$B$15)) ->  | L53: =SUM('Retirement Calculations'!G53:I53)*'Retirement Worksheet'!$B$9 ->  | M53: =SUM(G53:I53)*'Retirement Worksheet'!$B$10 ->  | P53: =IF(ISERROR(A53),NA(),P52*(1+'Retirement Worksheet'!$B$15)) -> 
A54: =IF(A53<'Retirement Worksheet'!$B$5,A53+1,NA()) ->  | C54: =B54*'Retirement Worksheet'!$B$11 ->  | D54: =B54*'Retirement Worksheet'!$B$16 ->  | G54: =B54*'Retirement Worksheet'!$B$8 ->  | H54: =IF(ISERROR(A54),NA(),H53*(1+'Retirement Worksheet'!$B$15)) ->  | I54: =IF(ISERROR(A54),NA(),I53*(1+'Retirement Worksheet'!$B$15)) ->  | L54: =SUM('Retirement Calculations'!G54:I54)*'Retirement Worksheet'!$B$9 ->  | M54: =SUM(G54:I54)*'Retirement Worksheet'!$B$10 ->  | P54: =IF(ISERROR(A54),NA(),P53*(1+'Retirement Worksheet'!$B$15)) -> 
A55: =IF(A54<'Retirement Worksheet'!$B$5,A54+1,NA()) ->  | C55: =B55*'Retirement Worksheet'!$B$11 ->  | D55: =B55*'Retirement Worksheet'!$B$16 ->  | G55: =B55*'Retirement Worksheet'!$B$8 ->  | H55: =IF(ISERROR(A55),NA(),H54*(1+'Retirement Worksheet'!$B$15)) ->  | I55: =IF(ISERROR(A55),NA(),I54*(1+'Retirement Worksheet'!$B$15)) ->  | L55: =SUM('Retirement Calculations'!G55:I55)*'Retirement Worksheet'!$B$9 ->  | M55: =SUM(G55:I55)*'Retirement Worksheet'!$B$10 ->  | P55: =IF(ISERROR(A55),NA(),P54*(1+'Retirement Worksheet'!$B$15)) -> 
A56: =IF(A55<'Retirement Worksheet'!$B$5,A55+1,NA()) ->  | C56: =B56*'Retirement Worksheet'!$B$11 ->  | D56: =B56*'Retirement Worksheet'!$B$16 ->  | G56: =B56*'Retirement Worksheet'!$B$8 ->  | H56: =IF(ISERROR(A56),NA(),H55*(1+'Retirement Worksheet'!$B$15)) ->  | I56: =IF(ISERROR(A56),NA(),I55*(1+'Retirement Worksheet'!$B$15)) ->  | L56: =SUM('Retirement Calculations'!G56:I56)*'Retirement Worksheet'!$B$9 ->  | M56: =SUM(G56:I56)*'Retirement Worksheet'!$B$10 ->  | P56: =IF(ISERROR(A56),NA(),P55*(1+'Retirement Worksheet'!$B$15)) -> 
A57: =IF(A56<'Retirement Worksheet'!$B$5,A56+1,NA()) ->  | C57: =B57*'Retirement Worksheet'!$B$11 ->  | D57: =B57*'Retirement Worksheet'!$B$16 ->  | G57: =B57*'Retirement Worksheet'!$B$8 ->  | H57: =IF(ISERROR(A57),NA(),H56*(1+'Retirement Worksheet'!$B$15)) ->  | I57: =IF(ISERROR(A57),NA(),I56*(1+'Retirement Worksheet'!$B$15)) ->  | L57: =SUM('Retirement Calculations'!G57:I57)*'Retirement Worksheet'!$B$9 ->  | M57: =SUM(G57:I57)*'Retirement Worksheet'!$B$10 ->  | P57: =IF(ISERROR(A57),NA(),P56*(1+'Retirement Worksheet'!$B$15)) -> 
A58: =IF(A57<'Retirement Worksheet'!$B$5,A57+1,NA()) ->  | C58: =B58*'Retirement Worksheet'!$B$11 ->  | D58: =B58*'Retirement Worksheet'!$B$16 ->  | G58: =B58*'Retirement Worksheet'!$B$8 ->  | H58: =IF(ISERROR(A58),NA(),H57*(1+'Retirement Worksheet'!$B$15)) ->  | I58: =IF(ISERROR(A58),NA(),I57*(1+'Retirement Worksheet'!$B$15)) ->  | L58: =SUM('Retirement Calculations'!G58:I58)*'Retirement Worksheet'!$B$9 ->  | M58: =SUM(G58:I58)*'Retirement Worksheet'!$B$10 ->  | P58: =IF(ISERROR(A58),NA(),P57*(1+'Retirement Worksheet'!$B$15)) -> 
A59: =IF(A58<'Retirement Worksheet'!$B$5,A58+1,NA()) ->  | C59: =B59*'Retirement Worksheet'!$B$11 ->  | D59: =B59*'Retirement Worksheet'!$B$16 ->  | G59: =B59*'Retirement Worksheet'!$B$8 ->  | H59: =IF(ISERROR(A59),NA(),H58*(1+'Retirement Worksheet'!$B$15)) ->  | I59: =IF(ISERROR(A59),NA(),I58*(1+'Retirement Worksheet'!$B$15)) ->  | L59: =SUM('Retirement Calculations'!G59:I59)*'Retirement Worksheet'!$B$9 ->  | M59: =SUM(G59:I59)*'Retirement Worksheet'!$B$10 ->  | P59: =IF(ISERROR(A59),NA(),P58*(1+'Retirement Worksheet'!$B$15)) -> 
A60: =IF(A59<'Retirement Worksheet'!$B$5,A59+1,NA()) ->  | C60: =B60*'Retirement Worksheet'!$B$11 ->  | D60: =B60*'Retirement Worksheet'!$B$16 ->  | G60: =B60*'Retirement Worksheet'!$B$8 ->  | H60: =IF(ISERROR(A60),NA(),H59*(1+'Retirement Worksheet'!$B$15)) ->  | I60: =IF(ISERROR(A60),NA(),I59*(1+'Retirement Worksheet'!$B$15)) ->  | L60: =SUM('Retirement Calculations'!G60:I60)*'Retirement Worksheet'!$B$9 ->  | M60: =SUM(G60:I60)*'Retirement Worksheet'!$B$10 ->  | P60: =IF(ISERROR(A60),NA(),P59*(1+'Retirement Worksheet'!$B$15)) -> 
A61: =IF(A60<'Retirement Worksheet'!$B$5,A60+1,NA()) ->  | C61: =B61*'Retirement Worksheet'!$B$11 ->  | D61: =B61*'Retirement Worksheet'!$B$16 ->  | G61: =B61*'Retirement Worksheet'!$B$8 ->  | H61: =IF(ISERROR(A61),NA(),H60*(1+'Retirement Worksheet'!$B$15)) ->  | I61: =IF(ISERROR(A61),NA(),I60*(1+'Retirement Worksheet'!$B$15)) ->  | L61: =SUM('Retirement Calculations'!G61:I61)*'Retirement Worksheet'!$B$9 ->  | M61: =SUM(G61:I61)*'Retirement Worksheet'!$B$10 ->  | P61: =IF(ISERROR(A61),NA(),P60*(1+'Retirement Worksheet'!$B$15)) -> 
A62: =IF(A61<'Retirement Worksheet'!$B$5,A61+1,NA()) ->  | C62: =B62*'Retirement Worksheet'!$B$11 ->  | D62: =B62*'Retirement Worksheet'!$B$16 ->  | G62: =B62*'Retirement Worksheet'!$B$8 ->  | H62: =IF(ISERROR(A62),NA(),H61*(1+'Retirement Worksheet'!$B$15)) ->  | I62: =IF(ISERROR(A62),NA(),I61*(1+'Retirement Worksheet'!$B$15)) ->  | L62: =SUM('Retirement Calculations'!G62:I62)*'Retirement Worksheet'!$B$9 ->  | M62: =SUM(G62:I62)*'Retirement Worksheet'!$B$10 ->  | P62: =IF(ISERROR(A62),NA(),P61*(1+'Retirement Worksheet'!$B$15)) -> 
A63: =IF(A62<'Retirement Worksheet'!$B$5,A62+1,NA()) ->  | C63: =B63*'Retirement Worksheet'!$B$11 ->  | D63: =B63*'Retirement Worksheet'!$B$16 ->  | G63: =B63*'Retirement Worksheet'!$B$8 ->  | H63: =IF(ISERROR(A63),NA(),H62*(1+'Retirement Worksheet'!$B$15)) ->  | I63: =IF(ISERROR(A63),NA(),I62*(1+'Retirement Worksheet'!$B$15)) ->  | L63: =SUM('Retirement Calculations'!G63:I63)*'Retirement Worksheet'!$B$9 ->  | M63: =SUM(G63:I63)*'Retirement Worksheet'!$B$10 ->  | P63: =IF(ISERROR(A63),NA(),P62*(1+'Retirement Worksheet'!$B$15)) -> 
A64: =IF(A63<'Retirement Worksheet'!$B$5,A63+1,NA()) ->  | C64: =B64*'Retirement Worksheet'!$B$11 ->  | D64: =B64*'Retirement Worksheet'!$B$16 ->  | G64: =B64*'Retirement Worksheet'!$B$8 ->  | H64: =IF(ISERROR(A64),NA(),H63*(1+'Retirement Worksheet'!$B$15)) ->  | I64: =IF(ISERROR(A64),NA(),I63*(1+'Retirement Worksheet'!$B$15)) ->  | L64: =SUM('Retirement Calculations'!G64:I64)*'Retirement Worksheet'!$B$9 ->  | M64: =SUM(G64:I64)*'Retirement Worksheet'!$B$10 ->  | P64: =IF(ISERROR(A64),NA(),P63*(1+'Retirement Worksheet'!$B$15)) -> 
A65: =IF(A64<'Retirement Worksheet'!$B$5,A64+1,NA()) ->  | C65: =B65*'Retirement Worksheet'!$B$11 ->  | D65: =B65*'Retirement Worksheet'!$B$16 ->  | G65: =B65*'Retirement Worksheet'!$B$8 ->  | H65: =IF(ISERROR(A65),NA(),H64*(1+'Retirement Worksheet'!$B$15)) ->  | I65: =IF(ISERROR(A65),NA(),I64*(1+'Retirement Worksheet'!$B$15)) ->  | L65: =SUM('Retirement Calculations'!G65:I65)*'Retirement Worksheet'!$B$9 ->  | M65: =SUM(G65:I65)*'Retirement Worksheet'!$B$10 ->  | P65: =IF(ISERROR(A65),NA(),P64*(1+'Retirement Worksheet'!$B$15)) -> 
A66: =IF(A65<'Retirement Worksheet'!$B$5,A65+1,NA()) ->  | C66: =B66*'Retirement Worksheet'!$B$11 ->  | D66: =B66*'Retirement Worksheet'!$B$16 ->  | G66: =B66*'Retirement Worksheet'!$B$8 ->  | H66: =IF(ISERROR(A66),NA(),H65*(1+'Retirement Worksheet'!$B$15)) ->  | I66: =IF(ISERROR(A66),NA(),I65*(1+'Retirement Worksheet'!$B$15)) ->  | L66: =SUM('Retirement Calculations'!G66:I66)*'Retirement Worksheet'!$B$9 ->  | M66: =SUM(G66:I66)*'Retirement Worksheet'!$B$10 ->  | P66: =IF(ISERROR(A66),NA(),P65*(1+'Retirement Worksheet'!$B$15)) -> 
A67: =IF(A66<'Retirement Worksheet'!$B$5,A66+1,NA()) ->  | C67: =B67*'Retirement Worksheet'!$B$11 ->  | D67: =B67*'Retirement Worksheet'!$B$16 ->  | G67: =B67*'Retirement Worksheet'!$B$8 ->  | H67: =IF(ISERROR(A67),NA(),H66*(1+'Retirement Worksheet'!$B$15)) ->  | I67: =IF(ISERROR(A67),NA(),I66*(1+'Retirement Worksheet'!$B$15)) ->  | L67: =SUM('Retirement Calculations'!G67:I67)*'Retirement Worksheet'!$B$9 ->  | M67: =SUM(G67:I67)*'Retirement Worksheet'!$B$10 ->  | P67: =IF(ISERROR(A67),NA(),P66*(1+'Retirement Worksheet'!$B$15)) -> 
A68: =IF(A67<'Retirement Worksheet'!$B$5,A67+1,NA()) ->  | C68: =B68*'Retirement Worksheet'!$B$11 ->  | D68: =B68*'Retirement Worksheet'!$B$16 ->  | G68: =B68*'Retirement Worksheet'!$B$8 ->  | H68: =IF(ISERROR(A68),NA(),H67*(1+'Retirement Worksheet'!$B$15)) ->  | I68: =IF(ISERROR(A68),NA(),I67*(1+'Retirement Worksheet'!$B$15)) ->  | J68: =SUM(G68:I68) ->  | L68: =SUM('Retirement Calculations'!G68:I68)*'Retirement Worksheet'!$B$9 ->  | M68: =SUM(G68:I68)*'Retirement Worksheet'!$B$10 ->  | P68: =IF(ISERROR(A68),NA(),P67*(1+'Retirement Worksheet'!$B$15)) -> 
A69: =IF(A68<'Retirement Worksheet'!$B$5,A68+1,NA()) ->  | B69: =IF(ISERROR(A69),NA(),E68-G68+Q68) ->  | C69: =B69*'Retirement Worksheet'!$B$11 ->  | D69: =B69*'Retirement Worksheet'!$B$16 ->  | G69: =B69*'Retirement Worksheet'!$B$8 ->  | H69: =IF(ISERROR(A69),NA(),H68*(1+'Retirement Worksheet'!$B$15)) ->  | I69: =IF(ISERROR(A69),NA(),I68*(1+'Retirement Worksheet'!$B$15)) ->  | L69: =SUM('Retirement Calculations'!G69:I69)*'Retirement Worksheet'!$B$9 ->  | M69: =SUM(G69:I69)*'Retirement Worksheet'!$B$10 ->  | P69: =IF(ISERROR(A69),NA(),P68*(1+'Retirement Worksheet'!$B$15)) -> 
A70: =IF(A69<'Retirement Worksheet'!$B$5,A69+1,NA()) ->  | C70: =B70*'Retirement Worksheet'!$B$11 ->  | D70: =B70*'Retirement Worksheet'!$B$16 ->  | G70: =B70*'Retirement Worksheet'!$B$8 ->  | H70: =IF(ISERROR(A70),NA(),H69*(1+'Retirement Worksheet'!$B$15)) ->  | I70: =IF(ISERROR(A70),NA(),I69*(1+'Retirement Worksheet'!$B$15)) ->  | L70: =SUM('Retirement Calculations'!G70:I70)*'Retirement Worksheet'!$B$9 ->  | M70: =SUM(G70:I70)*'Retirement Worksheet'!$B$10 ->  | P70: =IF(ISERROR(A70),NA(),P69*(1+'Retirement Worksheet'!$B$15)) -> 
A71: =IF(A70<'Retirement Worksheet'!$B$5,A70+1,NA()) ->  | C71: =B71*'Retirement Worksheet'!$B$11 ->  | D71: =B71*'Retirement Worksheet'!$B$16 ->  | E71: =B71-C71+D71 ->  | G71: =B71*'Retirement Worksheet'!$B$8 ->  | H71: =IF(ISERROR(A71),NA(),H70*(1+'Retirement Worksheet'!$B$15)) ->  | I71: =IF(ISERROR(A71),NA(),I70*(1+'Retirement Worksheet'!$B$15)) ->  | L71: =SUM('Retirement Calculations'!G71:I71)*'Retirement Worksheet'!$B$9 ->  | M71: =SUM(G71:I71)*'Retirement Worksheet'!$B$10 ->  | O71: =SUM(G71:I71)-SUM(L71:M71) ->  | P71: =IF(ISERROR(A71),NA(),P70*(1+'Retirement Worksheet'!$B$15)) ->  | Q71: =O71-P71 -> 
A72: =IF(A71<'Retirement Worksheet'!$B$5,A71+1,NA()) ->  | C72: =B72*'Retirement Worksheet'!$B$11 ->  | D72: =B72*'Retirement Worksheet'!$B$16 ->  | G72: =B72*'Retirement Worksheet'!$B$8 ->  | H72: =IF(ISERROR(A72),NA(),H71*(1+'Retirement Worksheet'!$B$15)) ->  | I72: =IF(ISERROR(A72),NA(),I71*(1+'Retirement Worksheet'!$B$15)) ->  | L72: =SUM('Retirement Calculations'!G72:I72)*'Retirement Worksheet'!$B$9 ->  | M72: =SUM(G72:I72)*'Retirement Worksheet'!$B$10 ->  | P72: =IF(ISERROR(A72),NA(),P71*(1+'Retirement Worksheet'!$B$15)) -> 
A73: =IF(A72<'Retirement Worksheet'!$B$5,A72+1,NA()) ->  | C73: =B73*'Retirement Worksheet'!$B$11 ->  | D73: =B73*'Retirement Worksheet'!$B$16 ->  | G73: =B73*'Retirement Worksheet'!$B$8 ->  | H73: =IF(ISERROR(A73),NA(),H72*(1+'Retirement Worksheet'!$B$15)) ->  | I73: =IF(ISERROR(A73),NA(),I72*(1+'Retirement Worksheet'!$B$15)) ->  | L73: =SUM('Retirement Calculations'!G73:I73)*'Retirement Worksheet'!$B$9 ->  | M73: =SUM(G73:I73)*'Retirement Worksheet'!$B$10 ->  | P73: =IF(ISERROR(A73),NA(),P72*(1+'Retirement Worksheet'!$B$15)) -> 
A74: =IF(A73<'Retirement Worksheet'!$B$5,A73+1,NA()) ->  | C74: =B74*'Retirement Worksheet'!$B$11 ->  | D74: =B74*'Retirement Worksheet'!$B$16 ->  | G74: =B74*'Retirement Worksheet'!$B$8 ->  | H74: =IF(ISERROR(A74),NA(),H73*(1+'Retirement Worksheet'!$B$15)) ->  | I74: =IF(ISERROR(A74),NA(),I73*(1+'Retirement Worksheet'!$B$15)) ->  | L74: =SUM('Retirement Calculations'!G74:I74)*'Retirement Worksheet'!$B$9 ->  | M74: =SUM(G74:I74)*'Retirement Worksheet'!$B$10 ->  | P74: =IF(ISERROR(A74),NA(),P73*(1+'Retirement Worksheet'!$B$15)) -> 
A75: =IF(A74<'Retirement Worksheet'!$B$5,A74+1,NA()) ->  | C75: =B75*'Retirement Worksheet'!$B$11 ->  | D75: =B75*'Retirement Worksheet'!$B$16 ->  | G75: =B75*'Retirement Worksheet'!$B$8 ->  | H75: =IF(ISERROR(A75),NA(),H74*(1+'Retirement Worksheet'!$B$15)) ->  | I75: =IF(ISERROR(A75),NA(),I74*(1+'Retirement Worksheet'!$B$15)) ->  | L75: =SUM('Retirement Calculations'!G75:I75)*'Retirement Worksheet'!$B$9 ->  | M75: =SUM(G75:I75)*'Retirement Worksheet'!$B$10 ->  | P75: =IF(ISERROR(A75),NA(),P74*(1+'Retirement Worksheet'!$B$15)) -> 
A76: =IF(A75<'Retirement Worksheet'!$B$5,A75+1,NA()) ->  | C76: =B76*'Retirement Worksheet'!$B$11 ->  | D76: =B76*'Retirement Worksheet'!$B$16 ->  | G76: =B76*'Retirement Worksheet'!$B$8 ->  | H76: =IF(ISERROR(A76),NA(),H75*(1+'Retirement Worksheet'!$B$15)) ->  | I76: =IF(ISERROR(A76),NA(),I75*(1+'Retirement Worksheet'!$B$15)) ->  | L76: =SUM('Retirement Calculations'!G76:I76)*'Retirement Worksheet'!$B$9 ->  | M76: =SUM(G76:I76)*'Retirement Worksheet'!$B$10 ->  | P76: =IF(ISERROR(A76),NA(),P75*(1+'Retirement Worksheet'!$B$15)) -> 
A77: =IF(A76<'Retirement Worksheet'!$B$5,A76+1,NA()) ->  | C77: =B77*'Retirement Worksheet'!$B$11 ->  | D77: =B77*'Retirement Worksheet'!$B$16 ->  | G77: =B77*'Retirement Worksheet'!$B$8 ->  | H77: =IF(ISERROR(A77),NA(),H76*(1+'Retirement Worksheet'!$B$15)) ->  | I77: =IF(ISERROR(A77),NA(),I76*(1+'Retirement Worksheet'!$B$15)) ->  | L77: =SUM('Retirement Calculations'!G77:I77)*'Retirement Worksheet'!$B$9 ->  | M77: =SUM(G77:I77)*'Retirement Worksheet'!$B$10 ->  | P77: =IF(ISERROR(A77),NA(),P76*(1+'Retirement Worksheet'!$B$15)) -> 
A78: =IF(A77<'Retirement Worksheet'!$B$5,A77+1,NA()) ->  | C78: =B78*'Retirement Worksheet'!$B$11 ->  | D78: =B78*'Retirement Worksheet'!$B$16 ->  | G78: =B78*'Retirement Worksheet'!$B$8 ->  | H78: =IF(ISERROR(A78),NA(),H77*(1+'Retirement Worksheet'!$B$15)) ->  | I78: =IF(ISERROR(A78),NA(),I77*(1+'Retirement Worksheet'!$B$15)) ->  | L78: =SUM('Retirement Calculations'!G78:I78)*'Retirement Worksheet'!$B$9 ->  | M78: =SUM(G78:I78)*'Retirement Worksheet'!$B$10 ->  | P78: =IF(ISERROR(A78),NA(),P77*(1+'Retirement Worksheet'!$B$15)) -> 
A79: =IF(A78<'Retirement Worksheet'!$B$5,A78+1,NA()) ->  | C79: =B79*'Retirement Worksheet'!$B$11 ->  | D79: =B79*'Retirement Worksheet'!$B$16 ->  | G79: =B79*'Retirement Worksheet'!$B$8 ->  | H79: =IF(ISERROR(A79),NA(),H78*(1+'Retirement Worksheet'!$B$15)) ->  | I79: =IF(ISERROR(A79),NA(),I78*(1+'Retirement Worksheet'!$B$15)) ->  | L79: =SUM('Retirement Calculations'!G79:I79)*'Retirement Worksheet'!$B$9 ->  | M79: =SUM(G79:I79)*'Retirement Worksheet'!$B$10 ->  | P79: =IF(ISERROR(A79),NA(),P78*(1+'Retirement Worksheet'!$B$15)) -> 
A80: =IF(A79<'Retirement Worksheet'!$B$5,A79+1,NA()) ->  | C80: =B80*'Retirement Worksheet'!$B$11 ->  | D80: =B80*'Retirement Worksheet'!$B$16 ->  | G80: =B80*'Retirement Worksheet'!$B$8 ->  | H80: =IF(ISERROR(A80),NA(),H79*(1+'Retirement Worksheet'!$B$15)) ->  | I80: =IF(ISERROR(A80),NA(),I79*(1+'Retirement Worksheet'!$B$15)) ->  | L80: =SUM('Retirement Calculations'!G80:I80)*'Retirement Worksheet'!$B$9 ->  | M80: =SUM(G80:I80)*'Retirement Worksheet'!$B$10 ->  | P80: =IF(ISERROR(A80),NA(),P79*(1+'Retirement Worksheet'!$B$15)) -> 
A81: =IF(A80<'Retirement Worksheet'!$B$5,A80+1,NA()) ->  | C81: =B81*'Retirement Worksheet'!$B$11 ->  | D81: =B81*'Retirement Worksheet'!$B$16 ->  | G81: =B81*'Retirement Worksheet'!$B$8 ->  | H81: =IF(ISERROR(A81),NA(),H80*(1+'Retirement Worksheet'!$B$15)) ->  | I81: =IF(ISERROR(A81),NA(),I80*(1+'Retirement Worksheet'!$B$15)) ->  | L81: =SUM('Retirement Calculations'!G81:I81)*'Retirement Worksheet'!$B$9 ->  | M81: =SUM(G81:I81)*'Retirement Worksheet'!$B$10 ->  | P81: =IF(ISERROR(A81),NA(),P80*(1+'Retirement Worksheet'!$B$15)) -> 
A82: =IF(A81<'Retirement Worksheet'!$B$5,A81+1,NA()) ->  | C82: =B82*'Retirement Worksheet'!$B$11 ->  | D82: =B82*'Retirement Worksheet'!$B$16 ->  | G82: =B82*'Retirement Worksheet'!$B$8 ->  | H82: =IF(ISERROR(A82),NA(),H81*(1+'Retirement Worksheet'!$B$15)) ->  | I82: =IF(ISERROR(A82),NA(),I81*(1+'Retirement Worksheet'!$B$15)) ->  | L82: =SUM('Retirement Calculations'!G82:I82)*'Retirement Worksheet'!$B$9 ->  | M82: =SUM(G82:I82)*'Retirement Worksheet'!$B$10 ->  | P82: =IF(ISERROR(A82),NA(),P81*(1+'Retirement Worksheet'!$B$15)) -> 
A83: =IF(A82<'Retirement Worksheet'!$B$5,A82+1,NA()) ->  | C83: =B83*'Retirement Worksheet'!$B$11 ->  | D83: =B83*'Retirement Worksheet'!$B$16 ->  | G83: =B83*'Retirement Worksheet'!$B$8 ->  | H83: =IF(ISERROR(A83),NA(),H82*(1+'Retirement Worksheet'!$B$15)) ->  | I83: =IF(ISERROR(A83),NA(),I82*(1+'Retirement Worksheet'!$B$15)) ->  | L83: =SUM('Retirement Calculations'!G83:I83)*'Retirement Worksheet'!$B$9 ->  | M83: =SUM(G83:I83)*'Retirement Worksheet'!$B$10 ->  | P83: =IF(ISERROR(A83),NA(),P82*(1+'Retirement Worksheet'!$B$15)) -> 
A84: =IF(A83<'Retirement Worksheet'!$B$5,A83+1,NA()) ->  | C84: =B84*'Retirement Worksheet'!$B$11 ->  | D84: =B84*'Retirement Worksheet'!$B$16 ->  | G84: =B84*'Retirement Worksheet'!$B$8 ->  | H84: =IF(ISERROR(A84),NA(),H83*(1+'Retirement Worksheet'!$B$15)) ->  | I84: =IF(ISERROR(A84),NA(),I83*(1+'Retirement Worksheet'!$B$15)) ->  | L84: =SUM('Retirement Calculations'!G84:I84)*'Retirement Worksheet'!$B$9 ->  | M84: =SUM(G84:I84)*'Retirement Worksheet'!$B$10 ->  | P84: =IF(ISERROR(A84),NA(),P83*(1+'Retirement Worksheet'!$B$15)) -> 
A85: =IF(A84<'Retirement Worksheet'!$B$5,A84+1,NA()) ->  | C85: =B85*'Retirement Worksheet'!$B$11 ->  | D85: =B85*'Retirement Worksheet'!$B$16 ->  | G85: =B85*'Retirement Worksheet'!$B$8 ->  | H85: =IF(ISERROR(A85),NA(),H84*(1+'Retirement Worksheet'!$B$15)) ->  | I85: =IF(ISERROR(A85),NA(),I84*(1+'Retirement Worksheet'!$B$15)) ->  | L85: =SUM('Retirement Calculations'!G85:I85)*'Retirement Worksheet'!$B$9 ->  | M85: =SUM(G85:I85)*'Retirement Worksheet'!$B$10 ->  | P85: =IF(ISERROR(A85),NA(),P84*(1+'Retirement Worksheet'!$B$15)) -> 
A86: =IF(A85<'Retirement Worksheet'!$B$5,A85+1,NA()) ->  | C86: =B86*'Retirement Worksheet'!$B$11 ->  | D86: =B86*'Retirement Worksheet'!$B$16 ->  | G86: =B86*'Retirement Worksheet'!$B$8 ->  | H86: =IF(ISERROR(A86),NA(),H85*(1+'Retirement Worksheet'!$B$15)) ->  | I86: =IF(ISERROR(A86),NA(),I85*(1+'Retirement Worksheet'!$B$15)) ->  | L86: =SUM('Retirement Calculations'!G86:I86)*'Retirement Worksheet'!$B$9 ->  | M86: =SUM(G86:I86)*'Retirement Worksheet'!$B$10 ->  | P86: =IF(ISERROR(A86),NA(),P85*(1+'Retirement Worksheet'!$B$15)) -> 
A87: =IF(A86<'Retirement Worksheet'!$B$5,A86+1,NA()) ->  | C87: =B87*'Retirement Worksheet'!$B$11 ->  | D87: =B87*'Retirement Worksheet'!$B$16 ->  | G87: =B87*'Retirement Worksheet'!$B$8 ->  | H87: =IF(ISERROR(A87),NA(),H86*(1+'Retirement Worksheet'!$B$15)) ->  | I87: =IF(ISERROR(A87),NA(),I86*(1+'Retirement Worksheet'!$B$15)) ->  | L87: =SUM('Retirement Calculations'!G87:I87)*'Retirement Worksheet'!$B$9 ->  | M87: =SUM(G87:I87)*'Retirement Worksheet'!$B$10 ->  | P87: =IF(ISERROR(A87),NA(),P86*(1+'Retirement Worksheet'!$B$15)) -> 
A88: =IF(A87<'Retirement Worksheet'!$B$5,A87+1,NA()) ->  | C88: =B88*'Retirement Worksheet'!$B$11 ->  | D88: =B88*'Retirement Worksheet'!$B$16 ->  | G88: =B88*'Retirement Worksheet'!$B$8 ->  | H88: =IF(ISERROR(A88),NA(),H87*(1+'Retirement Worksheet'!$B$15)) ->  | I88: =IF(ISERROR(A88),NA(),I87*(1+'Retirement Worksheet'!$B$15)) ->  | L88: =SUM('Retirement Calculations'!G88:I88)*'Retirement Worksheet'!$B$9 ->  | M88: =SUM(G88:I88)*'Retirement Worksheet'!$B$10 ->  | P88: =IF(ISERROR(A88),NA(),P87*(1+'Retirement Worksheet'!$B$15)) -> 
A89: =IF(A88<'Retirement Worksheet'!$B$5,A88+1,NA()) ->  | C89: =B89*'Retirement Worksheet'!$B$11 ->  | D89: =B89*'Retirement Worksheet'!$B$16 ->  | G89: =B89*'Retirement Worksheet'!$B$8 ->  | H89: =IF(ISERROR(A89),NA(),H88*(1+'Retirement Worksheet'!$B$15)) ->  | I89: =IF(ISERROR(A89),NA(),I88*(1+'Retirement Worksheet'!$B$15)) ->  | L89: =SUM('Retirement Calculations'!G89:I89)*'Retirement Worksheet'!$B$9 ->  | M89: =SUM(G89:I89)*'Retirement Worksheet'!$B$10 ->  | P89: =IF(ISERROR(A89),NA(),P88*(1+'Retirement Worksheet'!$B$15)) -> 
A90: =IF(A89<'Retirement Worksheet'!$B$5,A89+1,NA()) ->  | C90: =B90*'Retirement Worksheet'!$B$11 ->  | D90: =B90*'Retirement Worksheet'!$B$16 ->  | G90: =B90*'Retirement Worksheet'!$B$8 ->  | H90: =IF(ISERROR(A90),NA(),H89*(1+'Retirement Worksheet'!$B$15)) ->  | I90: =IF(ISERROR(A90),NA(),I89*(1+'Retirement Worksheet'!$B$15)) ->  | L90: =SUM('Retirement Calculations'!G90:I90)*'Retirement Worksheet'!$B$9 ->  | M90: =SUM(G90:I90)*'Retirement Worksheet'!$B$10 ->  | P90: =IF(ISERROR(A90),NA(),P89*(1+'Retirement Worksheet'!$B$15)) -> 
A91: =IF(A90<'Retirement Worksheet'!$B$5,A90+1,NA()) ->  | C91: =B91*'Retirement Worksheet'!$B$11 ->  | D91: =B91*'Retirement Worksheet'!$B$16 ->  | G91: =B91*'Retirement Worksheet'!$B$8 ->  | H91: =IF(ISERROR(A91),NA(),H90*(1+'Retirement Worksheet'!$B$15)) ->  | I91: =IF(ISERROR(A91),NA(),I90*(1+'Retirement Worksheet'!$B$15)) ->  | L91: =SUM('Retirement Calculations'!G91:I91)*'Retirement Worksheet'!$B$9 ->  | M91: =SUM(G91:I91)*'Retirement Worksheet'!$B$10 ->  | P91: =IF(ISERROR(A91),NA(),P90*(1+'Retirement Worksheet'!$B$15)) -> 
A92: =IF(A91<'Retirement Worksheet'!$B$5,A91+1,NA()) ->  | C92: =B92*'Retirement Worksheet'!$B$11 ->  | D92: =B92*'Retirement Worksheet'!$B$16 ->  | G92: =B92*'Retirement Worksheet'!$B$8 ->  | H92: =IF(ISERROR(A92),NA(),H91*(1+'Retirement Worksheet'!$B$15)) ->  | I92: =IF(ISERROR(A92),NA(),I91*(1+'Retirement Worksheet'!$B$15)) ->  | L92: =SUM('Retirement Calculations'!G92:I92)*'Retirement Worksheet'!$B$9 ->  | M92: =SUM(G92:I92)*'Retirement Worksheet'!$B$10 ->  | P92: =IF(ISERROR(A92),NA(),P91*(1+'Retirement Worksheet'!$B$15)) -> 
A93: =IF(A92<'Retirement Worksheet'!$B$5,A92+1,NA()) ->  | C93: =B93*'Retirement Worksheet'!$B$11 ->  | D93: =B93*'Retirement Worksheet'!$B$16 ->  | G93: =B93*'Retirement Worksheet'!$B$8 ->  | H93: =IF(ISERROR(A93),NA(),H92*(1+'Retirement Worksheet'!$B$15)) ->  | I93: =IF(ISERROR(A93),NA(),I92*(1+'Retirement Worksheet'!$B$15)) ->  | L93: =SUM('Retirement Calculations'!G93:I93)*'Retirement Worksheet'!$B$9 ->  | M93: =SUM(G93:I93)*'Retirement Worksheet'!$B$10 ->  | P93: =IF(ISERROR(A93),NA(),P92*(1+'Retirement Worksheet'!$B$15)) -> 
A94: =IF(A93<'Retirement Worksheet'!$B$5,A93+1,NA()) ->  | C94: =B94*'Retirement Worksheet'!$B$11 ->  | D94: =B94*'Retirement Worksheet'!$B$16 ->  | G94: =B94*'Retirement Worksheet'!$B$8 ->  | H94: =IF(ISERROR(A94),NA(),H93*(1+'Retirement Worksheet'!$B$15)) ->  | I94: =IF(ISERROR(A94),NA(),I93*(1+'Retirement Worksheet'!$B$15)) ->  | L94: =SUM('Retirement Calculations'!G94:I94)*'Retirement Worksheet'!$B$9 ->  | M94: =SUM(G94:I94)*'Retirement Worksheet'!$B$10 ->  | P94: =IF(ISERROR(A94),NA(),P93*(1+'Retirement Worksheet'!$B$15)) -> 
A95: =IF(A94<'Retirement Worksheet'!$B$5,A94+1,NA()) ->  | C95: =B95*'Retirement Worksheet'!$B$11 ->  | D95: =B95*'Retirement Worksheet'!$B$16 ->  | G95: =B95*'Retirement Worksheet'!$B$8 ->  | H95: =IF(ISERROR(A95),NA(),H94*(1+'Retirement Worksheet'!$B$15)) ->  | I95: =IF(ISERROR(A95),NA(),I94*(1+'Retirement Worksheet'!$B$15)) ->  | L95: =SUM('Retirement Calculations'!G95:I95)*'Retirement Worksheet'!$B$9 ->  | M95: =SUM(G95:I95)*'Retirement Worksheet'!$B$10 ->  | P95: =IF(ISERROR(A95),NA(),P94*(1+'Retirement Worksheet'!$B$15)) -> 
A96: =IF(A95<'Retirement Worksheet'!$B$5,A95+1,NA()) ->  | C96: =B96*'Retirement Worksheet'!$B$11 ->  | D96: =B96*'Retirement Worksheet'!$B$16 ->  | G96: =B96*'Retirement Worksheet'!$B$8 ->  | H96: =IF(ISERROR(A96),NA(),H95*(1+'Retirement Worksheet'!$B$15)) ->  | I96: =IF(ISERROR(A96),NA(),I95*(1+'Retirement Worksheet'!$B$15)) ->  | L96: =SUM('Retirement Calculations'!G96:I96)*'Retirement Worksheet'!$B$9 ->  | M96: =SUM(G96:I96)*'Retirement Worksheet'!$B$10 ->  | P96: =IF(ISERROR(A96),NA(),P95*(1+'Retirement Worksheet'!$B$15)) -> 
A97: =IF(A96<'Retirement Worksheet'!$B$5,A96+1,NA()) ->  | C97: =B97*'Retirement Worksheet'!$B$11 ->  | D97: =B97*'Retirement Worksheet'!$B$16 ->  | G97: =B97*'Retirement Worksheet'!$B$8 ->  | H97: =IF(ISERROR(A97),NA(),H96*(1+'Retirement Worksheet'!$B$15)) ->  | I97: =IF(ISERROR(A97),NA(),I96*(1+'Retirement Worksheet'!$B$15)) ->  | L97: =SUM('Retirement Calculations'!G97:I97)*'Retirement Worksheet'!$B$9 ->  | M97: =SUM(G97:I97)*'Retirement Worksheet'!$B$10 ->  | P97: =IF(ISERROR(A97),NA(),P96*(1+'Retirement Worksheet'!$B$15)) -> 
A98: =IF(A97<'Retirement Worksheet'!$B$5,A97+1,NA()) ->  | C98: =B98*'Retirement Worksheet'!$B$11 ->  | D98: =B98*'Retirement Worksheet'!$B$16 ->  | G98: =B98*'Retirement Worksheet'!$B$8 ->  | H98: =IF(ISERROR(A98),NA(),H97*(1+'Retirement Worksheet'!$B$15)) ->  | I98: =IF(ISERROR(A98),NA(),I97*(1+'Retirement Worksheet'!$B$15)) ->  | L98: =SUM('Retirement Calculations'!G98:I98)*'Retirement Worksheet'!$B$9 ->  | M98: =SUM(G98:I98)*'Retirement Worksheet'!$B$10 ->  | P98: =IF(ISERROR(A98),NA(),P97*(1+'Retirement Worksheet'!$B$15)) -> 
A99: =IF(A98<'Retirement Worksheet'!$B$5,A98+1,NA()) ->  | C99: =B99*'Retirement Worksheet'!$B$11 ->  | D99: =B99*'Retirement Worksheet'!$B$16 ->  | G99: =B99*'Retirement Worksheet'!$B$8 ->  | H99: =IF(ISERROR(A99),NA(),H98*(1+'Retirement Worksheet'!$B$15)) ->  | I99: =IF(ISERROR(A99),NA(),I98*(1+'Retirement Worksheet'!$B$15)) ->  | L99: =SUM('Retirement Calculations'!G99:I99)*'Retirement Worksheet'!$B$9 ->  | M99: =SUM(G99:I99)*'Retirement Worksheet'!$B$10 ->  | P99: =IF(ISERROR(A99),NA(),P98*(1+'Retirement Worksheet'!$B$15)) -> 
A100: =IF(A99<'Retirement Worksheet'!$B$5,A99+1,NA()) ->  | C100: =B100*'Retirement Worksheet'!$B$11 ->  | D100: =B100*'Retirement Worksheet'!$B$16 ->  | G100: =B100*'Retirement Worksheet'!$B$8 ->  | H100: =IF(ISERROR(A100),NA(),H99*(1+'Retirement Worksheet'!$B$15)) ->  | I100: =IF(ISERROR(A100),NA(),I99*(1+'Retirement Worksheet'!$B$15)) ->  | L100: =SUM('Retirement Calculations'!G100:I100)*'Retirement Worksheet'!$B$9 ->  | M100: =SUM(G100:I100)*'Retirement Worksheet'!$B$10 ->  | P100: =IF(ISERROR(A100),NA(),P99*(1+'Retirement Worksheet'!$B$15)) -> 
A101: =IF(A100<'Retirement Worksheet'!$B$5,A100+1,NA()) ->  | C101: =B101*'Retirement Worksheet'!$B$11 ->  | D101: =B101*'Retirement Worksheet'!$B$16 ->  | G101: =B101*'Retirement Worksheet'!$B$8 ->  | H101: =IF(ISERROR(A101),NA(),H100*(1+'Retirement Worksheet'!$B$15)) ->  | I101: =IF(ISERROR(A101),NA(),I100*(1+'Retirement Worksheet'!$B$15)) ->  | L101: =SUM('Retirement Calculations'!G101:I101)*'Retirement Worksheet'!$B$9 ->  | M101: =SUM(G101:I101)*'Retirement Worksheet'!$B$10 ->  | P101: =IF(ISERROR(A101),NA(),P100*(1+'Retirement Worksheet'!$B$15)) -> 
A102: =IF(A101<'Retirement Worksheet'!$B$5,A101+1,NA()) ->  | C102: =B102*'Retirement Worksheet'!$B$11 ->  | D102: =B102*'Retirement Worksheet'!$B$16 ->  | G102: =B102*'Retirement Worksheet'!$B$8 ->  | H102: =IF(ISERROR(A102),NA(),H101*(1+'Retirement Worksheet'!$B$15)) ->  | I102: =IF(ISERROR(A102),NA(),I101*(1+'Retirement Worksheet'!$B$15)) ->  | L102: =SUM('Retirement Calculations'!G102:I102)*'Retirement Worksheet'!$B$9 ->  | M102: =SUM(G102:I102)*'Retirement Worksheet'!$B$10 ->  | P102: =IF(ISERROR(A102),NA(),P101*(1+'Retirement Worksheet'!$B$15)) -> 
A103: =IF(A102<'Retirement Worksheet'!$B$5,A102+1,NA()) ->  | C103: =B103*'Retirement Worksheet'!$B$11 ->  | D103: =B103*'Retirement Worksheet'!$B$16 ->  | G103: =B103*'Retirement Worksheet'!$B$8 ->  | H103: =IF(ISERROR(A103),NA(),H102*(1+'Retirement Worksheet'!$B$15)) ->  | I103: =IF(ISERROR(A103),NA(),I102*(1+'Retirement Worksheet'!$B$15)) ->  | L103: =SUM('Retirement Calculations'!G103:I103)*'Retirement Worksheet'!$B$9 ->  | M103: =SUM(G103:I103)*'Retirement Worksheet'!$B$10 ->  | P103: =IF(ISERROR(A103),NA(),P102*(1+'Retirement Worksheet'!$B$15)) -> 
A104: =IF(A103<'Retirement Worksheet'!$B$5,A103+1,NA()) ->  | C104: =B104*'Retirement Worksheet'!$B$11 ->  | D104: =B104*'Retirement Worksheet'!$B$16 ->  | G104: =B104*'Retirement Worksheet'!$B$8 ->  | H104: =IF(ISERROR(A104),NA(),H103*(1+'Retirement Worksheet'!$B$15)) ->  | I104: =IF(ISERROR(A104),NA(),I103*(1+'Retirement Worksheet'!$B$15)) ->  | L104: =SUM('Retirement Calculations'!G104:I104)*'Retirement Worksheet'!$B$9 ->  | M104: =SUM(G104:I104)*'Retirement Worksheet'!$B$10 ->  | P104: =IF(ISERROR(A104),NA(),P103*(1+'Retirement Worksheet'!$B$15)) -> 
A105: =IF(A104<'Retirement Worksheet'!$B$5,A104+1,NA()) ->  | C105: =B105*'Retirement Worksheet'!$B$11 ->  | D105: =B105*'Retirement Worksheet'!$B$16 ->  | G105: =B105*'Retirement Worksheet'!$B$8 ->  | H105: =IF(ISERROR(A105),NA(),H104*(1+'Retirement Worksheet'!$B$15)) ->  | I105: =IF(ISERROR(A105),NA(),I104*(1+'Retirement Worksheet'!$B$15)) ->  | L105: =SUM('Retirement Calculations'!G105:I105)*'Retirement Worksheet'!$B$9 ->  | M105: =SUM(G105:I105)*'Retirement Worksheet'!$B$10 ->  | P105: =IF(ISERROR(A105),NA(),P104*(1+'Retirement Worksheet'!$B$15)) -> 
A106: =IF(A105<'Retirement Worksheet'!$B$5,A105+1,NA()) ->  | C106: =B106*'Retirement Worksheet'!$B$11 ->  | D106: =B106*'Retirement Worksheet'!$B$16 ->  | G106: =B106*'Retirement Worksheet'!$B$8 ->  | H106: =IF(ISERROR(A106),NA(),H105*(1+'Retirement Worksheet'!$B$15)) ->  | I106: =IF(ISERROR(A106),NA(),I105*(1+'Retirement Worksheet'!$B$15)) ->  | L106: =SUM('Retirement Calculations'!G106:I106)*'Retirement Worksheet'!$B$9 ->  | M106: =SUM(G106:I106)*'Retirement Worksheet'!$B$10 ->  | P106: =IF(ISERROR(A106),NA(),P105*(1+'Retirement Worksheet'!$B$15)) -> 
A107: =IF(A106<'Retirement Worksheet'!$B$5,A106+1,NA()) ->  | C107: =B107*'Retirement Worksheet'!$B$11 ->  | D107: =B107*'Retirement Worksheet'!$B$16 ->  | G107: =B107*'Retirement Worksheet'!$B$8 ->  | H107: =IF(ISERROR(A107),NA(),H106*(1+'Retirement Worksheet'!$B$15)) ->  | I107: =IF(ISERROR(A107),NA(),I106*(1+'Retirement Worksheet'!$B$15)) ->  | L107: =SUM('Retirement Calculations'!G107:I107)*'Retirement Worksheet'!$B$9 ->  | M107: =SUM(G107:I107)*'Retirement Worksheet'!$B$10 ->  | P107: =IF(ISERROR(A107),NA(),P106*(1+'Retirement Worksheet'!$B$15)) -> 

Sheet Salary Worksheet
A1: SALARY WORKSHEET | D1: Salary Requirement Graph
A2: DIRECTIONS: 1) Enter assumptions, 2) click 'Enter'->
A4: Assumptions
A5: Current age (# years old) | B5: 56
A6: Projected Retirement age (# years old) | B6: 65
A7: Current Savings Available ($) | B7: 2000000
A8: Federal Tax rate (%) | B8: 0.25
A9: State Tax rate (%) | B9: 0.06
A10: Local Tax rate (%) | B10: 0.02
A11: Annual investment fees (%) | B11: 0.0025
A12: Annual return on investments (%) | B12: 0.05
A13: Social Security tax rate (%) | B13: 0.062
A14: Medicare tax rate (%) | B14: 0.0145
A15: Required Savings upon retirement ($) | B15: 3000000
A16: Projected Annual Salary at Current Age ($) | B16: 300000
A17: Annual Military Pension ($) | B17: 30000
A18: Military Pension Taxed by State? | B18: Yes | V18: Row Labels | W18: Sum of Savings | X18: Sum of Savings Requirement | Y18: Sum of Salary | Z18: Sum of Net Income
A19: Annual expenses ($) | B19: 150000 | V19: 56 | W19: 2000000 | X19: 3000000 | Y19: 300000 | Z19: 45855
A20: Annual inflation rate and income increases (%) | B20: 0.02 | V20: 57 | W20: 2140855 | X20: 3000000 | Y20: 306000 | Z20: 46772.1
V21: 58 | W21: 2289317.712 | X21: 3000000 | Y21: 312120 | Z21: 47707.542
D22: Chart Detail | V22: 59 | W22: 2445767.846 | X22: 3000000 | Y22: 318362.4 | Z22: 48661.69284
V23: 60 | W23: 2610603.511 | X23: 3000000 | Y23: 324729.648 | Z23: 49634.9267
E24: Investments | J24: Income | M24: Deductions | S24: Expenses | V24: 61 | W24: 2784242.105 | X24: 3000000 | Y24: 331224.241 | Z24: 50627.62523
D25: ='Salary Calculations'!A2 -> Age | E25: ='Salary Calculations'!B2 -> Savings | F25: ='Salary Calculations'!C2 -> Savings Requirement | G25: ='Salary Calculations'!D2 -> Investment Fees | H25: ='Salary Calculations'!E2 -> Return on Investments | I25: ='Salary Calculations'!F2 -> Net Investments | J25: ='Salary Calculations'!G2 -> Salary | K25: ='Salary Calculations'!H2 -> Pension | L25: ='Salary Calculations'!I2 -> Total Income | M25: ='Salary Calculations'!J2 -> Federal Taxes | N25: ='Salary Calculations'!K2 -> Social Security | O25: ='Salary Calculations'!L2 -> Medicare | P25: ='Salary Calculations'!M2 -> State Taxes | Q25: ='Salary Calculations'!N2 -> Local Taxes | R25: ='Salary Calculations'!O2 -> Total Deductions | S25: ='Salary Calculations'!P2 -> Expenses | T25: ='Salary Calculations'!Q2 -> Net Income | V25: 62 | W25: 2967121.23 | X25: 3000000 | Y25: 337848.7258 | Z25: 51640.17774
D26: =IFERROR('Salary Calculations'!A3,"") -> 56 | E26: =IFERROR('Salary Calculations'!B3,"") -> 2000000 | F26: =IFERROR('Salary Calculations'!C3,"") -> 3000000 | G26: =IFERROR('Salary Calculations'!D3,"") -> 5000 | H26: =IFERROR('Salary Calculations'!E3,"") -> 100000 | I26: =IFERROR('Salary Calculations'!F3,"") -> 2095000 | J26: =IFERROR('Salary Calculations'!G3,"") -> 300000 | K26: =IFERROR('Salary Calculations'!H3,"") -> 30000 | L26: =IFERROR('Salary Calculations'!I3,"") -> 330000 | M26: =IFERROR('Salary Calculations'!J3,"") -> 82500 | N26: =IFERROR('Salary Calculations'!K3,"") -> 20460 | O26: =IFERROR('Salary Calculations'!L3,"") -> 4785 | P26: =IFERROR('Salary Calculations'!M3,"") -> 19800 | Q26: =IFERROR('Salary Calculations'!N3,"") -> 6600 | R26: =IFERROR('Salary Calculations'!O3,"") -> 134145 | S26: =IFERROR('Salary Calculations'!P3,"") -> 150000 | T26: =IFERROR('Salary Calculations'!Q3,"") -> 45855 | V26: 63 | W26: 3159699.666 | X26: 3000000 | Y26: 344605.7003 | Z26: 52672.98129
D27: =IFERROR('Salary Calculations'!A4,"") -> 57 | E27: =IFERROR('Salary Calculations'!B4,"") -> 2140855 | F27: =IFERROR('Salary Calculations'!C4,"") -> 3000000 | G27: =IFERROR('Salary Calculations'!D4,"") -> 5352.1375 | H27: =IFERROR('Salary Calculations'!E4,"") -> 107042.75 | I27: =IFERROR('Salary Calculations'!F4,"") -> 2242545.612 | J27: =IFERROR('Salary Calculations'!G4,"") -> 306000 | K27: =IFERROR('Salary Calculations'!H4,"") -> 30600 | L27: =IFERROR('Salary Calculations'!I4,"") -> 336600 | M27: =IFERROR('Salary Calculations'!J4,"") -> 84150 | N27: =IFERROR('Salary Calculations'!K4,"") -> 20869.2 | O27: =IFERROR('Salary Calculations'!L4,"") -> 4880.7 | P27: =IFERROR('Salary Calculations'!M4,"") -> 20196 | Q27: =IFERROR('Salary Calculations'!N4,"") -> 6732 | R27: =IFERROR('Salary Calculations'!O4,"") -> 136827.9 | S27: =IFERROR('Salary Calculations'!P4,"") -> 153000 | T27: =IFERROR('Salary Calculations'!Q4,"") -> 46772.1 | V27: 64 | W27: 3362458.382 | X27: 3000000 | Y27: 351497.8143 | Z27: 53726.44092
D28: =IFERROR('Salary Calculations'!A5,"") -> 58 | E28: =IFERROR('Salary Calculations'!B5,"") -> 2289317.712 | F28: =IFERROR('Salary Calculations'!C5,"") -> 3000000 | G28: =IFERROR('Salary Calculations'!D5,"") -> 5723.294281 | H28: =IFERROR('Salary Calculations'!E5,"") -> 114465.8856 | I28: =IFERROR('Salary Calculations'!F5,"") -> 2398060.304 | J28: =IFERROR('Salary Calculations'!G5,"") -> 312120 | K28: =IFERROR('Salary Calculations'!H5,"") -> 31212 | L28: =IFERROR('Salary Calculations'!I5,"") -> 343332 | M28: =IFERROR('Salary Calculations'!J5,"") -> 85833 | N28: =IFERROR('Salary Calculations'!K5,"") -> 21286.584 | O28: =IFERROR('Salary Calculations'!L5,"") -> 4978.314 | P28: =IFERROR('Salary Calculations'!M5,"") -> 20599.92 | Q28: =IFERROR('Salary Calculations'!N5,"") -> 6866.64 | R28: =IFERROR('Salary Calculations'!O5,"") -> 139564.458 | S28: =IFERROR('Salary Calculations'!P5,"") -> 156060 | T28: =IFERROR('Salary Calculations'!Q5,"") -> 47707.542 | V28: 65 | W28: 3575901.596 | X28: 3000000 | Y28: 358527.7706 | Z28: 54800.96973
D29: =IFERROR('Salary Calculations'!A6,"") -> 59 | E29: =IFERROR('Salary Calculations'!B6,"") -> 2445767.846 | F29: =IFERROR('Salary Calculations'!C6,"") -> 3000000 | G29: =IFERROR('Salary Calculations'!D6,"") -> 6114.419615 | H29: =IFERROR('Salary Calculations'!E6,"") -> 122288.3923 | I29: =IFERROR('Salary Calculations'!F6,"") -> 2561941.819 | J29: =IFERROR('Salary Calculations'!G6,"") -> 318362.4 | K29: =IFERROR('Salary Calculations'!H6,"") -> 31836.24 | L29: =IFERROR('Salary Calculations'!I6,"") -> 350198.64 | M29: =IFERROR('Salary Calculations'!J6,"") -> 87549.66 | N29: =IFERROR('Salary Calculations'!K6,"") -> 21712.31568 | O29: =IFERROR('Salary Calculations'!L6,"") -> 5077.88028 | P29: =IFERROR('Salary Calculations'!M6,"") -> 21011.9184 | Q29: =IFERROR('Salary Calculations'!N6,"") -> 7003.9728 | R29: =IFERROR('Salary Calculations'!O6,"") -> 142355.7472 | S29: =IFERROR('Salary Calculations'!P6,"") -> 159181.2 | T29: =IFERROR('Salary Calculations'!Q6,"") -> 48661.69284 | V29: Grand Total | W29: 27335967.05 | X29: 30000000 | Y29: 3284916.3 | Z29: 502099.4564
D30: =IFERROR('Salary Calculations'!A7,"") -> 60 | E30: =IFERROR('Salary Calculations'!B7,"") -> 2610603.511 | F30: =IFERROR('Salary Calculations'!C7,"") -> 3000000 | G30: =IFERROR('Salary Calculations'!D7,"") -> 6526.508778 | H30: =IFERROR('Salary Calculations'!E7,"") -> 130530.1756 | I30: =IFERROR('Salary Calculations'!F7,"") -> 2734607.178 | J30: =IFERROR('Salary Calculations'!G7,"") -> 324729.648 | K30: =IFERROR('Salary Calculations'!H7,"") -> 32472.9648 | L30: =IFERROR('Salary Calculations'!I7,"") -> 357202.6128 | M30: =IFERROR('Salary Calculations'!J7,"") -> 89300.6532 | N30: =IFERROR('Salary Calculations'!K7,"") -> 22146.56199 | O30: =IFERROR('Salary Calculations'!L7,"") -> 5179.437886 | P30: =IFERROR('Salary Calculations'!M7,"") -> 21432.15677 | Q30: =IFERROR('Salary Calculations'!N7,"") -> 7144.052256 | R30: =IFERROR('Salary Calculations'!O7,"") -> 145202.8621 | S30: =IFERROR('Salary Calculations'!P7,"") -> 162364.824 | T30: =IFERROR('Salary Calculations'!Q7,"") -> 49634.9267
D31: =IFERROR('Salary Calculations'!A8,"") -> 61 | E31: =IFERROR('Salary Calculations'!B8,"") -> 2784242.105 | F31: =IFERROR('Salary Calculations'!C8,"") -> 3000000 | G31: =IFERROR('Salary Calculations'!D8,"") -> 6960.605262 | H31: =IFERROR('Salary Calculations'!E8,"") -> 139212.1052 | I31: =IFERROR('Salary Calculations'!F8,"") -> 2916493.605 | J31: =IFERROR('Salary Calculations'!G8,"") -> 331224.241 | K31: =IFERROR('Salary Calculations'!H8,"") -> 33122.4241 | L31: =IFERROR('Salary Calculations'!I8,"") -> 364346.6651 | M31: =IFERROR('Salary Calculations'!J8,"") -> 91086.66626 | N31: =IFERROR('Salary Calculations'!K8,"") -> 22589.49323 | O31: =IFERROR('Salary Calculations'!L8,"") -> 5283.026643 | P31: =IFERROR('Salary Calculations'!M8,"") -> 21860.7999 | Q31: =IFERROR('Salary Calculations'!N8,"") -> 7286.933301 | R31: =IFERROR('Salary Calculations'!O8,"") -> 148106.9193 | S31: =IFERROR('Salary Calculations'!P8,"") -> 165612.1205 | T31: =IFERROR('Salary Calculations'!Q8,"") -> 50627.62523
D32: =IFERROR('Salary Calculations'!A9,"") -> 62 | E32: =IFERROR('Salary Calculations'!B9,"") -> 2967121.23 | F32: =IFERROR('Salary Calculations'!C9,"") -> 3000000 | G32: =IFERROR('Salary Calculations'!D9,"") -> 7417.803075 | H32: =IFERROR('Salary Calculations'!E9,"") -> 148356.0615 | I32: =IFERROR('Salary Calculations'!F9,"") -> 3108059.488 | J32: =IFERROR('Salary Calculations'!G9,"") -> 337848.7258 | K32: =IFERROR('Salary Calculations'!H9,"") -> 33784.87258 | L32: =IFERROR('Salary Calculations'!I9,"") -> 371633.5984 | M32: =IFERROR('Salary Calculations'!J9,"") -> 92908.39959 | N32: =IFERROR('Salary Calculations'!K9,"") -> 23041.2831 | O32: =IFERROR('Salary Calculations'!L9,"") -> 5388.687176 | P32: =IFERROR('Salary Calculations'!M9,"") -> 22298.0159 | Q32: =IFERROR('Salary Calculations'!N9,"") -> 7432.671967 | R32: =IFERROR('Salary Calculations'!O9,"") -> 151069.0577 | S32: =IFERROR('Salary Calculations'!P9,"") -> 168924.3629 | T32: =IFERROR('Salary Calculations'!Q9,"") -> 51640.17774
D33: =IFERROR('Salary Calculations'!A10,"") -> 63 | E33: =IFERROR('Salary Calculations'!B10,"") -> 3159699.666 | F33: =IFERROR('Salary Calculations'!C10,"") -> 3000000 | G33: =IFERROR('Salary Calculations'!D10,"") -> 7899.249166 | H33: =IFERROR('Salary Calculations'!E10,"") -> 157984.9833 | I33: =IFERROR('Salary Calculations'!F10,"") -> 3309785.4 | J33: =IFERROR('Salary Calculations'!G10,"") -> 344605.7003 | K33: =IFERROR('Salary Calculations'!H10,"") -> 34460.57003 | L33: =IFERROR('Salary Calculations'!I10,"") -> 379066.2703 | M33: =IFERROR('Salary Calculations'!J10,"") -> 94766.56758 | N33: =IFERROR('Salary Calculations'!K10,"") -> 23502.10876 | O33: =IFERROR('Salary Calculations'!L10,"") -> 5496.46092 | P33: =IFERROR('Salary Calculations'!M10,"") -> 22743.97622 | Q33: =IFERROR('Salary Calculations'!N10,"") -> 7581.325406 | R33: =IFERROR('Salary Calculations'!O10,"") -> 154090.4389 | S33: =IFERROR('Salary Calculations'!P10,"") -> 172302.8501 | T33: =IFERROR('Salary Calculations'!Q10,"") -> 52672.98129
D34: =IFERROR('Salary Calculations'!A11,"") -> 64 | E34: =IFERROR('Salary Calculations'!B11,"") -> 3362458.382 | F34: =IFERROR('Salary Calculations'!C11,"") -> 3000000 | G34: =IFERROR('Salary Calculations'!D11,"") -> 8406.145954 | H34: =IFERROR('Salary Calculations'!E11,"") -> 168122.9191 | I34: =IFERROR('Salary Calculations'!F11,"") -> 3522175.155 | J34: =IFERROR('Salary Calculations'!G11,"") -> 351497.8143 | K34: =IFERROR('Salary Calculations'!H11,"") -> 35149.78143 | L34: =IFERROR('Salary Calculations'!I11,"") -> 386647.5957 | M34: =IFERROR('Salary Calculations'!J11,"") -> 96661.89893 | N34: =IFERROR('Salary Calculations'!K11,"") -> 23972.15094 | O34: =IFERROR('Salary Calculations'!L11,"") -> 5606.390138 | P34: =IFERROR('Salary Calculations'!M11,"") -> 23198.85574 | Q34: =IFERROR('Salary Calculations'!N11,"") -> 7732.951915 | R34: =IFERROR('Salary Calculations'!O11,"") -> 157172.2477 | S34: =IFERROR('Salary Calculations'!P11,"") -> 175748.9072 | T34: =IFERROR('Salary Calculations'!Q11,"") -> 53726.44092
D35: =IFERROR('Salary Calculations'!A12,"") -> 65 | E35: =IFERROR('Salary Calculations'!B12,"") -> 3575901.596 | F35: =IFERROR('Salary Calculations'!C12,"") -> 3000000 | G35: =IFERROR('Salary Calculations'!D12,"") -> 8939.753989 | H35: =IFERROR('Salary Calculations'!E12,"") -> 178795.0798 | I35: =IFERROR('Salary Calculations'!F12,"") -> 3745756.921 | J35: =IFERROR('Salary Calculations'!G12,"") -> 358527.7706 | K35: =IFERROR('Salary Calculations'!H12,"") -> 35852.77706 | L35: =IFERROR('Salary Calculations'!I12,"") -> 394380.5476 | M35: =IFERROR('Salary Calculations'!J12,"") -> 98595.13691 | N35: =IFERROR('Salary Calculations'!K12,"") -> 24451.59395 | O35: =IFERROR('Salary Calculations'!L12,"") -> 5718.517941 | P35: =IFERROR('Salary Calculations'!M12,"") -> 23662.83286 | Q35: =IFERROR('Salary Calculations'!N12,"") -> 7887.610953 | R35: =IFERROR('Salary Calculations'!O12,"") -> 160315.6926 | S35: =IFERROR('Salary Calculations'!P12,"") -> 179263.8853 | T35: =IFERROR('Salary Calculations'!Q12,"") -> 54800.96973
D36: =IFERROR('Salary Calculations'!A13,"") ->  | E36: =IFERROR('Salary Calculations'!B13,"") ->  | F36: =IFERROR('Salary Calculations'!C13,"") ->  | G36: =IFERROR('Salary Calculations'!D13,"") ->  | H36: =IFERROR('Salary Calculations'!E13,"") ->  | I36: =IFERROR('Salary Calculations'!F13,"") ->  | J36: =IFERROR('Salary Calculations'!G13,"") ->  | K36: =IFERROR('Salary Calculations'!H13,"") ->  | L36: =IFERROR('Salary Calculations'!I13,"") ->  | M36: =IFERROR('Salary Calculations'!J13,"") ->  | N36: =IFERROR('Salary Calculations'!K13,"") ->  | O36: =IFERROR('Salary Calculations'!L13,"") ->  | P36: =IFERROR('Salary Calculations'!M13,"") ->  | Q36: =IFERROR('Salary Calculations'!N13,"") ->  | R36: =IFERROR('Salary Calculations'!O13,"") ->  | S36: =IFERROR('Salary Calculations'!P13,"") ->  | T36: =IFERROR('Salary Calculations'!Q13,"") -> 
D37: =IFERROR('Salary Calculations'!A14,"") ->  | E37: =IFERROR('Salary Calculations'!B14,"") ->  | F37: =IFERROR('Salary Calculations'!C14,"") ->  | G37: =IFERROR('Salary Calculations'!D14,"") ->  | H37: =IFERROR('Salary Calculations'!E14,"") ->  | I37: =IFERROR('Salary Calculations'!F14,"") ->  | J37: =IFERROR('Salary Calculations'!G14,"") ->  | K37: =IFERROR('Salary Calculations'!H14,"") ->  | L37: =IFERROR('Salary Calculations'!I14,"") ->  | M37: =IFERROR('Salary Calculations'!J14,"") ->  | N37: =IFERROR('Salary Calculations'!K14,"") ->  | O37: =IFERROR('Salary Calculations'!L14,"") ->  | P37: =IFERROR('Salary Calculations'!M14,"") ->  | Q37: =IFERROR('Salary Calculations'!N14,"") ->  | R37: =IFERROR('Salary Calculations'!O14,"") ->  | S37: =IFERROR('Salary Calculations'!P14,"") ->  | T37: =IFERROR('Salary Calculations'!Q14,"") -> 
D38: =IFERROR('Salary Calculations'!A15,"") ->  | E38: =IFERROR('Salary Calculations'!B15,"") ->  | F38: =IFERROR('Salary Calculations'!C15,"") ->  | G38: =IFERROR('Salary Calculations'!D15,"") ->  | H38: =IFERROR('Salary Calculations'!E15,"") ->  | I38: =IFERROR('Salary Calculations'!F15,"") ->  | J38: =IFERROR('Salary Calculations'!G15,"") ->  | K38: =IFERROR('Salary Calculations'!H15,"") ->  | L38: =IFERROR('Salary Calculations'!I15,"") ->  | M38: =IFERROR('Salary Calculations'!J15,"") ->  | N38: =IFERROR('Salary Calculations'!K15,"") ->  | O38: =IFERROR('Salary Calculations'!L15,"") ->  | P38: =IFERROR('Salary Calculations'!M15,"") ->  | Q38: =IFERROR('Salary Calculations'!N15,"") ->  | R38: =IFERROR('Salary Calculations'!O15,"") ->  | S38: =IFERROR('Salary Calculations'!P15,"") ->  | T38: =IFERROR('Salary Calculations'!Q15,"") -> 
D39: =IFERROR('Salary Calculations'!A16,"") ->  | E39: =IFERROR('Salary Calculations'!B16,"") ->  | F39: =IFERROR('Salary Calculations'!C16,"") ->  | G39: =IFERROR('Salary Calculations'!D16,"") ->  | H39: =IFERROR('Salary Calculations'!E16,"") ->  | I39: =IFERROR('Salary Calculations'!F16,"") ->  | J39: =IFERROR('Salary Calculations'!G16,"") ->  | K39: =IFERROR('Salary Calculations'!H16,"") ->  | L39: =IFERROR('Salary Calculations'!I16,"") ->  | M39: =IFERROR('Salary Calculations'!J16,"") ->  | N39: =IFERROR('Salary Calculations'!K16,"") ->  | O39: =IFERROR('Salary Calculations'!L16,"") ->  | P39: =IFERROR('Salary Calculations'!M16,"") ->  | Q39: =IFERROR('Salary Calculations'!N16,"") ->  | R39: =IFERROR('Salary Calculations'!O16,"") ->  | S39: =IFERROR('Salary Calculations'!P16,"") ->  | T39: =IFERROR('Salary Calculations'!Q16,"") -> 
D40: =IFERROR('Salary Calculations'!A17,"") ->  | E40: =IFERROR('Salary Calculations'!B17,"") ->  | F40: =IFERROR('Salary Calculations'!C17,"") ->  | G40: =IFERROR('Salary Calculations'!D17,"") ->  | H40: =IFERROR('Salary Calculations'!E17,"") ->  | I40: =IFERROR('Salary Calculations'!F17,"") ->  | J40: =IFERROR('Salary Calculations'!G17,"") ->  | K40: =IFERROR('Salary Calculations'!H17,"") ->  | L40: =IFERROR('Salary Calculations'!I17,"") ->  | M40: =IFERROR('Salary Calculations'!J17,"") ->  | N40: =IFERROR('Salary Calculations'!K17,"") ->  | O40: =IFERROR('Salary Calculations'!L17,"") ->  | P40: =IFERROR('Salary Calculations'!M17,"") ->  | Q40: =IFERROR('Salary Calculations'!N17,"") ->  | R40: =IFERROR('Salary Calculations'!O17,"") ->  | S40: =IFERROR('Salary Calculations'!P17,"") ->  | T40: =IFERROR('Salary Calculations'!Q17,"") -> 
D41: =IFERROR('Salary Calculations'!A18,"") ->  | E41: =IFERROR('Salary Calculations'!B18,"") ->  | F41: =IFERROR('Salary Calculations'!C18,"") ->  | G41: =IFERROR('Salary Calculations'!D18,"") ->  | H41: =IFERROR('Salary Calculations'!E18,"") ->  | I41: =IFERROR('Salary Calculations'!F18,"") ->  | J41: =IFERROR('Salary Calculations'!G18,"") ->  | K41: =IFERROR('Salary Calculations'!H18,"") ->  | L41: =IFERROR('Salary Calculations'!I18,"") ->  | M41: =IFERROR('Salary Calculations'!J18,"") ->  | N41: =IFERROR('Salary Calculations'!K18,"") ->  | O41: =IFERROR('Salary Calculations'!L18,"") ->  | P41: =IFERROR('Salary Calculations'!M18,"") ->  | Q41: =IFERROR('Salary Calculations'!N18,"") ->  | R41: =IFERROR('Salary Calculations'!O18,"") ->  | S41: =IFERROR('Salary Calculations'!P18,"") ->  | T41: =IFERROR('Salary Calculations'!Q18,"") -> 
D42: =IFERROR('Salary Calculations'!A19,"") ->  | E42: =IFERROR('Salary Calculations'!B19,"") ->  | F42: =IFERROR('Salary Calculations'!C19,"") ->  | G42: =IFERROR('Salary Calculations'!D19,"") ->  | H42: =IFERROR('Salary Calculations'!E19,"") ->  | I42: =IFERROR('Salary Calculations'!F19,"") ->  | J42: =IFERROR('Salary Calculations'!G19,"") ->  | K42: =IFERROR('Salary Calculations'!H19,"") ->  | L42: =IFERROR('Salary Calculations'!I19,"") ->  | M42: =IFERROR('Salary Calculations'!J19,"") ->  | N42: =IFERROR('Salary Calculations'!K19,"") ->  | O42: =IFERROR('Salary Calculations'!L19,"") ->  | P42: =IFERROR('Salary Calculations'!M19,"") ->  | Q42: =IFERROR('Salary Calculations'!N19,"") ->  | R42: =IFERROR('Salary Calculations'!O19,"") ->  | S42: =IFERROR('Salary Calculations'!P19,"") ->  | T42: =IFERROR('Salary Calculations'!Q19,"") -> 
D43: =IFERROR('Salary Calculations'!A20,"") ->  | E43: =IFERROR('Salary Calculations'!B20,"") ->  | F43: =IFERROR('Salary Calculations'!C20,"") ->  | G43: =IFERROR('Salary Calculations'!D20,"") ->  | H43: =IFERROR('Salary Calculations'!E20,"") ->  | I43: =IFERROR('Salary Calculations'!F20,"") ->  | J43: =IFERROR('Salary Calculations'!G20,"") ->  | K43: =IFERROR('Salary Calculations'!H20,"") ->  | L43: =IFERROR('Salary Calculations'!I20,"") ->  | M43: =IFERROR('Salary Calculations'!J20,"") ->  | N43: =IFERROR('Salary Calculations'!K20,"") ->  | O43: =IFERROR('Salary Calculations'!L20,"") ->  | P43: =IFERROR('Salary Calculations'!M20,"") ->  | Q43: =IFERROR('Salary Calculations'!N20,"") ->  | R43: =IFERROR('Salary Calculations'!O20,"") ->  | S43: =IFERROR('Salary Calculations'!P20,"") ->  | T43: =IFERROR('Salary Calculations'!Q20,"") -> 
D44: =IFERROR('Salary Calculations'!A21,"") ->  | E44: =IFERROR('Salary Calculations'!B21,"") ->  | F44: =IFERROR('Salary Calculations'!C21,"") ->  | G44: =IFERROR('Salary Calculations'!D21,"") ->  | H44: =IFERROR('Salary Calculations'!E21,"") ->  | I44: =IFERROR('Salary Calculations'!F21,"") ->  | J44: =IFERROR('Salary Calculations'!G21,"") ->  | K44: =IFERROR('Salary Calculations'!H21,"") ->  | L44: =IFERROR('Salary Calculations'!I21,"") ->  | M44: =IFERROR('Salary Calculations'!J21,"") ->  | N44: =IFERROR('Salary Calculations'!K21,"") ->  | O44: =IFERROR('Salary Calculations'!L21,"") ->  | P44: =IFERROR('Salary Calculations'!M21,"") ->  | Q44: =IFERROR('Salary Calculations'!N21,"") ->  | R44: =IFERROR('Salary Calculations'!O21,"") ->  | S44: =IFERROR('Salary Calculations'!P21,"") ->  | T44: =IFERROR('Salary Calculations'!Q21,"") -> 
D45: =IFERROR('Salary Calculations'!A22,"") ->  | E45: =IFERROR('Salary Calculations'!B22,"") ->  | F45: =IFERROR('Salary Calculations'!C22,"") ->  | G45: =IFERROR('Salary Calculations'!D22,"") ->  | H45: =IFERROR('Salary Calculations'!E22,"") ->  | I45: =IFERROR('Salary Calculations'!F22,"") ->  | J45: =IFERROR('Salary Calculations'!G22,"") ->  | K45: =IFERROR('Salary Calculations'!H22,"") ->  | L45: =IFERROR('Salary Calculations'!I22,"") ->  | M45: =IFERROR('Salary Calculations'!J22,"") ->  | N45: =IFERROR('Salary Calculations'!K22,"") ->  | O45: =IFERROR('Salary Calculations'!L22,"") ->  | P45: =IFERROR('Salary Calculations'!M22,"") ->  | Q45: =IFERROR('Salary Calculations'!N22,"") ->  | R45: =IFERROR('Salary Calculations'!O22,"") ->  | S45: =IFERROR('Salary Calculations'!P22,"") ->  | T45: =IFERROR('Salary Calculations'!Q22,"") -> 
D46: =IFERROR('Salary Calculations'!A23,"") ->  | E46: =IFERROR('Salary Calculations'!B23,"") ->  | F46: =IFERROR('Salary Calculations'!C23,"") ->  | G46: =IFERROR('Salary Calculations'!D23,"") ->  | H46: =IFERROR('Salary Calculations'!E23,"") ->  | I46: =IFERROR('Salary Calculations'!F23,"") ->  | J46: =IFERROR('Salary Calculations'!G23,"") ->  | K46: =IFERROR('Salary Calculations'!H23,"") ->  | L46: =IFERROR('Salary Calculations'!I23,"") ->  | M46: =IFERROR('Salary Calculations'!J23,"") ->  | N46: =IFERROR('Salary Calculations'!K23,"") ->  | O46: =IFERROR('Salary Calculations'!L23,"") ->  | P46: =IFERROR('Salary Calculations'!M23,"") ->  | Q46: =IFERROR('Salary Calculations'!N23,"") ->  | R46: =IFERROR('Salary Calculations'!O23,"") ->  | S46: =IFERROR('Salary Calculations'!P23,"") ->  | T46: =IFERROR('Salary Calculations'!Q23,"") -> 
D47: =IFERROR('Salary Calculations'!A24,"") ->  | E47: =IFERROR('Salary Calculations'!B24,"") ->  | F47: =IFERROR('Salary Calculations'!C24,"") ->  | G47: =IFERROR('Salary Calculations'!D24,"") ->  | H47: =IFERROR('Salary Calculations'!E24,"") ->  | I47: =IFERROR('Salary Calculations'!F24,"") ->  | J47: =IFERROR('Salary Calculations'!G24,"") ->  | K47: =IFERROR('Salary Calculations'!H24,"") ->  | L47: =IFERROR('Salary Calculations'!I24,"") ->  | M47: =IFERROR('Salary Calculations'!J24,"") ->  | N47: =IFERROR('Salary Calculations'!K24,"") ->  | O47: =IFERROR('Salary Calculations'!L24,"") ->  | P47: =IFERROR('Salary Calculations'!M24,"") ->  | Q47: =IFERROR('Salary Calculations'!N24,"") ->  | R47: =IFERROR('Salary Calculations'!O24,"") ->  | S47: =IFERROR('Salary Calculations'!P24,"") ->  | T47: =IFERROR('Salary Calculations'!Q24,"") -> 
D48: =IFERROR('Salary Calculations'!A25,"") ->  | E48: =IFERROR('Salary Calculations'!B25,"") ->  | F48: =IFERROR('Salary Calculations'!C25,"") ->  | G48: =IFERROR('Salary Calculations'!D25,"") ->  | H48: =IFERROR('Salary Calculations'!E25,"") ->  | I48: =IFERROR('Salary Calculations'!F25,"") ->  | J48: =IFERROR('Salary Calculations'!G25,"") ->  | K48: =IFERROR('Salary Calculations'!H25,"") ->  | L48: =IFERROR('Salary Calculations'!I25,"") ->  | M48: =IFERROR('Salary Calculations'!J25,"") ->  | N48: =IFERROR('Salary Calculations'!K25,"") ->  | O48: =IFERROR('Salary Calculations'!L25,"") ->  | P48: =IFERROR('Salary Calculations'!M25,"") ->  | Q48: =IFERROR('Salary Calculations'!N25,"") ->  | R48: =IFERROR('Salary Calculations'!O25,"") ->  | S48: =IFERROR('Salary Calculations'!P25,"") ->  | T48: =IFERROR('Salary Calculations'!Q25,"") -> 
D49: =IFERROR('Salary Calculations'!A26,"") ->  | E49: =IFERROR('Salary Calculations'!B26,"") ->  | F49: =IFERROR('Salary Calculations'!C26,"") ->  | G49: =IFERROR('Salary Calculations'!D26,"") ->  | H49: =IFERROR('Salary Calculations'!E26,"") ->  | I49: =IFERROR('Salary Calculations'!F26,"") ->  | J49: =IFERROR('Salary Calculations'!G26,"") ->  | K49: =IFERROR('Salary Calculations'!H26,"") ->  | L49: =IFERROR('Salary Calculations'!I26,"") ->  | M49: =IFERROR('Salary Calculations'!J26,"") ->  | N49: =IFERROR('Salary Calculations'!K26,"") ->  | O49: =IFERROR('Salary Calculations'!L26,"") ->  | P49: =IFERROR('Salary Calculations'!M26,"") ->  | Q49: =IFERROR('Salary Calculations'!N26,"") ->  | R49: =IFERROR('Salary Calculations'!O26,"") ->  | S49: =IFERROR('Salary Calculations'!P26,"") ->  | T49: =IFERROR('Salary Calculations'!Q26,"") -> 
D50: =IFERROR('Salary Calculations'!A27,"") ->  | E50: =IFERROR('Salary Calculations'!B27,"") ->  | F50: =IFERROR('Salary Calculations'!C27,"") ->  | G50: =IFERROR('Salary Calculations'!D27,"") ->  | H50: =IFERROR('Salary Calculations'!E27,"") ->  | I50: =IFERROR('Salary Calculations'!F27,"") ->  | J50: =IFERROR('Salary Calculations'!G27,"") ->  | K50: =IFERROR('Salary Calculations'!H27,"") ->  | L50: =IFERROR('Salary Calculations'!I27,"") ->  | M50: =IFERROR('Salary Calculations'!J27,"") ->  | N50: =IFERROR('Salary Calculations'!K27,"") ->  | O50: =IFERROR('Salary Calculations'!L27,"") ->  | P50: =IFERROR('Salary Calculations'!M27,"") ->  | Q50: =IFERROR('Salary Calculations'!N27,"") ->  | R50: =IFERROR('Salary Calculations'!O27,"") ->  | S50: =IFERROR('Salary Calculations'!P27,"") ->  | T50: =IFERROR('Salary Calculations'!Q27,"") -> 
D51: =IFERROR('Salary Calculations'!A28,"") ->  | E51: =IFERROR('Salary Calculations'!B28,"") ->  | F51: =IFERROR('Salary Calculations'!C28,"") ->  | G51: =IFERROR('Salary Calculations'!D28,"") ->  | H51: =IFERROR('Salary Calculations'!E28,"") ->  | I51: =IFERROR('Salary Calculations'!F28,"") ->  | J51: =IFERROR('Salary Calculations'!G28,"") ->  | K51: =IFERROR('Salary Calculations'!H28,"") ->  | L51: =IFERROR('Salary Calculations'!I28,"") ->  | M51: =IFERROR('Salary Calculations'!J28,"") ->  | N51: =IFERROR('Salary Calculations'!K28,"") ->  | O51: =IFERROR('Salary Calculations'!L28,"") ->  | P51: =IFERROR('Salary Calculations'!M28,"") ->  | Q51: =IFERROR('Salary Calculations'!N28,"") ->  | R51: =IFERROR('Salary Calculations'!O28,"") ->  | S51: =IFERROR('Salary Calculations'!P28,"") ->  | T51: =IFERROR('Salary Calculations'!Q28,"") -> 
D52: =IFERROR('Salary Calculations'!A29,"") ->  | E52: =IFERROR('Salary Calculations'!B29,"") ->  | F52: =IFERROR('Salary Calculations'!C29,"") ->  | G52: =IFERROR('Salary Calculations'!D29,"") ->  | H52: =IFERROR('Salary Calculations'!E29,"") ->  | I52: =IFERROR('Salary Calculations'!F29,"") ->  | J52: =IFERROR('Salary Calculations'!G29,"") ->  | K52: =IFERROR('Salary Calculations'!H29,"") ->  | L52: =IFERROR('Salary Calculations'!I29,"") ->  | M52: =IFERROR('Salary Calculations'!J29,"") ->  | N52: =IFERROR('Salary Calculations'!K29,"") ->  | O52: =IFERROR('Salary Calculations'!L29,"") ->  | P52: =IFERROR('Salary Calculations'!M29,"") ->  | Q52: =IFERROR('Salary Calculations'!N29,"") ->  | R52: =IFERROR('Salary Calculations'!O29,"") ->  | S52: =IFERROR('Salary Calculations'!P29,"") ->  | T52: =IFERROR('Salary Calculations'!Q29,"") -> 
D53: =IFERROR('Salary Calculations'!A30,"") ->  | E53: =IFERROR('Salary Calculations'!B30,"") ->  | F53: =IFERROR('Salary Calculations'!C30,"") ->  | G53: =IFERROR('Salary Calculations'!D30,"") ->  | H53: =IFERROR('Salary Calculations'!E30,"") ->  | I53: =IFERROR('Salary Calculations'!F30,"") ->  | J53: =IFERROR('Salary Calculations'!G30,"") ->  | K53: =IFERROR('Salary Calculations'!H30,"") ->  | L53: =IFERROR('Salary Calculations'!I30,"") ->  | M53: =IFERROR('Salary Calculations'!J30,"") ->  | N53: =IFERROR('Salary Calculations'!K30,"") ->  | O53: =IFERROR('Salary Calculations'!L30,"") ->  | P53: =IFERROR('Salary Calculations'!M30,"") ->  | Q53: =IFERROR('Salary Calculations'!N30,"") ->  | R53: =IFERROR('Salary Calculations'!O30,"") ->  | S53: =IFERROR('Salary Calculations'!P30,"") ->  | T53: =IFERROR('Salary Calculations'!Q30,"") -> 
D54: =IFERROR('Salary Calculations'!A31,"") ->  | E54: =IFERROR('Salary Calculations'!B31,"") ->  | F54: =IFERROR('Salary Calculations'!C31,"") ->  | G54: =IFERROR('Salary Calculations'!D31,"") ->  | H54: =IFERROR('Salary Calculations'!E31,"") ->  | I54: =IFERROR('Salary Calculations'!F31,"") ->  | J54: =IFERROR('Salary Calculations'!G31,"") ->  | K54: =IFERROR('Salary Calculations'!H31,"") ->  | L54: =IFERROR('Salary Calculations'!I31,"") ->  | M54: =IFERROR('Salary Calculations'!J31,"") ->  | N54: =IFERROR('Salary Calculations'!K31,"") ->  | O54: =IFERROR('Salary Calculations'!L31,"") ->  | P54: =IFERROR('Salary Calculations'!M31,"") ->  | Q54: =IFERROR('Salary Calculations'!N31,"") ->  | R54: =IFERROR('Salary Calculations'!O31,"") ->  | S54: =IFERROR('Salary Calculations'!P31,"") ->  | T54: =IFERROR('Salary Calculations'!Q31,"") -> 
D55: =IFERROR('Salary Calculations'!A32,"") ->  | E55: =IFERROR('Salary Calculations'!B32,"") ->  | F55: =IFERROR('Salary Calculations'!C32,"") ->  | G55: =IFERROR('Salary Calculations'!D32,"") ->  | H55: =IFERROR('Salary Calculations'!E32,"") ->  | I55: =IFERROR('Salary Calculations'!F32,"") ->  | J55: =IFERROR('Salary Calculations'!G32,"") ->  | K55: =IFERROR('Salary Calculations'!H32,"") ->  | L55: =IFERROR('Salary Calculations'!I32,"") ->  | M55: =IFERROR('Salary Calculations'!J32,"") ->  | N55: =IFERROR('Salary Calculations'!K32,"") ->  | O55: =IFERROR('Salary Calculations'!L32,"") ->  | P55: =IFERROR('Salary Calculations'!M32,"") ->  | Q55: =IFERROR('Salary Calculations'!N32,"") ->  | R55: =IFERROR('Salary Calculations'!O32,"") ->  | S55: =IFERROR('Salary Calculations'!P32,"") ->  | T55: =IFERROR('Salary Calculations'!Q32,"") -> 
D56: =IFERROR('Salary Calculations'!A33,"") ->  | E56: =IFERROR('Salary Calculations'!B33,"") ->  | F56: =IFERROR('Salary Calculations'!C33,"") ->  | G56: =IFERROR('Salary Calculations'!D33,"") ->  | H56: =IFERROR('Salary Calculations'!E33,"") ->  | I56: =IFERROR('Salary Calculations'!F33,"") ->  | J56: =IFERROR('Salary Calculations'!G33,"") ->  | K56: =IFERROR('Salary Calculations'!H33,"") ->  | L56: =IFERROR('Salary Calculations'!I33,"") ->  | M56: =IFERROR('Salary Calculations'!J33,"") ->  | N56: =IFERROR('Salary Calculations'!K33,"") ->  | O56: =IFERROR('Salary Calculations'!L33,"") ->  | P56: =IFERROR('Salary Calculations'!M33,"") ->  | Q56: =IFERROR('Salary Calculations'!N33,"") ->  | R56: =IFERROR('Salary Calculations'!O33,"") ->  | S56: =IFERROR('Salary Calculations'!P33,"") ->  | T56: =IFERROR('Salary Calculations'!Q33,"") -> 
D57: =IFERROR('Salary Calculations'!A34,"") ->  | E57: =IFERROR('Salary Calculations'!B34,"") ->  | F57: =IFERROR('Salary Calculations'!C34,"") ->  | G57: =IFERROR('Salary Calculations'!D34,"") ->  | H57: =IFERROR('Salary Calculations'!E34,"") ->  | I57: =IFERROR('Salary Calculations'!F34,"") ->  | J57: =IFERROR('Salary Calculations'!G34,"") ->  | K57: =IFERROR('Salary Calculations'!H34,"") ->  | L57: =IFERROR('Salary Calculations'!I34,"") ->  | M57: =IFERROR('Salary Calculations'!J34,"") ->  | N57: =IFERROR('Salary Calculations'!K34,"") ->  | O57: =IFERROR('Salary Calculations'!L34,"") ->  | P57: =IFERROR('Salary Calculations'!M34,"") ->  | Q57: =IFERROR('Salary Calculations'!N34,"") ->  | R57: =IFERROR('Salary Calculations'!O34,"") ->  | S57: =IFERROR('Salary Calculations'!P34,"") ->  | T57: =IFERROR('Salary Calculations'!Q34,"") -> 
D58: =IFERROR('Salary Calculations'!A35,"") ->  | E58: =IFERROR('Salary Calculations'!B35,"") ->  | F58: =IFERROR('Salary Calculations'!C35,"") ->  | G58: =IFERROR('Salary Calculations'!D35,"") ->  | H58: =IFERROR('Salary Calculations'!E35,"") ->  | I58: =IFERROR('Salary Calculations'!F35,"") ->  | J58: =IFERROR('Salary Calculations'!G35,"") ->  | K58: =IFERROR('Salary Calculations'!H35,"") ->  | L58: =IFERROR('Salary Calculations'!I35,"") ->  | M58: =IFERROR('Salary Calculations'!J35,"") ->  | N58: =IFERROR('Salary Calculations'!K35,"") ->  | O58: =IFERROR('Salary Calculations'!L35,"") ->  | P58: =IFERROR('Salary Calculations'!M35,"") ->  | Q58: =IFERROR('Salary Calculations'!N35,"") ->  | R58: =IFERROR('Salary Calculations'!O35,"") ->  | S58: =IFERROR('Salary Calculations'!P35,"") ->  | T58: =IFERROR('Salary Calculations'!Q35,"") -> 
D59: =IFERROR('Salary Calculations'!A36,"") ->  | E59: =IFERROR('Salary Calculations'!B36,"") ->  | F59: =IFERROR('Salary Calculations'!C36,"") ->  | G59: =IFERROR('Salary Calculations'!D36,"") ->  | H59: =IFERROR('Salary Calculations'!E36,"") ->  | I59: =IFERROR('Salary Calculations'!F36,"") ->  | J59: =IFERROR('Salary Calculations'!G36,"") ->  | K59: =IFERROR('Salary Calculations'!H36,"") ->  | L59: =IFERROR('Salary Calculations'!I36,"") ->  | M59: =IFERROR('Salary Calculations'!J36,"") ->  | N59: =IFERROR('Salary Calculations'!K36,"") ->  | O59: =IFERROR('Salary Calculations'!L36,"") ->  | P59: =IFERROR('Salary Calculations'!M36,"") ->  | Q59: =IFERROR('Salary Calculations'!N36,"") ->  | R59: =IFERROR('Salary Calculations'!O36,"") ->  | S59: =IFERROR('Salary Calculations'!P36,"") ->  | T59: =IFERROR('Salary Calculations'!Q36,"") -> 
D60: =IFERROR('Salary Calculations'!A37,"") ->  | E60: =IFERROR('Salary Calculations'!B37,"") ->  | F60: =IFERROR('Salary Calculations'!C37,"") ->  | G60: =IFERROR('Salary Calculations'!D37,"") ->  | H60: =IFERROR('Salary Calculations'!E37,"") ->  | I60: =IFERROR('Salary Calculations'!F37,"") ->  | J60: =IFERROR('Salary Calculations'!G37,"") ->  | K60: =IFERROR('Salary Calculations'!H37,"") ->  | L60: =IFERROR('Salary Calculations'!I37,"") ->  | M60: =IFERROR('Salary Calculations'!J37,"") ->  | N60: =IFERROR('Salary Calculations'!K37,"") ->  | O60: =IFERROR('Salary Calculations'!L37,"") ->  | P60: =IFERROR('Salary Calculations'!M37,"") ->  | Q60: =IFERROR('Salary Calculations'!N37,"") ->  | R60: =IFERROR('Salary Calculations'!O37,"") ->  | S60: =IFERROR('Salary Calculations'!P37,"") ->  | T60: =IFERROR('Salary Calculations'!Q37,"") -> 
D61: =IFERROR('Salary Calculations'!A38,"") ->  | E61: =IFERROR('Salary Calculations'!B38,"") ->  | F61: =IFERROR('Salary Calculations'!C38,"") ->  | G61: =IFERROR('Salary Calculations'!D38,"") ->  | H61: =IFERROR('Salary Calculations'!E38,"") ->  | I61: =IFERROR('Salary Calculations'!F38,"") ->  | J61: =IFERROR('Salary Calculations'!G38,"") ->  | K61: =IFERROR('Salary Calculations'!H38,"") ->  | L61: =IFERROR('Salary Calculations'!I38,"") ->  | M61: =IFERROR('Salary Calculations'!J38,"") ->  | N61: =IFERROR('Salary Calculations'!K38,"") ->  | O61: =IFERROR('Salary Calculations'!L38,"") ->  | P61: =IFERROR('Salary Calculations'!M38,"") ->  | Q61: =IFERROR('Salary Calculations'!N38,"") ->  | R61: =IFERROR('Salary Calculations'!O38,"") ->  | S61: =IFERROR('Salary Calculations'!P38,"") ->  | T61: =IFERROR('Salary Calculations'!Q38,"") -> 
D62: =IFERROR('Salary Calculations'!A39,"") ->  | E62: =IFERROR('Salary Calculations'!B39,"") ->  | F62: =IFERROR('Salary Calculations'!C39,"") ->  | G62: =IFERROR('Salary Calculations'!D39,"") ->  | H62: =IFERROR('Salary Calculations'!E39,"") ->  | I62: =IFERROR('Salary Calculations'!F39,"") ->  | J62: =IFERROR('Salary Calculations'!G39,"") ->  | K62: =IFERROR('Salary Calculations'!H39,"") ->  | L62: =IFERROR('Salary Calculations'!I39,"") ->  | M62: =IFERROR('Salary Calculations'!J39,"") ->  | N62: =IFERROR('Salary Calculations'!K39,"") ->  | O62: =IFERROR('Salary Calculations'!L39,"") ->  | P62: =IFERROR('Salary Calculations'!M39,"") ->  | Q62: =IFERROR('Salary Calculations'!N39,"") ->  | R62: =IFERROR('Salary Calculations'!O39,"") ->  | S62: =IFERROR('Salary Calculations'!P39,"") ->  | T62: =IFERROR('Salary Calculations'!Q39,"") -> 
D63: =IFERROR('Salary Calculations'!A40,"") ->  | E63: =IFERROR('Salary Calculations'!B40,"") ->  | F63: =IFERROR('Salary Calculations'!C40,"") ->  | G63: =IFERROR('Salary Calculations'!D40,"") ->  | H63: =IFERROR('Salary Calculations'!E40,"") ->  | I63: =IFERROR('Salary Calculations'!F40,"") ->  | J63: =IFERROR('Salary Calculations'!G40,"") ->  | K63: =IFERROR('Salary Calculations'!H40,"") ->  | L63: =IFERROR('Salary Calculations'!I40,"") ->  | M63: =IFERROR('Salary Calculations'!J40,"") ->  | N63: =IFERROR('Salary Calculations'!K40,"") ->  | O63: =IFERROR('Salary Calculations'!L40,"") ->  | P63: =IFERROR('Salary Calculations'!M40,"") ->  | Q63: =IFERROR('Salary Calculations'!N40,"") ->  | R63: =IFERROR('Salary Calculations'!O40,"") ->  | S63: =IFERROR('Salary Calculations'!P40,"") ->  | T63: =IFERROR('Salary Calculations'!Q40,"") -> 
D64: =IFERROR('Salary Calculations'!A41,"") ->  | E64: =IFERROR('Salary Calculations'!B41,"") ->  | F64: =IFERROR('Salary Calculations'!C41,"") ->  | G64: =IFERROR('Salary Calculations'!D41,"") ->  | H64: =IFERROR('Salary Calculations'!E41,"") ->  | I64: =IFERROR('Salary Calculations'!F41,"") ->  | J64: =IFERROR('Salary Calculations'!G41,"") ->  | K64: =IFERROR('Salary Calculations'!H41,"") ->  | L64: =IFERROR('Salary Calculations'!I41,"") ->  | M64: =IFERROR('Salary Calculations'!J41,"") ->  | N64: =IFERROR('Salary Calculations'!K41,"") ->  | O64: =IFERROR('Salary Calculations'!L41,"") ->  | P64: =IFERROR('Salary Calculations'!M41,"") ->  | Q64: =IFERROR('Salary Calculations'!N41,"") ->  | R64: =IFERROR('Salary Calculations'!O41,"") ->  | S64: =IFERROR('Salary Calculations'!P41,"") ->  | T64: =IFERROR('Salary Calculations'!Q41,"") -> 
D65: =IFERROR('Salary Calculations'!A42,"") ->  | E65: =IFERROR('Salary Calculations'!B42,"") ->  | F65: =IFERROR('Salary Calculations'!C42,"") ->  | G65: =IFERROR('Salary Calculations'!D42,"") ->  | H65: =IFERROR('Salary Calculations'!E42,"") ->  | I65: =IFERROR('Salary Calculations'!F42,"") ->  | J65: =IFERROR('Salary Calculations'!G42,"") ->  | K65: =IFERROR('Salary Calculations'!H42,"") ->  | L65: =IFERROR('Salary Calculations'!I42,"") ->  | M65: =IFERROR('Salary Calculations'!J42,"") ->  | N65: =IFERROR('Salary Calculations'!K42,"") ->  | O65: =IFERROR('Salary Calculations'!L42,"") ->  | P65: =IFERROR('Salary Calculations'!M42,"") ->  | Q65: =IFERROR('Salary Calculations'!N42,"") ->  | R65: =IFERROR('Salary Calculations'!O42,"") ->  | S65: =IFERROR('Salary Calculations'!P42,"") ->  | T65: =IFERROR('Salary Calculations'!Q42,"") -> 
D66: =IFERROR('Salary Calculations'!A43,"") ->  | E66: =IFERROR('Salary Calculations'!B43,"") ->  | F66: =IFERROR('Salary Calculations'!C43,"") ->  | G66: =IFERROR('Salary Calculations'!D43,"") ->  | H66: =IFERROR('Salary Calculations'!E43,"") ->  | I66: =IFERROR('Salary Calculations'!F43,"") ->  | J66: =IFERROR('Salary Calculations'!G43,"") ->  | K66: =IFERROR('Salary Calculations'!H43,"") ->  | L66: =IFERROR('Salary Calculations'!I43,"") ->  | M66: =IFERROR('Salary Calculations'!J43,"") ->  | N66: =IFERROR('Salary Calculations'!K43,"") ->  | O66: =IFERROR('Salary Calculations'!L43,"") ->  | P66: =IFERROR('Salary Calculations'!M43,"") ->  | Q66: =IFERROR('Salary Calculations'!N43,"") ->  | R66: =IFERROR('Salary Calculations'!O43,"") ->  | S66: =IFERROR('Salary Calculations'!P43,"") ->  | T66: =IFERROR('Salary Calculations'!Q43,"") -> 
D67: =IFERROR('Salary Calculations'!A44,"") ->  | E67: =IFERROR('Salary Calculations'!B44,"") ->  | F67: =IFERROR('Salary Calculations'!C44,"") ->  | G67: =IFERROR('Salary Calculations'!D44,"") ->  | H67: =IFERROR('Salary Calculations'!E44,"") ->  | I67: =IFERROR('Salary Calculations'!F44,"") ->  | J67: =IFERROR('Salary Calculations'!G44,"") ->  | K67: =IFERROR('Salary Calculations'!H44,"") ->  | L67: =IFERROR('Salary Calculations'!I44,"") ->  | M67: =IFERROR('Salary Calculations'!J44,"") ->  | N67: =IFERROR('Salary Calculations'!K44,"") ->  | O67: =IFERROR('Salary Calculations'!L44,"") ->  | P67: =IFERROR('Salary Calculations'!M44,"") ->  | Q67: =IFERROR('Salary Calculations'!N44,"") ->  | R67: =IFERROR('Salary Calculations'!O44,"") ->  | S67: =IFERROR('Salary Calculations'!P44,"") ->  | T67: =IFERROR('Salary Calculations'!Q44,"") -> 
D68: =IFERROR('Salary Calculations'!A45,"") ->  | E68: =IFERROR('Salary Calculations'!B45,"") ->  | F68: =IFERROR('Salary Calculations'!C45,"") ->  | G68: =IFERROR('Salary Calculations'!D45,"") ->  | H68: =IFERROR('Salary Calculations'!E45,"") ->  | I68: =IFERROR('Salary Calculations'!F45,"") ->  | J68: =IFERROR('Salary Calculations'!G45,"") ->  | K68: =IFERROR('Salary Calculations'!H45,"") ->  | L68: =IFERROR('Salary Calculations'!I45,"") ->  | M68: =IFERROR('Salary Calculations'!J45,"") ->  | N68: =IFERROR('Salary Calculations'!K45,"") ->  | O68: =IFERROR('Salary Calculations'!L45,"") ->  | P68: =IFERROR('Salary Calculations'!M45,"") ->  | Q68: =IFERROR('Salary Calculations'!N45,"") ->  | R68: =IFERROR('Salary Calculations'!O45,"") ->  | S68: =IFERROR('Salary Calculations'!P45,"") ->  | T68: =IFERROR('Salary Calculations'!Q45,"") -> 
D69: =IFERROR('Salary Calculations'!A46,"") ->  | E69: =IFERROR('Salary Calculations'!B46,"") ->  | F69: =IFERROR('Salary Calculations'!C46,"") ->  | G69: =IFERROR('Salary Calculations'!D46,"") ->  | H69: =IFERROR('Salary Calculations'!E46,"") ->  | I69: =IFERROR('Salary Calculations'!F46,"") ->  | J69: =IFERROR('Salary Calculations'!G46,"") ->  | K69: =IFERROR('Salary Calculations'!H46,"") ->  | L69: =IFERROR('Salary Calculations'!I46,"") ->  | M69: =IFERROR('Salary Calculations'!J46,"") ->  | N69: =IFERROR('Salary Calculations'!K46,"") ->  | O69: =IFERROR('Salary Calculations'!L46,"") ->  | P69: =IFERROR('Salary Calculations'!M46,"") ->  | Q69: =IFERROR('Salary Calculations'!N46,"") ->  | R69: =IFERROR('Salary Calculations'!O46,"") ->  | S69: =IFERROR('Salary Calculations'!P46,"") ->  | T69: =IFERROR('Salary Calculations'!Q46,"") -> 
D70: =IFERROR('Salary Calculations'!A47,"") ->  | E70: =IFERROR('Salary Calculations'!B47,"") ->  | F70: =IFERROR('Salary Calculations'!C47,"") ->  | G70: =IFERROR('Salary Calculations'!D47,"") ->  | H70: =IFERROR('Salary Calculations'!E47,"") ->  | I70: =IFERROR('Salary Calculations'!F47,"") ->  | J70: =IFERROR('Salary Calculations'!G47,"") ->  | K70: =IFERROR('Salary Calculations'!H47,"") ->  | L70: =IFERROR('Salary Calculations'!I47,"") ->  | M70: =IFERROR('Salary Calculations'!J47,"") ->  | N70: =IFERROR('Salary Calculations'!K47,"") ->  | O70: =IFERROR('Salary Calculations'!L47,"") ->  | P70: =IFERROR('Salary Calculations'!M47,"") ->  | Q70: =IFERROR('Salary Calculations'!N47,"") ->  | R70: =IFERROR('Salary Calculations'!O47,"") ->  | S70: =IFERROR('Salary Calculations'!P47,"") ->  | T70: =IFERROR('Salary Calculations'!Q47,"") -> 
D71: =IFERROR('Salary Calculations'!A48,"") ->  | E71: =IFERROR('Salary Calculations'!B48,"") ->  | F71: =IFERROR('Salary Calculations'!C48,"") ->  | G71: =IFERROR('Salary Calculations'!D48,"") ->  | H71: =IFERROR('Salary Calculations'!E48,"") ->  | I71: =IFERROR('Salary Calculations'!F48,"") ->  | J71: =IFERROR('Salary Calculations'!G48,"") ->  | K71: =IFERROR('Salary Calculations'!H48,"") ->  | L71: =IFERROR('Salary Calculations'!I48,"") ->  | M71: =IFERROR('Salary Calculations'!J48,"") ->  | N71: =IFERROR('Salary Calculations'!K48,"") ->  | O71: =IFERROR('Salary Calculations'!L48,"") ->  | P71: =IFERROR('Salary Calculations'!M48,"") ->  | Q71: =IFERROR('Salary Calculations'!N48,"") ->  | R71: =IFERROR('Salary Calculations'!O48,"") ->  | S71: =IFERROR('Salary Calculations'!P48,"") ->  | T71: =IFERROR('Salary Calculations'!Q48,"") -> 
D72: =IFERROR('Salary Calculations'!A49,"") ->  | E72: =IFERROR('Salary Calculations'!B49,"") ->  | F72: =IFERROR('Salary Calculations'!C49,"") ->  | G72: =IFERROR('Salary Calculations'!D49,"") ->  | H72: =IFERROR('Salary Calculations'!E49,"") ->  | I72: =IFERROR('Salary Calculations'!F49,"") ->  | J72: =IFERROR('Salary Calculations'!G49,"") ->  | K72: =IFERROR('Salary Calculations'!H49,"") ->  | L72: =IFERROR('Salary Calculations'!I49,"") ->  | M72: =IFERROR('Salary Calculations'!J49,"") ->  | N72: =IFERROR('Salary Calculations'!K49,"") ->  | O72: =IFERROR('Salary Calculations'!L49,"") ->  | P72: =IFERROR('Salary Calculations'!M49,"") ->  | Q72: =IFERROR('Salary Calculations'!N49,"") ->  | R72: =IFERROR('Salary Calculations'!O49,"") ->  | S72: =IFERROR('Salary Calculations'!P49,"") ->  | T72: =IFERROR('Salary Calculations'!Q49,"") -> 
D73: =IFERROR('Salary Calculations'!A50,"") ->  | E73: =IFERROR('Salary Calculations'!B50,"") ->  | F73: =IFERROR('Salary Calculations'!C50,"") ->  | G73: =IFERROR('Salary Calculations'!D50,"") ->  | H73: =IFERROR('Salary Calculations'!E50,"") ->  | I73: =IFERROR('Salary Calculations'!F50,"") ->  | J73: =IFERROR('Salary Calculations'!G50,"") ->  | K73: =IFERROR('Salary Calculations'!H50,"") ->  | L73: =IFERROR('Salary Calculations'!I50,"") ->  | M73: =IFERROR('Salary Calculations'!J50,"") ->  | N73: =IFERROR('Salary Calculations'!K50,"") ->  | O73: =IFERROR('Salary Calculations'!L50,"") ->  | P73: =IFERROR('Salary Calculations'!M50,"") ->  | Q73: =IFERROR('Salary Calculations'!N50,"") ->  | R73: =IFERROR('Salary Calculations'!O50,"") ->  | S73: =IFERROR('Salary Calculations'!P50,"") ->  | T73: =IFERROR('Salary Calculations'!Q50,"") -> 
D74: =IFERROR('Salary Calculations'!A51,"") ->  | E74: =IFERROR('Salary Calculations'!B51,"") ->  | F74: =IFERROR('Salary Calculations'!C51,"") ->  | G74: =IFERROR('Salary Calculations'!D51,"") ->  | H74: =IFERROR('Salary Calculations'!E51,"") ->  | I74: =IFERROR('Salary Calculations'!F51,"") ->  | J74: =IFERROR('Salary Calculations'!G51,"") ->  | K74: =IFERROR('Salary Calculations'!H51,"") ->  | L74: =IFERROR('Salary Calculations'!I51,"") ->  | M74: =IFERROR('Salary Calculations'!J51,"") ->  | N74: =IFERROR('Salary Calculations'!K51,"") ->  | O74: =IFERROR('Salary Calculations'!L51,"") ->  | P74: =IFERROR('Salary Calculations'!M51,"") ->  | Q74: =IFERROR('Salary Calculations'!N51,"") ->  | R74: =IFERROR('Salary Calculations'!O51,"") ->  | S74: =IFERROR('Salary Calculations'!P51,"") ->  | T74: =IFERROR('Salary Calculations'!Q51,"") -> 
D75: =IFERROR('Salary Calculations'!A52,"") ->  | E75: =IFERROR('Salary Calculations'!B52,"") ->  | F75: =IFERROR('Salary Calculations'!C52,"") ->  | G75: =IFERROR('Salary Calculations'!D52,"") ->  | H75: =IFERROR('Salary Calculations'!E52,"") ->  | I75: =IFERROR('Salary Calculations'!F52,"") ->  | J75: =IFERROR('Salary Calculations'!G52,"") ->  | K75: =IFERROR('Salary Calculations'!H52,"") ->  | L75: =IFERROR('Salary Calculations'!I52,"") ->  | M75: =IFERROR('Salary Calculations'!J52,"") ->  | N75: =IFERROR('Salary Calculations'!K52,"") ->  | O75: =IFERROR('Salary Calculations'!L52,"") ->  | P75: =IFERROR('Salary Calculations'!M52,"") ->  | Q75: =IFERROR('Salary Calculations'!N52,"") ->  | R75: =IFERROR('Salary Calculations'!O52,"") ->  | S75: =IFERROR('Salary Calculations'!P52,"") ->  | T75: =IFERROR('Salary Calculations'!Q52,"") -> 
D76: =IFERROR('Salary Calculations'!A53,"") ->  | E76: =IFERROR('Salary Calculations'!B53,"") ->  | F76: =IFERROR('Salary Calculations'!C53,"") ->  | G76: =IFERROR('Salary Calculations'!D53,"") ->  | H76: =IFERROR('Salary Calculations'!E53,"") ->  | I76: =IFERROR('Salary Calculations'!F53,"") ->  | J76: =IFERROR('Salary Calculations'!G53,"") ->  | K76: =IFERROR('Salary Calculations'!H53,"") ->  | L76: =IFERROR('Salary Calculations'!I53,"") ->  | M76: =IFERROR('Salary Calculations'!J53,"") ->  | N76: =IFERROR('Salary Calculations'!K53,"") ->  | O76: =IFERROR('Salary Calculations'!L53,"") ->  | P76: =IFERROR('Salary Calculations'!M53,"") ->  | Q76: =IFERROR('Salary Calculations'!N53,"") ->  | R76: =IFERROR('Salary Calculations'!O53,"") ->  | S76: =IFERROR('Salary Calculations'!P53,"") ->  | T76: =IFERROR('Salary Calculations'!Q53,"") -> 
D77: =IFERROR('Salary Calculations'!A54,"") ->  | E77: =IFERROR('Salary Calculations'!B54,"") ->  | F77: =IFERROR('Salary Calculations'!C54,"") ->  | G77: =IFERROR('Salary Calculations'!D54,"") ->  | H77: =IFERROR('Salary Calculations'!E54,"") ->  | I77: =IFERROR('Salary Calculations'!F54,"") ->  | J77: =IFERROR('Salary Calculations'!G54,"") ->  | K77: =IFERROR('Salary Calculations'!H54,"") ->  | L77: =IFERROR('Salary Calculations'!I54,"") ->  | M77: =IFERROR('Salary Calculations'!J54,"") ->  | N77: =IFERROR('Salary Calculations'!K54,"") ->  | O77: =IFERROR('Salary Calculations'!L54,"") ->  | P77: =IFERROR('Salary Calculations'!M54,"") ->  | Q77: =IFERROR('Salary Calculations'!N54,"") ->  | R77: =IFERROR('Salary Calculations'!O54,"") ->  | S77: =IFERROR('Salary Calculations'!P54,"") ->  | T77: =IFERROR('Salary Calculations'!Q54,"") -> 
D78: =IFERROR('Salary Calculations'!A55,"") ->  | E78: =IFERROR('Salary Calculations'!B55,"") ->  | F78: =IFERROR('Salary Calculations'!C55,"") ->  | G78: =IFERROR('Salary Calculations'!D55,"") ->  | H78: =IFERROR('Salary Calculations'!E55,"") ->  | I78: =IFERROR('Salary Calculations'!F55,"") ->  | J78: =IFERROR('Salary Calculations'!G55,"") ->  | K78: =IFERROR('Salary Calculations'!H55,"") ->  | L78: =IFERROR('Salary Calculations'!I55,"") ->  | M78: =IFERROR('Salary Calculations'!J55,"") ->  | N78: =IFERROR('Salary Calculations'!K55,"") ->  | O78: =IFERROR('Salary Calculations'!L55,"") ->  | P78: =IFERROR('Salary Calculations'!M55,"") ->  | Q78: =IFERROR('Salary Calculations'!N55,"") ->  | R78: =IFERROR('Salary Calculations'!O55,"") ->  | S78: =IFERROR('Salary Calculations'!P55,"") ->  | T78: =IFERROR('Salary Calculations'!Q55,"") -> 
D79: =IFERROR('Salary Calculations'!A56,"") ->  | E79: =IFERROR('Salary Calculations'!B56,"") ->  | F79: =IFERROR('Salary Calculations'!C56,"") ->  | G79: =IFERROR('Salary Calculations'!D56,"") ->  | H79: =IFERROR('Salary Calculations'!E56,"") ->  | I79: =IFERROR('Salary Calculations'!F56,"") ->  | J79: =IFERROR('Salary Calculations'!G56,"") ->  | K79: =IFERROR('Salary Calculations'!H56,"") ->  | L79: =IFERROR('Salary Calculations'!I56,"") ->  | M79: =IFERROR('Salary Calculations'!J56,"") ->  | N79: =IFERROR('Salary Calculations'!K56,"") ->  | O79: =IFERROR('Salary Calculations'!L56,"") ->  | P79: =IFERROR('Salary Calculations'!M56,"") ->  | Q79: =IFERROR('Salary Calculations'!N56,"") ->  | R79: =IFERROR('Salary Calculations'!O56,"") ->  | S79: =IFERROR('Salary Calculations'!P56,"") ->  | T79: =IFERROR('Salary Calculations'!Q56,"") -> 
D80: =IFERROR('Salary Calculations'!A57,"") ->  | E80: =IFERROR('Salary Calculations'!B57,"") ->  | F80: =IFERROR('Salary Calculations'!C57,"") ->  | G80: =IFERROR('Salary Calculations'!D57,"") ->  | H80: =IFERROR('Salary Calculations'!E57,"") ->  | I80: =IFERROR('Salary Calculations'!F57,"") ->  | J80: =IFERROR('Salary Calculations'!G57,"") ->  | K80: =IFERROR('Salary Calculations'!H57,"") ->  | L80: =IFERROR('Salary Calculations'!I57,"") ->  | M80: =IFERROR('Salary Calculations'!J57,"") ->  | N80: =IFERROR('Salary Calculations'!K57,"") ->  | O80: =IFERROR('Salary Calculations'!L57,"") ->  | P80: =IFERROR('Salary Calculations'!M57,"") ->  | Q80: =IFERROR('Salary Calculations'!N57,"") ->  | R80: =IFERROR('Salary Calculations'!O57,"") ->  | S80: =IFERROR('Salary Calculations'!P57,"") ->  | T80: =IFERROR('Salary Calculations'!Q57,"") -> 
D81: =IFERROR('Salary Calculations'!A58,"") ->  | E81: =IFERROR('Salary Calculations'!B58,"") ->  | F81: =IFERROR('Salary Calculations'!C58,"") ->  | G81: =IFERROR('Salary Calculations'!D58,"") ->  | H81: =IFERROR('Salary Calculations'!E58,"") ->  | I81: =IFERROR('Salary Calculations'!F58,"") ->  | J81: =IFERROR('Salary Calculations'!G58,"") ->  | K81: =IFERROR('Salary Calculations'!H58,"") ->  | L81: =IFERROR('Salary Calculations'!I58,"") ->  | M81: =IFERROR('Salary Calculations'!J58,"") ->  | N81: =IFERROR('Salary Calculations'!K58,"") ->  | O81: =IFERROR('Salary Calculations'!L58,"") ->  | P81: =IFERROR('Salary Calculations'!M58,"") ->  | Q81: =IFERROR('Salary Calculations'!N58,"") ->  | R81: =IFERROR('Salary Calculations'!O58,"") ->  | S81: =IFERROR('Salary Calculations'!P58,"") ->  | T81: =IFERROR('Salary Calculations'!Q58,"") -> 
D82: =IFERROR('Salary Calculations'!A59,"") ->  | E82: =IFERROR('Salary Calculations'!B59,"") ->  | F82: =IFERROR('Salary Calculations'!C59,"") ->  | G82: =IFERROR('Salary Calculations'!D59,"") ->  | H82: =IFERROR('Salary Calculations'!E59,"") ->  | I82: =IFERROR('Salary Calculations'!F59,"") ->  | J82: =IFERROR('Salary Calculations'!G59,"") ->  | K82: =IFERROR('Salary Calculations'!H59,"") ->  | L82: =IFERROR('Salary Calculations'!I59,"") ->  | M82: =IFERROR('Salary Calculations'!J59,"") ->  | N82: =IFERROR('Salary Calculations'!K59,"") ->  | O82: =IFERROR('Salary Calculations'!L59,"") ->  | P82: =IFERROR('Salary Calculations'!M59,"") ->  | Q82: =IFERROR('Salary Calculations'!N59,"") ->  | R82: =IFERROR('Salary Calculations'!O59,"") ->  | S82: =IFERROR('Salary Calculations'!P59,"") ->  | T82: =IFERROR('Salary Calculations'!Q59,"") -> 
D83: =IFERROR('Salary Calculations'!A60,"") ->  | E83: =IFERROR('Salary Calculations'!B60,"") ->  | F83: =IFERROR('Salary Calculations'!C60,"") ->  | G83: =IFERROR('Salary Calculations'!D60,"") ->  | H83: =IFERROR('Salary Calculations'!E60,"") ->  | I83: =IFERROR('Salary Calculations'!F60,"") ->  | J83: =IFERROR('Salary Calculations'!G60,"") ->  | K83: =IFERROR('Salary Calculations'!H60,"") ->  | L83: =IFERROR('Salary Calculations'!I60,"") ->  | M83: =IFERROR('Salary Calculations'!J60,"") ->  | N83: =IFERROR('Salary Calculations'!K60,"") ->  | O83: =IFERROR('Salary Calculations'!L60,"") ->  | P83: =IFERROR('Salary Calculations'!M60,"") ->  | Q83: =IFERROR('Salary Calculations'!N60,"") ->  | R83: =IFERROR('Salary Calculations'!O60,"") ->  | S83: =IFERROR('Salary Calculations'!P60,"") ->  | T83: =IFERROR('Salary Calculations'!Q60,"") -> 
D84: =IFERROR('Salary Calculations'!A61,"") ->  | E84: =IFERROR('Salary Calculations'!B61,"") ->  | F84: =IFERROR('Salary Calculations'!C61,"") ->  | G84: =IFERROR('Salary Calculations'!D61,"") ->  | H84: =IFERROR('Salary Calculations'!E61,"") ->  | I84: =IFERROR('Salary Calculations'!F61,"") ->  | J84: =IFERROR('Salary Calculations'!G61,"") ->  | K84: =IFERROR('Salary Calculations'!H61,"") ->  | L84: =IFERROR('Salary Calculations'!I61,"") ->  | M84: =IFERROR('Salary Calculations'!J61,"") ->  | N84: =IFERROR('Salary Calculations'!K61,"") ->  | O84: =IFERROR('Salary Calculations'!L61,"") ->  | P84: =IFERROR('Salary Calculations'!M61,"") ->  | Q84: =IFERROR('Salary Calculations'!N61,"") ->  | R84: =IFERROR('Salary Calculations'!O61,"") ->  | S84: =IFERROR('Salary Calculations'!P61,"") ->  | T84: =IFERROR('Salary Calculations'!Q61,"") -> 
D85: =IFERROR('Salary Calculations'!A62,"") ->  | E85: =IFERROR('Salary Calculations'!B62,"") ->  | F85: =IFERROR('Salary Calculations'!C62,"") ->  | G85: =IFERROR('Salary Calculations'!D62,"") ->  | H85: =IFERROR('Salary Calculations'!E62,"") ->  | I85: =IFERROR('Salary Calculations'!F62,"") ->  | J85: =IFERROR('Salary Calculations'!G62,"") ->  | K85: =IFERROR('Salary Calculations'!H62,"") ->  | L85: =IFERROR('Salary Calculations'!I62,"") ->  | M85: =IFERROR('Salary Calculations'!J62,"") ->  | N85: =IFERROR('Salary Calculations'!K62,"") ->  | O85: =IFERROR('Salary Calculations'!L62,"") ->  | P85: =IFERROR('Salary Calculations'!M62,"") ->  | Q85: =IFERROR('Salary Calculations'!N62,"") ->  | R85: =IFERROR('Salary Calculations'!O62,"") ->  | S85: =IFERROR('Salary Calculations'!P62,"") ->  | T85: =IFERROR('Salary Calculations'!Q62,"") -> 
D86: =IFERROR('Salary Calculations'!A63,"") ->  | E86: =IFERROR('Salary Calculations'!B63,"") ->  | F86: =IFERROR('Salary Calculations'!C63,"") ->  | G86: =IFERROR('Salary Calculations'!D63,"") ->  | H86: =IFERROR('Salary Calculations'!E63,"") ->  | I86: =IFERROR('Salary Calculations'!F63,"") ->  | J86: =IFERROR('Salary Calculations'!G63,"") ->  | K86: =IFERROR('Salary Calculations'!H63,"") ->  | L86: =IFERROR('Salary Calculations'!I63,"") ->  | M86: =IFERROR('Salary Calculations'!J63,"") ->  | N86: =IFERROR('Salary Calculations'!K63,"") ->  | O86: =IFERROR('Salary Calculations'!L63,"") ->  | P86: =IFERROR('Salary Calculations'!M63,"") ->  | Q86: =IFERROR('Salary Calculations'!N63,"") ->  | R86: =IFERROR('Salary Calculations'!O63,"") ->  | S86: =IFERROR('Salary Calculations'!P63,"") ->  | T86: =IFERROR('Salary Calculations'!Q63,"") -> 
D87: =IFERROR('Salary Calculations'!A64,"") ->  | E87: =IFERROR('Salary Calculations'!B64,"") ->  | F87: =IFERROR('Salary Calculations'!C64,"") ->  | G87: =IFERROR('Salary Calculations'!D64,"") ->  | H87: =IFERROR('Salary Calculations'!E64,"") ->  | I87: =IFERROR('Salary Calculations'!F64,"") ->  | J87: =IFERROR('Salary Calculations'!G64,"") ->  | K87: =IFERROR('Salary Calculations'!H64,"") ->  | L87: =IFERROR('Salary Calculations'!I64,"") ->  | M87: =IFERROR('Salary Calculations'!J64,"") ->  | N87: =IFERROR('Salary Calculations'!K64,"") ->  | O87: =IFERROR('Salary Calculations'!L64,"") ->  | P87: =IFERROR('Salary Calculations'!M64,"") ->  | Q87: =IFERROR('Salary Calculations'!N64,"") ->  | R87: =IFERROR('Salary Calculations'!O64,"") ->  | S87: =IFERROR('Salary Calculations'!P64,"") ->  | T87: =IFERROR('Salary Calculations'!Q64,"") -> 
D88: =IFERROR('Salary Calculations'!A65,"") ->  | E88: =IFERROR('Salary Calculations'!B65,"") ->  | F88: =IFERROR('Salary Calculations'!C65,"") ->  | G88: =IFERROR('Salary Calculations'!D65,"") ->  | H88: =IFERROR('Salary Calculations'!E65,"") ->  | I88: =IFERROR('Salary Calculations'!F65,"") ->  | J88: =IFERROR('Salary Calculations'!G65,"") ->  | K88: =IFERROR('Salary Calculations'!H65,"") ->  | L88: =IFERROR('Salary Calculations'!I65,"") ->  | M88: =IFERROR('Salary Calculations'!J65,"") ->  | N88: =IFERROR('Salary Calculations'!K65,"") ->  | O88: =IFERROR('Salary Calculations'!L65,"") ->  | P88: =IFERROR('Salary Calculations'!M65,"") ->  | Q88: =IFERROR('Salary Calculations'!N65,"") ->  | R88: =IFERROR('Salary Calculations'!O65,"") ->  | S88: =IFERROR('Salary Calculations'!P65,"") ->  | T88: =IFERROR('Salary Calculations'!Q65,"") -> 
D89: =IFERROR('Salary Calculations'!A66,"") ->  | E89: =IFERROR('Salary Calculations'!B66,"") ->  | F89: =IFERROR('Salary Calculations'!C66,"") ->  | G89: =IFERROR('Salary Calculations'!D66,"") ->  | H89: =IFERROR('Salary Calculations'!E66,"") ->  | I89: =IFERROR('Salary Calculations'!F66,"") ->  | J89: =IFERROR('Salary Calculations'!G66,"") ->  | K89: =IFERROR('Salary Calculations'!H66,"") ->  | L89: =IFERROR('Salary Calculations'!I66,"") ->  | M89: =IFERROR('Salary Calculations'!J66,"") ->  | N89: =IFERROR('Salary Calculations'!K66,"") ->  | O89: =IFERROR('Salary Calculations'!L66,"") ->  | P89: =IFERROR('Salary Calculations'!M66,"") ->  | Q89: =IFERROR('Salary Calculations'!N66,"") ->  | R89: =IFERROR('Salary Calculations'!O66,"") ->  | S89: =IFERROR('Salary Calculations'!P66,"") ->  | T89: =IFERROR('Salary Calculations'!Q66,"") -> 
D90: =IFERROR('Salary Calculations'!A67,"") ->  | E90: =IFERROR('Salary Calculations'!B67,"") ->  | F90: =IFERROR('Salary Calculations'!C67,"") ->  | G90: =IFERROR('Salary Calculations'!D67,"") ->  | H90: =IFERROR('Salary Calculations'!E67,"") ->  | I90: =IFERROR('Salary Calculations'!F67,"") ->  | J90: =IFERROR('Salary Calculations'!G67,"") ->  | K90: =IFERROR('Salary Calculations'!H67,"") ->  | L90: =IFERROR('Salary Calculations'!I67,"") ->  | M90: =IFERROR('Salary Calculations'!J67,"") ->  | N90: =IFERROR('Salary Calculations'!K67,"") ->  | O90: =IFERROR('Salary Calculations'!L67,"") ->  | P90: =IFERROR('Salary Calculations'!M67,"") ->  | Q90: =IFERROR('Salary Calculations'!N67,"") ->  | R90: =IFERROR('Salary Calculations'!O67,"") ->  | S90: =IFERROR('Salary Calculations'!P67,"") ->  | T90: =IFERROR('Salary Calculations'!Q67,"") -> 
D91: =IFERROR('Salary Calculations'!A68,"") ->  | E91: =IFERROR('Salary Calculations'!B68,"") ->  | F91: =IFERROR('Salary Calculations'!C68,"") ->  | G91: =IFERROR('Salary Calculations'!D68,"") ->  | H91: =IFERROR('Salary Calculations'!E68,"") ->  | I91: =IFERROR('Salary Calculations'!F68,"") ->  | J91: =IFERROR('Salary Calculations'!G68,"") ->  | K91: =IFERROR('Salary Calculations'!H68,"") ->  | L91: =IFERROR('Salary Calculations'!I68,"") ->  | M91: =IFERROR('Salary Calculations'!J68,"") ->  | N91: =IFERROR('Salary Calculations'!K68,"") ->  | O91: =IFERROR('Salary Calculations'!L68,"") ->  | P91: =IFERROR('Salary Calculations'!M68,"") ->  | Q91: =IFERROR('Salary Calculations'!N68,"") ->  | R91: =IFERROR('Salary Calculations'!O68,"") ->  | S91: =IFERROR('Salary Calculations'!P68,"") ->  | T91: =IFERROR('Salary Calculations'!Q68,"") -> 
D92: =IFERROR('Salary Calculations'!A69,"") ->  | E92: =IFERROR('Salary Calculations'!B69,"") ->  | F92: =IFERROR('Salary Calculations'!C69,"") ->  | G92: =IFERROR('Salary Calculations'!D69,"") ->  | H92: =IFERROR('Salary Calculations'!E69,"") ->  | I92: =IFERROR('Salary Calculations'!F69,"") ->  | J92: =IFERROR('Salary Calculations'!G69,"") ->  | K92: =IFERROR('Salary Calculations'!H69,"") ->  | L92: =IFERROR('Salary Calculations'!I69,"") ->  | M92: =IFERROR('Salary Calculations'!J69,"") ->  | N92: =IFERROR('Salary Calculations'!K69,"") ->  | O92: =IFERROR('Salary Calculations'!L69,"") ->  | P92: =IFERROR('Salary Calculations'!M69,"") ->  | Q92: =IFERROR('Salary Calculations'!N69,"") ->  | R92: =IFERROR('Salary Calculations'!O69,"") ->  | S92: =IFERROR('Salary Calculations'!P69,"") ->  | T92: =IFERROR('Salary Calculations'!Q69,"") -> 
D93: =IFERROR('Salary Calculations'!A70,"") ->  | E93: =IFERROR('Salary Calculations'!B70,"") ->  | F93: =IFERROR('Salary Calculations'!C70,"") ->  | G93: =IFERROR('Salary Calculations'!D70,"") ->  | H93: =IFERROR('Salary Calculations'!E70,"") ->  | I93: =IFERROR('Salary Calculations'!F70,"") ->  | J93: =IFERROR('Salary Calculations'!G70,"") ->  | K93: =IFERROR('Salary Calculations'!H70,"") ->  | L93: =IFERROR('Salary Calculations'!I70,"") ->  | M93: =IFERROR('Salary Calculations'!J70,"") ->  | N93: =IFERROR('Salary Calculations'!K70,"") ->  | O93: =IFERROR('Salary Calculations'!L70,"") ->  | P93: =IFERROR('Salary Calculations'!M70,"") ->  | Q93: =IFERROR('Salary Calculations'!N70,"") ->  | R93: =IFERROR('Salary Calculations'!O70,"") ->  | S93: =IFERROR('Salary Calculations'!P70,"") ->  | T93: =IFERROR('Salary Calculations'!Q70,"") -> 

Sheet Salary Calculations (hidden)
B1: Investments | G1: Income | J1: Deductions
A2: Age | B2: Savings | C2: Savings Requirement | D2: Investment Fees | E2: Return on Investments | F2: Net Investments | G2: Salary | H2: Pension | I2: Total Income | J2: Federal Taxes | K2: Social Security | L2: Medicare | M2: State Taxes | N2: Local Taxes | O2: Total Deductions | P2: Expenses | Q2: Net Income
A3: ='Salary Worksheet'!B5 -> 56 | B3: ='Salary Worksheet'!B7 -> 2000000 | C3: =IF(ISERROR(A3),NA(),'Salary Worksheet'!$B$15) -> 3000000 | D3: ='Salary Worksheet'!$B$11*'Salary Calculations'!B3 -> 5000 | E3: ='Salary Worksheet'!$B$12*'Salary Calculations'!B3 -> 100000 | F3: =B3-D3+E3 -> 2095000 | G3: ='Salary Worksheet'!$B$16 -> 300000 | H3: ='Salary Worksheet'!$B$17 -> 30000 | I3: =SUM(G3:H3) -> 330000 | J3: ='Salary Worksheet'!$B$8*'Salary Calculations'!I3 -> 82500 | K3: ='Salary Worksheet'!$B$13*'Salary Calculations'!I3 -> 20460 | L3: ='Salary Worksheet'!$B$14*'Salary Calculations'!I3 -> 4785 | M3: =IF('Salary Worksheet'!$B$18="Yes",'Salary Worksheet'!$B$9*'Salary Calculations'!I3,'Salary Worksheet'!$B$9*'Salary Calculations'!G3) -> 19800 | N3: ='Salary Worksheet'!$B$10*'Salary Calculations'!I3 -> 6600 | O3: =SUM(J3:N3) -> 134145 | P3: ='Salary Worksheet'!$B$19 -> 150000 | Q3: =I3-O3-P3 -> 45855
A4: =IF(A3<'Salary Worksheet'!$B$6,A3+1,NA()) -> 57 | B4: =IF(ISERROR(A4),NA(),F3+Q3) -> 2140855 | C4: =IF(ISERROR(A4),NA(),'Salary Worksheet'!$B$15) -> 3000000 | D4: ='Salary Worksheet'!$B$11*'Salary Calculations'!B4 -> 5352.1375 | E4: ='Salary Worksheet'!$B$12*'Salary Calculations'!B4 -> 107042.75 | F4: =B4-D4+E4 -> 2242545.612 | G4: =G3*(1+'Salary Worksheet'!$B$20) -> 306000 | H4: =IF(ISERROR(A4),NA(),H3*(1+'Salary Worksheet'!$B$20)) -> 30600 | I4: =SUM(G4:H4) -> 336600 | J4: ='Salary Worksheet'!$B$8*'Salary Calculations'!I4 -> 84150 | K4: ='Salary Worksheet'!$B$13*'Salary Calculations'!I4 -> 20869.2 | L4: ='Salary Worksheet'!$B$14*'Salary Calculations'!I4 -> 4880.7 | M4: =IF('Salary Worksheet'!$B$18="Yes",'Salary Worksheet'!$B$9*'Salary Calculations'!I4,'Salary Worksheet'!$B$9*'Salary Calculations'!G4) -> 20196 | N4: ='Salary Worksheet'!$B$10*'Salary Calculations'!I4 -> 6732 | O4: =SUM(J4:N4) -> 136827.9 | P4: =IF(ISERROR(A4),NA(),P3*(1+'Salary Worksheet'!$B$20)) -> 153000 | Q4: =I4-O4-P4 -> 46772.1
A5: =IF(A4<'Salary Worksheet'!$B$6,A4+1,NA()) -> 58 | B5: =IF(ISERROR(A5),NA(),F4+Q4) -> 2289317.712 | C5: =IF(ISERROR(A5),NA(),'Salary Worksheet'!$B$15) -> 3000000 | D5: ='Salary Worksheet'!$B$11*'Salary Calculations'!B5 -> 5723.294281 | E5: ='Salary Worksheet'!$B$12*'Salary Calculations'!B5 -> 114465.8856 | F5: =B5-D5+E5 -> 2398060.304 | G5: =IF(ISERROR(A5),NA(),G4*(1+'Salary Worksheet'!$B$20)) -> 312120 | H5: =IF(ISERROR(A5),NA(),H4*(1+'Salary Worksheet'!$B$20)) -> 31212 | I5: =SUM(G5:H5) -> 343332 | J5: ='Salary Worksheet'!$B$8*'Salary Calculations'!I5 -> 85833 | K5: ='Salary Worksheet'!$B$13*'Salary Calculations'!I5 -> 21286.584 | L5: ='Salary Worksheet'!$B$14*'Salary Calculations'!I5 -> 4978.314 | M5: =IF('Salary Worksheet'!$B$18="Yes",'Salary Worksheet'!$B$9*'Salary Calculations'!I5,'Salary Worksheet'!$B$9*'Salary Calculations'!G5) -> 20599.92 | N5: ='Salary Worksheet'!$B$10*'Salary Calculations'!I5 -> 6866.64 | O5: 139564.458 | P5: =IF(ISERROR(A5),NA(),P4*(1+'Salary Worksheet'!$B$20)) -> 156060 | Q5: =I5-O5-P5 -> 47707.542
A6: =IF(A5<'Salary Worksheet'!$B$6,A5+1,NA()) -> 59 | B6: 2445767.846 | C6: =IF(ISERROR(A6),NA(),'Salary Worksheet'!$B$15) -> 3000000 | D6: ='Salary Worksheet'!$B$11*'Salary Calculations'!B6 -> 6114.419615 | E6: ='Salary Worksheet'!$B$12*'Salary Calculations'!B6 -> 122288.3923 | F6: =B6-D6+E6 -> 2561941.819 | G6: =IF(ISERROR(A6),NA(),G5*(1+'Salary Worksheet'!$B$20)) -> 318362.4 | H6: =IF(ISERROR(A6),NA(),H5*(1+'Salary Worksheet'!$B$20)) -> 31836.24 | I6: =SUM(G6:H6) -> 350198.64 | J6: ='Salary Worksheet'!$B$8*'Salary Calculations'!I6 -> 87549.66 | K6: ='Salary Worksheet'!$B$13*'Salary Calculations'!I6 -> 21712.31568 | L6: ='Salary Worksheet'!$B$14*'Salary Calculations'!I6 -> 5077.88028 | M6: =IF('Salary Worksheet'!$B$18="Yes",'Salary Worksheet'!$B$9*'Salary Calculations'!I6,'Salary Worksheet'!$B$9*'Salary Calculations'!G6) -> 21011.9184 | N6: ='Salary Worksheet'!$B$10*'Salary Calculations'!I6 -> 7003.9728 | O6: 142355.7472 | P6: =IF(ISERROR(A6),NA(),P5*(1+'Salary Worksheet'!$B$20)) -> 159181.2 | Q6: =I6-O6-P6 -> 48661.69284
A7: =IF(A6<'Salary Worksheet'!$B$6,A6+1,NA()) -> 60 | B7: 2610603.511 | C7: =IF(ISERROR(A7),NA(),'Salary Worksheet'!$B$15) -> 3000000 | D7: ='Salary Worksheet'!$B$11*'Salary Calculations'!B7 -> 6526.508778 | E7: ='Salary Worksheet'!$B$12*'Salary Calculations'!B7 -> 130530.1756 | F7: =B7-D7+E7 -> 2734607.178 | G7: =IF(ISERROR(A7),NA(),G6*(1+'Salary Worksheet'!$B$20)) -> 324729.648 | H7: =IF(ISERROR(A7),NA(),H6*(1+'Salary Worksheet'!$B$20)) -> 32472.9648 | I7: =SUM(G7:H7) -> 357202.6128 | J7: ='Salary Worksheet'!$B$8*'Salary Calculations'!I7 -> 89300.6532 | K7: ='Salary Worksheet'!$B$13*'Salary Calculations'!I7 -> 22146.56199 | L7: ='Salary Worksheet'!$B$14*'Salary Calculations'!I7 -> 5179.437886 | M7: =IF('Salary Worksheet'!$B$18="Yes",'Salary Worksheet'!$B$9*'Salary Calculations'!I7,'Salary Worksheet'!$B$9*'Salary Calculations'!G7) -> 21432.15677 | N7: ='Salary Worksheet'!$B$10*'Salary Calculations'!I7 -> 7144.052256 | O7: 145202.8621 | P7: =IF(ISERROR(A7),NA(),P6*(1+'Salary Worksheet'!$B$20)) -> 162364.824 | Q7: =I7-O7-P7 -> 49634.9267
A8: =IF(A7<'Salary Worksheet'!$B$6,A7+1,NA()) -> 61 | B8: 2784242.105 | C8: =IF(ISERROR(A8),NA(),'Salary Worksheet'!$B$15) -> 3000000 | D8: ='Salary Worksheet'!$B$11*'Salary Calculations'!B8 -> 6960.605262 | E8: ='Salary Worksheet'!$B$12*'Salary Calculations'!B8 -> 139212.1052 | F8: 2916493.605 | G8: =IF(ISERROR(A8),NA(),G7*(1+'Salary Worksheet'!$B$20)) -> 331224.241 | H8: =IF(ISERROR(A8),NA(),H7*(1+'Salary Worksheet'!$B$20)) -> 33122.4241 | I8: 364346.6651 | J8: ='Salary Worksheet'!$B$8*'Salary Calculations'!I8 -> 91086.66626 | K8: ='Salary Worksheet'!$B$13*'Salary Calculations'!I8 -> 22589.49323 | L8: ='Salary Worksheet'!$B$14*'Salary Calculations'!I8 -> 5283.026643 | M8: =IF('Salary Worksheet'!$B$18="Yes",'Salary Worksheet'!$B$9*'Salary Calculations'!I8,'Salary Worksheet'!$B$9*'Salary Calculations'!G8) -> 21860.7999 | N8: ='Salary Worksheet'!$B$10*'Salary Calculations'!I8 -> 7286.933301 | O8: 148106.9193 | P8: =IF(ISERROR(A8),NA(),P7*(1+'Salary Worksheet'!$B$20)) -> 165612.1205 | Q8: 50627.62523
A9: =IF(A8<'Salary Worksheet'!$B$6,A8+1,NA()) -> 62 | B9: 2967121.23 | C9: =IF(ISERROR(A9),NA(),'Salary Worksheet'!$B$15) -> 3000000 | D9: ='Salary Worksheet'!$B$11*'Salary Calculations'!B9 -> 7417.803075 | E9: ='Salary Worksheet'!$B$12*'Salary Calculations'!B9 -> 148356.0615 | F9: 3108059.488 | G9: =IF(ISERROR(A9),NA(),G8*(1+'Salary Worksheet'!$B$20)) -> 337848.7258 | H9: =IF(ISERROR(A9),NA(),H8*(1+'Salary Worksheet'!$B$20)) -> 33784.87258 | I9: 371633.5984 | J9: ='Salary Worksheet'!$B$8*'Salary Calculations'!I9 -> 92908.39959 | K9: ='Salary Worksheet'!$B$13*'Salary Calculations'!I9 -> 23041.2831 | L9: ='Salary Worksheet'!$B$14*'Salary Calculations'!I9 -> 5388.687176 | M9: =IF('Salary Worksheet'!$B$18="Yes",'Salary Worksheet'!$B$9*'Salary Calculations'!I9,'Salary Worksheet'!$B$9*'Salary Calculations'!G9) -> 22298.0159 | N9: ='Salary Worksheet'!$B$10*'Salary Calculations'!I9 -> 7432.671967 | O9: 151069.0577 | P9: =IF(ISERROR(A9),NA(),P8*(1+'Salary Worksheet'!$B$20)) -> 168924.3629 | Q9: 51640.17774
A10: =IF(A9<'Salary Worksheet'!$B$6,A9+1,NA()) -> 63 | B10: 3159699.666 | C10: =IF(ISERROR(A10),NA(),'Salary Worksheet'!$B$15) -> 3000000 | D10: ='Salary Worksheet'!$B$11*'Salary Calculations'!B10 -> 7899.249166 | E10: ='Salary Worksheet'!$B$12*'Salary Calculations'!B10 -> 157984.9833 | F10: 3309785.4 | G10: =IF(ISERROR(A10),NA(),G9*(1+'Salary Worksheet'!$B$20)) -> 344605.7003 | H10: =IF(ISERROR(A10),NA(),H9*(1+'Salary Worksheet'!$B$20)) -> 34460.57003 | I10: 379066.2703 | J10: ='Salary Worksheet'!$B$8*'Salary Calculations'!I10 -> 94766.56758 | K10: ='Salary Worksheet'!$B$13*'Salary Calculations'!I10 -> 23502.10876 | L10: ='Salary Worksheet'!$B$14*'Salary Calculations'!I10 -> 5496.46092 | M10: =IF('Salary Worksheet'!$B$18="Yes",'Salary Worksheet'!$B$9*'Salary Calculations'!I10,'Salary Worksheet'!$B$9*'Salary Calculations'!G10) -> 22743.97622 | N10: ='Salary Worksheet'!$B$10*'Salary Calculations'!I10 -> 7581.325406 | O10: 154090.4389 | P10: =IF(ISERROR(A10),NA(),P9*(1+'Salary Worksheet'!$B$20)) -> 172302.8501 | Q10: 52672.98129
A11: =IF(A10<'Salary Worksheet'!$B$6,A10+1,NA()) -> 64 | B11: 3362458.382 | C11: =IF(ISERROR(A11),NA(),'Salary Worksheet'!$B$15) -> 3000000 | D11: ='Salary Worksheet'!$B$11*'Salary Calculations'!B11 -> 8406.145954 | E11: ='Salary Worksheet'!$B$12*'Salary Calculations'!B11 -> 168122.9191 | F11: 3522175.155 | G11: =IF(ISERROR(A11),NA(),G10*(1+'Salary Worksheet'!$B$20)) -> 351497.8143 | H11: =IF(ISERROR(A11),NA(),H10*(1+'Salary Worksheet'!$B$20)) -> 35149.78143 | I11: 386647.5957 | J11: ='Salary Worksheet'!$B$8*'Salary Calculations'!I11 -> 96661.89893 | K11: ='Salary Worksheet'!$B$13*'Salary Calculations'!I11 -> 23972.15094 | L11: ='Salary Worksheet'!$B$14*'Salary Calculations'!I11 -> 5606.390138 | M11: =IF('Salary Worksheet'!$B$18="Yes",'Salary Worksheet'!$B$9*'Salary Calculations'!I11,'Salary Worksheet'!$B$9*'Salary Calculations'!G11) -> 23198.85574 | N11: ='Salary Worksheet'!$B$10*'Salary Calculations'!I11 -> 7732.951915 | O11: 157172.2477 | P11: =IF(ISERROR(A11),NA(),P10*(1+'Salary Worksheet'!$B$20)) -> 175748.9072 | Q11: 53726.44092
A12: =IF(A11<'Salary Worksheet'!$B$6,A11+1,NA()) -> 65 | B12: 3575901.596 | C12: =IF(ISERROR(A12),NA(),'Salary Worksheet'!$B$15) -> 3000000 | D12: ='Salary Worksheet'!$B$11*'Salary Calculations'!B12 -> 8939.753989 | E12: ='Salary Worksheet'!$B$12*'Salary Calculations'!B12 -> 178795.0798 | F12: 3745756.921 | G12: =IF(ISERROR(A12),NA(),G11*(1+'Salary Worksheet'!$B$20)) -> 358527.7706 | H12: =IF(ISERROR(A12),NA(),H11*(1+'Salary Worksheet'!$B$20)) -> 35852.77706 | I12: 394380.5476 | J12: ='Salary Worksheet'!$B$8*'Salary Calculations'!I12 -> 98595.13691 | K12: ='Salary Worksheet'!$B$13*'Salary Calculations'!I12 -> 24451.59395 | L12: ='Salary Worksheet'!$B$14*'Salary Calculations'!I12 -> 5718.517941 | M12: =IF('Salary Worksheet'!$B$18="Yes",'Salary Worksheet'!$B$9*'Salary Calculations'!I12,'Salary Worksheet'!$B$9*'Salary Calculations'!G12) -> 23662.83286 | N12: ='Salary Worksheet'!$B$10*'Salary Calculations'!I12 -> 7887.610953 | O12: 160315.6926 | P12: =IF(ISERROR(A12),NA(),P11*(1+'Salary Worksheet'!$B$20)) -> 179263.8853 | Q12: 54800.96973
A13: =IF(A12<'Salary Worksheet'!$B$6,A12+1,NA()) ->  | C13: =IF(ISERROR(A13),NA(),'Salary Worksheet'!$B$15) ->  | D13: ='Salary Worksheet'!$B$11*'Salary Calculations'!B13 ->  | E13: ='Salary Worksheet'!$B$12*'Salary Calculations'!B13 ->  | G13: =IF(ISERROR(A13),NA(),G12*(1+'Salary Worksheet'!$B$20)) ->  | H13: =IF(ISERROR(A13),NA(),H12*(1+'Salary Worksheet'!$B$20)) ->  | J13: ='Salary Worksheet'!$B$8*'Salary Calculations'!I13 ->  | K13: ='Salary Worksheet'!$B$13*'Salary Calculations'!I13 ->  | L13: ='Salary Worksheet'!$B$14*'Salary Calculations'!I13 ->  | M13: =IF('Salary Worksheet'!$B$18="Yes",'Salary Worksheet'!$B$9*'Salary Calculations'!I13,'Salary Worksheet'!$B$9*'Salary Calculations'!G13) ->  | N13: ='Salary Worksheet'!$B$10*'Salary Calculations'!I13 ->  | P13: =IF(ISERROR(A13),NA(),P12*(1+'Salary Worksheet'!$B$20)) -> 
A14: =IF(A13<'Salary Worksheet'!$B$6,A13+1,NA()) ->  | C14: =IF(ISERROR(A14),NA(),'Salary Worksheet'!$B$15) ->  | D14: ='Salary Worksheet'!$B$11*'Salary Calculations'!B14 ->  | E14: ='Salary Worksheet'!$B$12*'Salary Calculations'!B14 ->  | G14: =IF(ISERROR(A14),NA(),G13*(1+'Salary Worksheet'!$B$20)) ->  | H14: =IF(ISERROR(A14),NA(),H13*(1+'Salary Worksheet'!$B$20)) ->  | J14: ='Salary Worksheet'!$B$8*'Salary Calculations'!I14 ->  | K14: ='Salary Worksheet'!$B$13*'Salary Calculations'!I14 ->  | L14: ='Salary Worksheet'!$B$14*'Salary Calculations'!I14 ->  | M14: =IF('Salary Worksheet'!$B$18="Yes",'Salary Worksheet'!$B$9*'Salary Calculations'!I14,'Salary Worksheet'!$B$9*'Salary Calculations'!G14) ->  | N14: ='Salary Worksheet'!$B$10*'Salary Calculations'!I14 ->  | P14: =IF(ISERROR(A14),NA(),P13*(1+'Salary Worksheet'!$B$20)) -> 
A15: =IF(A14<'Salary Worksheet'!$B$6,A14+1,NA()) ->  | C15: =IF(ISERROR(A15),NA(),'Salary Worksheet'!$B$15) ->  | D15: ='Salary Worksheet'!$B$11*'Salary Calculations'!B15 ->  | E15: ='Salary Worksheet'!$B$12*'Salary Calculations'!B15 ->  | G15: =IF(ISERROR(A15),NA(),G14*(1+'Salary Worksheet'!$B$20)) ->  | H15: =IF(ISERROR(A15),NA(),H14*(1+'Salary Worksheet'!$B$20)) ->  | J15: ='Salary Worksheet'!$B$8*'Salary Calculations'!I15 ->  | K15: ='Salary Worksheet'!$B$13*'Salary Calculations'!I15 ->  | L15: ='Salary Worksheet'!$B$14*'Salary Calculations'!I15 ->  | M15: =IF('Salary Worksheet'!$B$18="Yes",'Salary Worksheet'!$B$9*'Salary Calculations'!I15,'Salary Worksheet'!$B$9*'Salary Calculations'!G15) ->  | N15: ='Salary Worksheet'!$B$10*'Salary Calculations'!I15 ->  | P15: =IF(ISERROR(A15),NA(),P14*(1+'Salary Worksheet'!$B$20)) -> 
A16: =IF(A15<'Salary Worksheet'!$B$6,A15+1,NA()) ->  | C16: =IF(ISERROR(A16),NA(),'Salary Worksheet'!$B$15) ->  | D16: ='Salary Worksheet'!$B$11*'Salary Calculations'!B16 ->  | E16: ='Salary Worksheet'!$B$12*'Salary Calculations'!B16 ->  | G16: =IF(ISERROR(A16),NA(),G15*(1+'Salary Worksheet'!$B$20)) ->  | H16: =IF(ISERROR(A16),NA(),H15*(1+'Salary Worksheet'!$B$20)) ->  | J16: ='Salary Worksheet'!$B$8*'Salary Calculations'!I16 ->  | K16: ='Salary Worksheet'!$B$13*'Salary Calculations'!I16 ->  | L16: ='Salary Worksheet'!$B$14*'Salary Calculations'!I16 ->  | M16: =IF('Salary Worksheet'!$B$18="Yes",'Salary Worksheet'!$B$9*'Salary Calculations'!I16,'Salary Worksheet'!$B$9*'Salary Calculations'!G16) ->  | N16: ='Salary Worksheet'!$B$10*'Salary Calculations'!I16 ->  | P16: =IF(ISERROR(A16),NA(),P15*(1+'Salary Worksheet'!$B$20)) -> 
A17: =IF(A16<'Salary Worksheet'!$B$6,A16+1,NA()) ->  | C17: =IF(ISERROR(A17),NA(),'Salary Worksheet'!$B$15) ->  | D17: ='Salary Worksheet'!$B$11*'Salary Calculations'!B17 ->  | E17: ='Salary Worksheet'!$B$12*'Salary Calculations'!B17 ->  | G17: =IF(ISERROR(A17),NA(),G16*(1+'Salary Worksheet'!$B$20)) ->  | H17: =IF(ISERROR(A17),NA(),H16*(1+'Salary Worksheet'!$B$20)) ->  | J17: ='Salary Worksheet'!$B$8*'Salary Calculations'!I17 ->  | K17: ='Salary Worksheet'!$B$13*'Salary Calculations'!I17 ->  | L17: ='Salary Worksheet'!$B$14*'Salary Calculations'!I17 ->  | M17: =IF('Salary Worksheet'!$B$18="Yes",'Salary Worksheet'!$B$9*'Salary Calculations'!I17,'Salary Worksheet'!$B$9*'Salary Calculations'!G17) ->  | N17: ='Salary Worksheet'!$B$10*'Salary Calculations'!I17 ->  | P17: =IF(ISERROR(A17),NA(),P16*(1+'Salary Worksheet'!$B$20)) -> 
A18: =IF(A17<'Salary Worksheet'!$B$6,A17+1,NA()) ->  | C18: =IF(ISERROR(A18),NA(),'Salary Worksheet'!$B$15) ->  | D18: ='Salary Worksheet'!$B$11*'Salary Calculations'!B18 ->  | E18: ='Salary Worksheet'!$B$12*'Salary Calculations'!B18 ->  | G18: =IF(ISERROR(A18),NA(),G17*(1+'Salary Worksheet'!$B$20)) ->  | H18: =IF(ISERROR(A18),NA(),H17*(1+'Salary Worksheet'!$B$20)) ->  | J18: ='Salary Worksheet'!$B$8*'Salary Calculations'!I18 ->  | K18: ='Salary Worksheet'!$B$13*'Salary Calculations'!I18 ->  | L18: ='Salary Worksheet'!$B$14*'Salary Calculations'!I18 ->  | M18: =IF('Salary Worksheet'!$B$18="Yes",'Salary Worksheet'!$B$9*'Salary Calculations'!I18,'Salary Worksheet'!$B$9*'Salary Calculations'!G18) ->  | N18: ='Salary Worksheet'!$B$10*'Salary Calculations'!I18 ->  | P18: =IF(ISERROR(A18),NA(),P17*(1+'Salary Worksheet'!$B$20)) -> 
A19: =IF(A18<'Salary Worksheet'!$B$6,A18+1,NA()) ->  | C19: =IF(ISERROR(A19),NA(),'Salary Worksheet'!$B$15) ->  | D19: ='Salary Worksheet'!$B$11*'Salary Calculations'!B19 ->  | E19: ='Salary Worksheet'!$B$12*'Salary Calculations'!B19 ->  | G19: =IF(ISERROR(A19),NA(),G18*(1+'Salary Worksheet'!$B$20)) ->  | H19: =IF(ISERROR(A19),NA(),H18*(1+'Salary Worksheet'!$B$20)) ->  | J19: ='Salary Worksheet'!$B$8*'Salary Calculations'!I19 ->  | K19: ='Salary Worksheet'!$B$13*'Salary Calculations'!I19 ->  | L19: ='Salary Worksheet'!$B$14*'Salary Calculations'!I19 ->  | M19: =IF('Salary Worksheet'!$B$18="Yes",'Salary Worksheet'!$B$9*'Salary Calculations'!I19,'Salary Worksheet'!$B$9*'Salary Calculations'!G19) ->  | N19: ='Salary Worksheet'!$B$10*'Salary Calculations'!I19 ->  | P19: =IF(ISERROR(A19),NA(),P18*(1+'Salary Worksheet'!$B$20)) -> 
A20: =IF(A19<'Salary Worksheet'!$B$6,A19+1,NA()) ->  | C20: =IF(ISERROR(A20),NA(),'Salary Worksheet'!$B$15) ->  | D20: ='Salary Worksheet'!$B$11*'Salary Calculations'!B20 ->  | E20: ='Salary Worksheet'!$B$12*'Salary Calculations'!B20 ->  | G20: =IF(ISERROR(A20),NA(),G19*(1+'Salary Worksheet'!$B$20)) ->  | H20: =IF(ISERROR(A20),NA(),H19*(1+'Salary Worksheet'!$B$20)) ->  | J20: ='Salary Worksheet'!$B$8*'Salary Calculations'!I20 ->  | K20: ='Salary Worksheet'!$B$13*'Salary Calculations'!I20 ->  | L20: ='Salary Worksheet'!$B$14*'Salary Calculations'!I20 ->  | M20: =IF('Salary Worksheet'!$B$18="Yes",'Salary Worksheet'!$B$9*'Salary Calculations'!I20,'Salary Worksheet'!$B$9*'Salary Calculations'!G20) ->  | N20: ='Salary Worksheet'!$B$10*'Salary Calculations'!I20 ->  | P20: =IF(ISERROR(A20),NA(),P19*(1+'Salary Worksheet'!$B$20)) -> 
A21: =IF(A20<'Salary Worksheet'!$B$6,A20+1,NA()) ->  | C21: =IF(ISERROR(A21),NA(),'Salary Worksheet'!$B$15) ->  | D21: ='Salary Worksheet'!$B$11*'Salary Calculations'!B21 ->  | E21: ='Salary Worksheet'!$B$12*'Salary Calculations'!B21 ->  | G21: =IF(ISERROR(A21),NA(),G20*(1+'Salary Worksheet'!$B$20)) ->  | H21: =IF(ISERROR(A21),NA(),H20*(1+'Salary Worksheet'!$B$20)) ->  | J21: ='Salary Worksheet'!$B$8*'Salary Calculations'!I21 ->  | K21: ='Salary Worksheet'!$B$13*'Salary Calculations'!I21 ->  | L21: ='Salary Worksheet'!$B$14*'Salary Calculations'!I21 ->  | M21: =IF('Salary Worksheet'!$B$18="Yes",'Salary Worksheet'!$B$9*'Salary Calculations'!I21,'Salary Worksheet'!$B$9*'Salary Calculations'!G21) ->  | N21: ='Salary Worksheet'!$B$10*'Salary Calculations'!I21 ->  | P21: =IF(ISERROR(A21),NA(),P20*(1+'Salary Worksheet'!$B$20)) -> 
A22: =IF(A21<'Salary Worksheet'!$B$6,A21+1,NA()) ->  | C22: =IF(ISERROR(A22),NA(),'Salary Worksheet'!$B$15) ->  | D22: ='Salary Worksheet'!$B$11*'Salary Calculations'!B22 ->  | E22: ='Salary Worksheet'!$B$12*'Salary Calculations'!B22 ->  | G22: =IF(ISERROR(A22),NA(),G21*(1+'Salary Worksheet'!$B$20)) ->  | H22: =IF(ISERROR(A22),NA(),H21*(1+'Salary Worksheet'!$B$20)) ->  | J22: ='Salary Worksheet'!$B$8*'Salary Calculations'!I22 ->  | K22: ='Salary Worksheet'!$B$13*'Salary Calculations'!I22 ->  | L22: ='Salary Worksheet'!$B$14*'Salary Calculations'!I22 ->  | M22: =IF('Salary Worksheet'!$B$18="Yes",'Salary Worksheet'!$B$9*'Salary Calculations'!I22,'Salary Worksheet'!$B$9*'Salary Calculations'!G22) ->  | N22: ='Salary Worksheet'!$B$10*'Salary Calculations'!I22 ->  | P22: =IF(ISERROR(A22),NA(),P21*(1+'Salary Worksheet'!$B$20)) -> 
A23: =IF(A22<'Salary Worksheet'!$B$6,A22+1,NA()) ->  | C23: =IF(ISERROR(A23),NA(),'Salary Worksheet'!$B$15) ->  | D23: ='Salary Worksheet'!$B$11*'Salary Calculations'!B23 ->  | E23: ='Salary Worksheet'!$B$12*'Salary Calculations'!B23 ->  | G23: =IF(ISERROR(A23),NA(),G22*(1+'Salary Worksheet'!$B$20)) ->  | H23: =IF(ISERROR(A23),NA(),H22*(1+'Salary Worksheet'!$B$20)) ->  | J23: ='Salary Worksheet'!$B$8*'Salary Calculations'!I23 ->  | K23: ='Salary Worksheet'!$B$13*'Salary Calculations'!I23 ->  | L23: ='Salary Worksheet'!$B$14*'Salary Calculations'!I23 ->  | M23: =IF('Salary Worksheet'!$B$18="Yes",'Salary Worksheet'!$B$9*'Salary Calculations'!I23,'Salary Worksheet'!$B$9*'Salary Calculations'!G23) ->  | N23: ='Salary Worksheet'!$B$10*'Salary Calculations'!I23 ->  | P23: =IF(ISERROR(A23),NA(),P22*(1+'Salary Worksheet'!$B$20)) -> 
A24: =IF(A23<'Salary Worksheet'!$B$6,A23+1,NA()) ->  | C24: =IF(ISERROR(A24),NA(),'Salary Worksheet'!$B$15) ->  | D24: ='Salary Worksheet'!$B$11*'Salary Calculations'!B24 ->  | E24: ='Salary Worksheet'!$B$12*'Salary Calculations'!B24 ->  | G24: =IF(ISERROR(A24),NA(),G23*(1+'Salary Worksheet'!$B$20)) ->  | H24: =IF(ISERROR(A24),NA(),H23*(1+'Salary Worksheet'!$B$20)) ->  | J24: ='Salary Worksheet'!$B$8*'Salary Calculations'!I24 ->  | K24: ='Salary Worksheet'!$B$13*'Salary Calculations'!I24 ->  | L24: ='Salary Worksheet'!$B$14*'Salary Calculations'!I24 ->  | M24: =IF('Salary Worksheet'!$B$18="Yes",'Salary Worksheet'!$B$9*'Salary Calculations'!I24,'Salary Worksheet'!$B$9*'Salary Calculations'!G24) ->  | N24: ='Salary Worksheet'!$B$10*'Salary Calculations'!I24 ->  | P24: =IF(ISERROR(A24),NA(),P23*(1+'Salary Worksheet'!$B$20)) -> 
A25: =IF(A24<'Salary Worksheet'!$B$6,A24+1,NA()) ->  | C25: =IF(ISERROR(A25),NA(),'Salary Worksheet'!$B$15) ->  | D25: ='Salary Worksheet'!$B$11*'Salary Calculations'!B25 ->  | E25: ='Salary Worksheet'!$B$12*'Salary Calculations'!B25 ->  | G25: =IF(ISERROR(A25),NA(),G24*(1+'Salary Worksheet'!$B$20)) ->  | H25: =IF(ISERROR(A25),NA(),H24*(1+'Salary Worksheet'!$B$20)) ->  | J25: ='Salary Worksheet'!$B$8*'Salary Calculations'!I25 ->  | K25: ='Salary Worksheet'!$B$13*'Salary Calculations'!I25 ->  | L25: ='Salary Worksheet'!$B$14*'Salary Calculations'!I25 ->  | M25: =IF('Salary Worksheet'!$B$18="Yes",'Salary Worksheet'!$B$9*'Salary Calculations'!I25,'Salary Worksheet'!$B$9*'Salary Calculations'!G25) ->  | N25: ='Salary Worksheet'!$B$10*'Salary Calculations'!I25 ->  | P25: =IF(ISERROR(A25),NA(),P24*(1+'Salary Worksheet'!$B$20)) -> 
A26: =IF(A25<'Salary Worksheet'!$B$6,A25+1,NA()) ->  | C26: =IF(ISERROR(A26),NA(),'Salary Worksheet'!$B$15) ->  | D26: ='Salary Worksheet'!$B$11*'Salary Calculations'!B26 ->  | E26: ='Salary Worksheet'!$B$12*'Salary Calculations'!B26 ->  | G26: =IF(ISERROR(A26),NA(),G25*(1+'Salary Worksheet'!$B$20)) ->  | H26: =IF(ISERROR(A26),NA(),H25*(1+'Salary Worksheet'!$B$20)) ->  | J26: ='Salary Worksheet'!$B$8*'Salary Calculations'!I26 ->  | K26: ='Salary Worksheet'!$B$13*'Salary Calculations'!I26 ->  | L26: ='Salary Worksheet'!$B$14*'Salary Calculations'!I26 ->  | M26: =IF('Salary Worksheet'!$B$18="Yes",'Salary Worksheet'!$B$9*'Salary Calculations'!I26,'Salary Worksheet'!$B$9*'Salary Calculations'!G26) ->  | N26: ='Salary Worksheet'!$B$10*'Salary Calculations'!I26 ->  | P26: =IF(ISERROR(A26),NA(),P25*(1+'Salary Worksheet'!$B$20)) -> 
A27: =IF(A26<'Salary Worksheet'!$B$6,A26+1,NA()) ->  | C27: =IF(ISERROR(A27),NA(),'Salary Worksheet'!$B$15) ->  | D27: ='Salary Worksheet'!$B$11*'Salary Calculations'!B27 ->  | E27: ='Salary Worksheet'!$B$12*'Salary Calculations'!B27 ->  | G27: =IF(ISERROR(A27),NA(),G26*(1+'Salary Worksheet'!$B$20)) ->  | H27: =IF(ISERROR(A27),NA(),H26*(1+'Salary Worksheet'!$B$20)) ->  | J27: ='Salary Worksheet'!$B$8*'Salary Calculations'!I27 ->  | K27: ='Salary Worksheet'!$B$13*'Salary Calculations'!I27 ->  | L27: ='Salary Worksheet'!$B$14*'Salary Calculations'!I27 ->  | M27: =IF('Salary Worksheet'!$B$18="Yes",'Salary Worksheet'!$B$9*'Salary Calculations'!I27,'Salary Worksheet'!$B$9*'Salary Calculations'!G27) ->  | N27: ='Salary Worksheet'!$B$10*'Salary Calculations'!I27 ->  | P27: =IF(ISERROR(A27),NA(),P26*(1+'Salary Worksheet'!$B$20)) -> 
A28: =IF(A27<'Salary Worksheet'!$B$6,A27+1,NA()) ->  | C28: =IF(ISERROR(A28),NA(),'Salary Worksheet'!$B$15) ->  | D28: ='Salary Worksheet'!$B$11*'Salary Calculations'!B28 ->  | E28: ='Salary Worksheet'!$B$12*'Salary Calculations'!B28 ->  | G28: =IF(ISERROR(A28),NA(),G27*(1+'Salary Worksheet'!$B$20)) ->  | H28: =IF(ISERROR(A28),NA(),H27*(1+'Salary Worksheet'!$B$20)) ->  | J28: ='Salary Worksheet'!$B$8*'Salary Calculations'!I28 ->  | K28: ='Salary Worksheet'!$B$13*'Salary Calculations'!I28 ->  | L28: ='Salary Worksheet'!$B$14*'Salary Calculations'!I28 ->  | M28: =IF('Salary Worksheet'!$B$18="Yes",'Salary Worksheet'!$B$9*'Salary Calculations'!I28,'Salary Worksheet'!$B$9*'Salary Calculations'!G28) ->  | N28: ='Salary Worksheet'!$B$10*'Salary Calculations'!I28 ->  | P28: =IF(ISERROR(A28),NA(),P27*(1+'Salary Worksheet'!$B$20)) -> 
A29: =IF(A28<'Salary Worksheet'!$B$6,A28+1,NA()) ->  | C29: =IF(ISERROR(A29),NA(),'Salary Worksheet'!$B$15) ->  | D29: ='Salary Worksheet'!$B$11*'Salary Calculations'!B29 ->  | E29: ='Salary Worksheet'!$B$12*'Salary Calculations'!B29 ->  | G29: =IF(ISERROR(A29),NA(),G28*(1+'Salary Worksheet'!$B$20)) ->  | H29: =IF(ISERROR(A29),NA(),H28*(1+'Salary Worksheet'!$B$20)) ->  | J29: ='Salary Worksheet'!$B$8*'Salary Calculations'!I29 ->  | K29: ='Salary Worksheet'!$B$13*'Salary Calculations'!I29 ->  | L29: ='Salary Worksheet'!$B$14*'Salary Calculations'!I29 ->  | M29: =IF('Salary Worksheet'!$B$18="Yes",'Salary Worksheet'!$B$9*'Salary Calculations'!I29,'Salary Worksheet'!$B$9*'Salary Calculations'!G29) ->  | N29: ='Salary Worksheet'!$B$10*'Salary Calculations'!I29 ->  | P29: =IF(ISERROR(A29),NA(),P28*(1+'Salary Worksheet'!$B$20)) -> 
A30: =IF(A29<'Salary Worksheet'!$B$6,A29+1,NA()) ->  | C30: =IF(ISERROR(A30),NA(),'Salary Worksheet'!$B$15) ->  | D30: ='Salary Worksheet'!$B$11*'Salary Calculations'!B30 ->  | E30: ='Salary Worksheet'!$B$12*'Salary Calculations'!B30 ->  | G30: =IF(ISERROR(A30),NA(),G29*(1+'Salary Worksheet'!$B$20)) ->  | H30: =IF(ISERROR(A30),NA(),H29*(1+'Salary Worksheet'!$B$20)) ->  | J30: ='Salary Worksheet'!$B$8*'Salary Calculations'!I30 ->  | K30: ='Salary Worksheet'!$B$13*'Salary Calculations'!I30 ->  | L30: ='Salary Worksheet'!$B$14*'Salary Calculations'!I30 ->  | M30: =IF('Salary Worksheet'!$B$18="Yes",'Salary Worksheet'!$B$9*'Salary Calculations'!I30,'Salary Worksheet'!$B$9*'Salary Calculations'!G30) ->  | N30: ='Salary Worksheet'!$B$10*'Salary Calculations'!I30 ->  | P30: =IF(ISERROR(A30),NA(),P29*(1+'Salary Worksheet'!$B$20)) -> 
A31: =IF(A30<'Salary Worksheet'!$B$6,A30+1,NA()) ->  | C31: =IF(ISERROR(A31),NA(),'Salary Worksheet'!$B$15) ->  | D31: ='Salary Worksheet'!$B$11*'Salary Calculations'!B31 ->  | E31: ='Salary Worksheet'!$B$12*'Salary Calculations'!B31 ->  | G31: =IF(ISERROR(A31),NA(),G30*(1+'Salary Worksheet'!$B$20)) ->  | H31: =IF(ISERROR(A31),NA(),H30*(1+'Salary Worksheet'!$B$20)) ->  | J31: ='Salary Worksheet'!$B$8*'Salary Calculations'!I31 ->  | K31: ='Salary Worksheet'!$B$13*'Salary Calculations'!I31 ->  | L31: ='Salary Worksheet'!$B$14*'Salary Calculations'!I31 ->  | M31: =IF('Salary Worksheet'!$B$18="Yes",'Salary Worksheet'!$B$9*'Salary Calculations'!I31,'Salary Worksheet'!$B$9*'Salary Calculations'!G31) ->  | N31: ='Salary Worksheet'!$B$10*'Salary Calculations'!I31 ->  | P31: =IF(ISERROR(A31),NA(),P30*(1+'Salary Worksheet'!$B$20)) -> 
A32: =IF(A31<'Salary Worksheet'!$B$6,A31+1,NA()) ->  | C32: =IF(ISERROR(A32),NA(),'Salary Worksheet'!$B$15) ->  | D32: ='Salary Worksheet'!$B$11*'Salary Calculations'!B32 ->  | E32: ='Salary Worksheet'!$B$12*'Salary Calculations'!B32 ->  | G32: =IF(ISERROR(A32),NA(),G31*(1+'Salary Worksheet'!$B$20)) ->  | H32: =IF(ISERROR(A32),NA(),H31*(1+'Salary Worksheet'!$B$20)) ->  | J32: ='Salary Worksheet'!$B$8*'Salary Calculations'!I32 ->  | K32: ='Salary Worksheet'!$B$13*'Salary Calculations'!I32 ->  | L32: ='Salary Worksheet'!$B$14*'Salary Calculations'!I32 ->  | M32: =IF('Salary Worksheet'!$B$18="Yes",'Salary Worksheet'!$B$9*'Salary Calculations'!I32,'Salary Worksheet'!$B$9*'Salary Calculations'!G32) ->  | N32: ='Salary Worksheet'!$B$10*'Salary Calculations'!I32 ->  | P32: =IF(ISERROR(A32),NA(),P31*(1+'Salary Worksheet'!$B$20)) -> 
A33: =IF(A32<'Salary Worksheet'!$B$6,A32+1,NA()) ->  | C33: =IF(ISERROR(A33),NA(),'Salary Worksheet'!$B$15) ->  | D33: ='Salary Worksheet'!$B$11*'Salary Calculations'!B33 ->  | E33: ='Salary Worksheet'!$B$12*'Salary Calculations'!B33 ->  | G33: =IF(ISERROR(A33),NA(),G32*(1+'Salary Worksheet'!$B$20)) ->  | H33: =IF(ISERROR(A33),NA(),H32*(1+'Salary Worksheet'!$B$20)) ->  | J33: ='Salary Worksheet'!$B$8*'Salary Calculations'!I33 ->  | K33: ='Salary Worksheet'!$B$13*'Salary Calculations'!I33 ->  | L33: ='Salary Worksheet'!$B$14*'Salary Calculations'!I33 ->  | M33: =IF('Salary Worksheet'!$B$18="Yes",'Salary Worksheet'!$B$9*'Salary Calculations'!I33,'Salary Worksheet'!$B$9*'Salary Calculations'!G33) ->  | N33: ='Salary Worksheet'!$B$10*'Salary Calculations'!I33 ->  | P33: =IF(ISERROR(A33),NA(),P32*(1+'Salary Worksheet'!$B$20)) -> 
A34: =IF(A33<'Salary Worksheet'!$B$6,A33+1,NA()) ->  | C34: =IF(ISERROR(A34),NA(),'Salary Worksheet'!$B$15) ->  | D34: ='Salary Worksheet'!$B$11*'Salary Calculations'!B34 ->  | E34: ='Salary Worksheet'!$B$12*'Salary Calculations'!B34 ->  | G34: =IF(ISERROR(A34),NA(),G33*(1+'Salary Worksheet'!$B$20)) ->  | H34: =IF(ISERROR(A34),NA(),H33*(1+'Salary Worksheet'!$B$20)) ->  | J34: ='Salary Worksheet'!$B$8*'Salary Calculations'!I34 ->  | K34: ='Salary Worksheet'!$B$13*'Salary Calculations'!I34 ->  | L34: ='Salary Worksheet'!$B$14*'Salary Calculations'!I34 ->  | M34: =IF('Salary Worksheet'!$B$18="Yes",'Salary Worksheet'!$B$9*'Salary Calculations'!I34,'Salary Worksheet'!$B$9*'Salary Calculations'!G34) ->  | N34: ='Salary Worksheet'!$B$10*'Salary Calculations'!I34 ->  | P34: =IF(ISERROR(A34),NA(),P33*(1+'Salary Worksheet'!$B$20)) -> 
A35: =IF(A34<'Salary Worksheet'!$B$6,A34+1,NA()) ->  | C35: =IF(ISERROR(A35),NA(),'Salary Worksheet'!$B$15) ->  | D35: ='Salary Worksheet'!$B$11*'Salary Calculations'!B35 ->  | E35: ='Salary Worksheet'!$B$12*'Salary Calculations'!B35 ->  | G35: =IF(ISERROR(A35),NA(),G34*(1+'Salary Worksheet'!$B$20)) ->  | H35: =IF(ISERROR(A35),NA(),H34*(1+'Salary Worksheet'!$B$20)) ->  | J35: ='Salary Worksheet'!$B$8*'Salary Calculations'!I35 ->  | K35: ='Salary Worksheet'!$B$13*'Salary Calculations'!I35 ->  | L35: ='Salary Worksheet'!$B$14*'Salary Calculations'!I35 ->  | M35: =IF('Salary Worksheet'!$B$18="Yes",'Salary Worksheet'!$B$9*'Salary Calculations'!I35,'Salary Worksheet'!$B$9*'Salary Calculations'!G35) ->  | N35: ='Salary Worksheet'!$B$10*'Salary Calculations'!I35 ->  | P35: =IF(ISERROR(A35),NA(),P34*(1+'Salary Worksheet'!$B$20)) -> 
A36: =IF(A35<'Salary Worksheet'!$B$6,A35+1,NA()) ->  | C36: =IF(ISERROR(A36),NA(),'Salary Worksheet'!$B$15) ->  | D36: ='Salary Worksheet'!$B$11*'Salary Calculations'!B36 ->  | E36: ='Salary Worksheet'!$B$12*'Salary Calculations'!B36 ->  | G36: =IF(ISERROR(A36),NA(),G35*(1+'Salary Worksheet'!$B$20)) ->  | H36: =IF(ISERROR(A36),NA(),H35*(1+'Salary Worksheet'!$B$20)) ->  | J36: ='Salary Worksheet'!$B$8*'Salary Calculations'!I36 ->  | K36: ='Salary Worksheet'!$B$13*'Salary Calculations'!I36 ->  | L36: ='Salary Worksheet'!$B$14*'Salary Calculations'!I36 ->  | M36: =IF('Salary Worksheet'!$B$18="Yes",'Salary Worksheet'!$B$9*'Salary Calculations'!I36,'Salary Worksheet'!$B$9*'Salary Calculations'!G36) ->  | N36: ='Salary Worksheet'!$B$10*'Salary Calculations'!I36 ->  | P36: =IF(ISERROR(A36),NA(),P35*(1+'Salary Worksheet'!$B$20)) -> 
A37: =IF(A36<'Salary Worksheet'!$B$6,A36+1,NA()) ->  | C37: =IF(ISERROR(A37),NA(),'Salary Worksheet'!$B$15) ->  | D37: ='Salary Worksheet'!$B$11*'Salary Calculations'!B37 ->  | E37: ='Salary Worksheet'!$B$12*'Salary Calculations'!B37 ->  | G37: =IF(ISERROR(A37),NA(),G36*(1+'Salary Worksheet'!$B$20)) ->  | H37: =IF(ISERROR(A37),NA(),H36*(1+'Salary Worksheet'!$B$20)) ->  | J37: ='Salary Worksheet'!$B$8*'Salary Calculations'!I37 ->  | K37: ='Salary Worksheet'!$B$13*'Salary Calculations'!I37 ->  | L37: ='Salary Worksheet'!$B$14*'Salary Calculations'!I37 ->  | M37: =IF('Salary Worksheet'!$B$18="Yes",'Salary Worksheet'!$B$9*'Salary Calculations'!I37,'Salary Worksheet'!$B$9*'Salary Calculations'!G37) ->  | N37: ='Salary Worksheet'!$B$10*'Salary Calculations'!I37 ->  | P37: =IF(ISERROR(A37),NA(),P36*(1+'Salary Worksheet'!$B$20)) -> 
A38: =IF(A37<'Salary Worksheet'!$B$6,A37+1,NA()) ->  | C38: =IF(ISERROR(A38),NA(),'Salary Worksheet'!$B$15) ->  | D38: ='Salary Worksheet'!$B$11*'Salary Calculations'!B38 ->  | E38: ='Salary Worksheet'!$B$12*'Salary Calculations'!B38 ->  | G38: =IF(ISERROR(A38),NA(),G37*(1+'Salary Worksheet'!$B$20)) ->  | H38: =IF(ISERROR(A38),NA(),H37*(1+'Salary Worksheet'!$B$20)) ->  | J38: ='Salary Worksheet'!$B$8*'Salary Calculations'!I38 ->  | K38: ='Salary Worksheet'!$B$13*'Salary Calculations'!I38 ->  | L38: ='Salary Worksheet'!$B$14*'Salary Calculations'!I38 ->  | M38: =IF('Salary Worksheet'!$B$18="Yes",'Salary Worksheet'!$B$9*'Salary Calculations'!I38,'Salary Worksheet'!$B$9*'Salary Calculations'!G38) ->  | N38: ='Salary Worksheet'!$B$10*'Salary Calculations'!I38 ->  | P38: =IF(ISERROR(A38),NA(),P37*(1+'Salary Worksheet'!$B$20)) -> 
A39: =IF(A38<'Salary Worksheet'!$B$6,A38+1,NA()) ->  | C39: =IF(ISERROR(A39),NA(),'Salary Worksheet'!$B$15) ->  | D39: ='Salary Worksheet'!$B$11*'Salary Calculations'!B39 ->  | E39: ='Salary Worksheet'!$B$12*'Salary Calculations'!B39 ->  | G39: =IF(ISERROR(A39),NA(),G38*(1+'Salary Worksheet'!$B$20)) ->  | H39: =IF(ISERROR(A39),NA(),H38*(1+'Salary Worksheet'!$B$20)) ->  | J39: ='Salary Worksheet'!$B$8*'Salary Calculations'!I39 ->  | K39: ='Salary Worksheet'!$B$13*'Salary Calculations'!I39 ->  | L39: ='Salary Worksheet'!$B$14*'Salary Calculations'!I39 ->  | M39: =IF('Salary Worksheet'!$B$18="Yes",'Salary Worksheet'!$B$9*'Salary Calculations'!I39,'Salary Worksheet'!$B$9*'Salary Calculations'!G39) ->  | N39: ='Salary Worksheet'!$B$10*'Salary Calculations'!I39 ->  | P39: =IF(ISERROR(A39),NA(),P38*(1+'Salary Worksheet'!$B$20)) -> 
A40: =IF(A39<'Salary Worksheet'!$B$6,A39+1,NA()) ->  | C40: =IF(ISERROR(A40),NA(),'Salary Worksheet'!$B$15) ->  | D40: ='Salary Worksheet'!$B$11*'Salary Calculations'!B40 ->  | E40: ='Salary Worksheet'!$B$12*'Salary Calculations'!B40 ->  | G40: =IF(ISERROR(A40),NA(),G39*(1+'Salary Worksheet'!$B$20)) ->  | H40: =IF(ISERROR(A40),NA(),H39*(1+'Salary Worksheet'!$B$20)) ->  | J40: ='Salary Worksheet'!$B$8*'Salary Calculations'!I40 ->  | K40: ='Salary Worksheet'!$B$13*'Salary Calculations'!I40 ->  | L40: ='Salary Worksheet'!$B$14*'Salary Calculations'!I40 ->  | M40: =IF('Salary Worksheet'!$B$18="Yes",'Salary Worksheet'!$B$9*'Salary Calculations'!I40,'Salary Worksheet'!$B$9*'Salary Calculations'!G40) ->  | N40: ='Salary Worksheet'!$B$10*'Salary Calculations'!I40 ->  | P40: =IF(ISERROR(A40),NA(),P39*(1+'Salary Worksheet'!$B$20)) -> 
A41: =IF(A40<'Salary Worksheet'!$B$6,A40+1,NA()) ->  | C41: =IF(ISERROR(A41),NA(),'Salary Worksheet'!$B$15) ->  | D41: ='Salary Worksheet'!$B$11*'Salary Calculations'!B41 ->  | E41: ='Salary Worksheet'!$B$12*'Salary Calculations'!B41 ->  | G41: =IF(ISERROR(A41),NA(),G40*(1+'Salary Worksheet'!$B$20)) ->  | H41: =IF(ISERROR(A41),NA(),H40*(1+'Salary Worksheet'!$B$20)) ->  | J41: ='Salary Worksheet'!$B$8*'Salary Calculations'!I41 ->  | K41: ='Salary Worksheet'!$B$13*'Salary Calculations'!I41 ->  | L41: ='Salary Worksheet'!$B$14*'Salary Calculations'!I41 ->  | M41: =IF('Salary Worksheet'!$B$18="Yes",'Salary Worksheet'!$B$9*'Salary Calculations'!I41,'Salary Worksheet'!$B$9*'Salary Calculations'!G41) ->  | N41: ='Salary Worksheet'!$B$10*'Salary Calculations'!I41 ->  | P41: =IF(ISERROR(A41),NA(),P40*(1+'Salary Worksheet'!$B$20)) -> 
A42: =IF(A41<'Salary Worksheet'!$B$6,A41+1,NA()) ->  | C42: =IF(ISERROR(A42),NA(),'Salary Worksheet'!$B$15) ->  | D42: ='Salary Worksheet'!$B$11*'Salary Calculations'!B42 ->  | E42: ='Salary Worksheet'!$B$12*'Salary Calculations'!B42 ->  | G42: =IF(ISERROR(A42),NA(),G41*(1+'Salary Worksheet'!$B$20)) ->  | H42: =IF(ISERROR(A42),NA(),H41*(1+'Salary Worksheet'!$B$20)) ->  | J42: ='Salary Worksheet'!$B$8*'Salary Calculations'!I42 ->  | K42: ='Salary Worksheet'!$B$13*'Salary Calculations'!I42 ->  | L42: ='Salary Worksheet'!$B$14*'Salary Calculations'!I42 ->  | M42: =IF('Salary Worksheet'!$B$18="Yes",'Salary Worksheet'!$B$9*'Salary Calculations'!I42,'Salary Worksheet'!$B$9*'Salary Calculations'!G42) ->  | N42: ='Salary Worksheet'!$B$10*'Salary Calculations'!I42 ->  | P42: =IF(ISERROR(A42),NA(),P41*(1+'Salary Worksheet'!$B$20)) -> 
A43: =IF(A42<'Salary Worksheet'!$B$6,A42+1,NA()) ->  | C43: =IF(ISERROR(A43),NA(),'Salary Worksheet'!$B$15) ->  | D43: ='Salary Worksheet'!$B$11*'Salary Calculations'!B43 ->  | E43: ='Salary Worksheet'!$B$12*'Salary Calculations'!B43 ->  | G43: =IF(ISERROR(A43),NA(),G42*(1+'Salary Worksheet'!$B$20)) ->  | H43: =IF(ISERROR(A43),NA(),H42*(1+'Salary Worksheet'!$B$20)) ->  | J43: ='Salary Worksheet'!$B$8*'Salary Calculations'!I43 ->  | K43: ='Salary Worksheet'!$B$13*'Salary Calculations'!I43 ->  | L43: ='Salary Worksheet'!$B$14*'Salary Calculations'!I43 ->  | M43: =IF('Salary Worksheet'!$B$18="Yes",'Salary Worksheet'!$B$9*'Salary Calculations'!I43,'Salary Worksheet'!$B$9*'Salary Calculations'!G43) ->  | N43: ='Salary Worksheet'!$B$10*'Salary Calculations'!I43 ->  | P43: =IF(ISERROR(A43),NA(),P42*(1+'Salary Worksheet'!$B$20)) -> 
A44: =IF(A43<'Salary Worksheet'!$B$6,A43+1,NA()) ->  | C44: =IF(ISERROR(A44),NA(),'Salary Worksheet'!$B$15) ->  | D44: ='Salary Worksheet'!$B$11*'Salary Calculations'!B44 ->  | E44: ='Salary Worksheet'!$B$12*'Salary Calculations'!B44 ->  | G44: =IF(ISERROR(A44),NA(),G43*(1+'Salary Worksheet'!$B$20)) ->  | H44: =IF(ISERROR(A44),NA(),H43*(1+'Salary Worksheet'!$B$20)) ->  | J44: ='Salary Worksheet'!$B$8*'Salary Calculations'!I44 ->  | K44: ='Salary Worksheet'!$B$13*'Salary Calculations'!I44 ->  | L44: ='Salary Worksheet'!$B$14*'Salary Calculations'!I44 ->  | M44: =IF('Salary Worksheet'!$B$18="Yes",'Salary Worksheet'!$B$9*'Salary Calculations'!I44,'Salary Worksheet'!$B$9*'Salary Calculations'!G44) ->  | N44: ='Salary Worksheet'!$B$10*'Salary Calculations'!I44 ->  | P44: =IF(ISERROR(A44),NA(),P43*(1+'Salary Worksheet'!$B$20)) -> 
A45: =IF(A44<'Salary Worksheet'!$B$6,A44+1,NA()) ->  | C45: =IF(ISERROR(A45),NA(),'Salary Worksheet'!$B$15) ->  | D45: ='Salary Worksheet'!$B$11*'Salary Calculations'!B45 ->  | E45: ='Salary Worksheet'!$B$12*'Salary Calculations'!B45 ->  | G45: =IF(ISERROR(A45),NA(),G44*(1+'Salary Worksheet'!$B$20)) ->  | H45: =IF(ISERROR(A45),NA(),H44*(1+'Salary Worksheet'!$B$20)) ->  | J45: ='Salary Worksheet'!$B$8*'Salary Calculations'!I45 ->  | K45: ='Salary Worksheet'!$B$13*'Salary Calculations'!I45 ->  | L45: ='Salary Worksheet'!$B$14*'Salary Calculations'!I45 ->  | M45: =IF('Salary Worksheet'!$B$18="Yes",'Salary Worksheet'!$B$9*'Salary Calculations'!I45,'Salary Worksheet'!$B$9*'Salary Calculations'!G45) ->  | N45: ='Salary Worksheet'!$B$10*'Salary Calculations'!I45 ->  | P45: =IF(ISERROR(A45),NA(),P44*(1+'Salary Worksheet'!$B$20)) -> 
A46: =IF(A45<'Salary Worksheet'!$B$6,A45+1,NA()) ->  | C46: =IF(ISERROR(A46),NA(),'Salary Worksheet'!$B$15) ->  | D46: ='Salary Worksheet'!$B$11*'Salary Calculations'!B46 ->  | E46: ='Salary Worksheet'!$B$12*'Salary Calculations'!B46 ->  | G46: =IF(ISERROR(A46),NA(),G45*(1+'Salary Worksheet'!$B$20)) ->  | H46: =IF(ISERROR(A46),NA(),H45*(1+'Salary Worksheet'!$B$20)) ->  | J46: ='Salary Worksheet'!$B$8*'Salary Calculations'!I46 ->  | K46: ='Salary Worksheet'!$B$13*'Salary Calculations'!I46 ->  | L46: ='Salary Worksheet'!$B$14*'Salary Calculations'!I46 ->  | M46: =IF('Salary Worksheet'!$B$18="Yes",'Salary Worksheet'!$B$9*'Salary Calculations'!I46,'Salary Worksheet'!$B$9*'Salary Calculations'!G46) ->  | N46: ='Salary Worksheet'!$B$10*'Salary Calculations'!I46 ->  | P46: =IF(ISERROR(A46),NA(),P45*(1+'Salary Worksheet'!$B$20)) -> 
A47: =IF(A46<'Salary Worksheet'!$B$6,A46+1,NA()) ->  | C47: =IF(ISERROR(A47),NA(),'Salary Worksheet'!$B$15) ->  | D47: ='Salary Worksheet'!$B$11*'Salary Calculations'!B47 ->  | E47: ='Salary Worksheet'!$B$12*'Salary Calculations'!B47 ->  | G47: =IF(ISERROR(A47),NA(),G46*(1+'Salary Worksheet'!$B$20)) ->  | H47: =IF(ISERROR(A47),NA(),H46*(1+'Salary Worksheet'!$B$20)) ->  | J47: ='Salary Worksheet'!$B$8*'Salary Calculations'!I47 ->  | K47: ='Salary Worksheet'!$B$13*'Salary Calculations'!I47 ->  | L47: ='Salary Worksheet'!$B$14*'Salary Calculations'!I47 ->  | M47: =IF('Salary Worksheet'!$B$18="Yes",'Salary Worksheet'!$B$9*'Salary Calculations'!I47,'Salary Worksheet'!$B$9*'Salary Calculations'!G47) ->  | N47: ='Salary Worksheet'!$B$10*'Salary Calculations'!I47 ->  | P47: =IF(ISERROR(A47),NA(),P46*(1+'Salary Worksheet'!$B$20)) -> 
A48: =IF(A47<'Salary Worksheet'!$B$6,A47+1,NA()) ->  | C48: =IF(ISERROR(A48),NA(),'Salary Worksheet'!$B$15) ->  | D48: ='Salary Worksheet'!$B$11*'Salary Calculations'!B48 ->  | E48: ='Salary Worksheet'!$B$12*'Salary Calculations'!B48 ->  | G48: =IF(ISERROR(A48),NA(),G47*(1+'Salary Worksheet'!$B$20)) ->  | H48: =IF(ISERROR(A48),NA(),H47*(1+'Salary Worksheet'!$B$20)) ->  | J48: ='Salary Worksheet'!$B$8*'Salary Calculations'!I48 ->  | K48: ='Salary Worksheet'!$B$13*'Salary Calculations'!I48 ->  | L48: ='Salary Worksheet'!$B$14*'Salary Calculations'!I48 ->  | M48: =IF('Salary Worksheet'!$B$18="Yes",'Salary Worksheet'!$B$9*'Salary Calculations'!I48,'Salary Worksheet'!$B$9*'Salary Calculations'!G48) ->  | N48: ='Salary Worksheet'!$B$10*'Salary Calculations'!I48 ->  | P48: =IF(ISERROR(A48),NA(),P47*(1+'Salary Worksheet'!$B$20)) -> 
A49: =IF(A48<'Salary Worksheet'!$B$6,A48+1,NA()) ->  | C49: =IF(ISERROR(A49),NA(),'Salary Worksheet'!$B$15) ->  | D49: ='Salary Worksheet'!$B$11*'Salary Calculations'!B49 ->  | E49: ='Salary Worksheet'!$B$12*'Salary Calculations'!B49 ->  | G49: =IF(ISERROR(A49),NA(),G48*(1+'Salary Worksheet'!$B$20)) ->  | H49: =IF(ISERROR(A49),NA(),H48*(1+'Salary Worksheet'!$B$20)) ->  | J49: ='Salary Worksheet'!$B$8*'Salary Calculations'!I49 ->  | K49: ='Salary Worksheet'!$B$13*'Salary Calculations'!I49 ->  | L49: ='Salary Worksheet'!$B$14*'Salary Calculations'!I49 ->  | M49: =IF('Salary Worksheet'!$B$18="Yes",'Salary Worksheet'!$B$9*'Salary Calculations'!I49,'Salary Worksheet'!$B$9*'Salary Calculations'!G49) ->  | N49: ='Salary Worksheet'!$B$10*'Salary Calculations'!I49 ->  | P49: =IF(ISERROR(A49),NA(),P48*(1+'Salary Worksheet'!$B$20)) -> 
A50: =IF(A49<'Salary Worksheet'!$B$6,A49+1,NA()) ->  | C50: =IF(ISERROR(A50),NA(),'Salary Worksheet'!$B$15) ->  | D50: ='Salary Worksheet'!$B$11*'Salary Calculations'!B50 ->  | E50: ='Salary Worksheet'!$B$12*'Salary Calculations'!B50 ->  | G50: =IF(ISERROR(A50),NA(),G49*(1+'Salary Worksheet'!$B$20)) ->  | H50: =IF(ISERROR(A50),NA(),H49*(1+'Salary Worksheet'!$B$20)) ->  | J50: ='Salary Worksheet'!$B$8*'Salary Calculations'!I50 ->  | K50: ='Salary Worksheet'!$B$13*'Salary Calculations'!I50 ->  | L50: ='Salary Worksheet'!$B$14*'Salary Calculations'!I50 ->  | M50: =IF('Salary Worksheet'!$B$18="Yes",'Salary Worksheet'!$B$9*'Salary Calculations'!I50,'Salary Worksheet'!$B$9*'Salary Calculations'!G50) ->  | N50: ='Salary Worksheet'!$B$10*'Salary Calculations'!I50 ->  | P50: =IF(ISERROR(A50),NA(),P49*(1+'Salary Worksheet'!$B$20)) -> 
A51: =IF(A50<'Salary Worksheet'!$B$6,A50+1,NA()) ->  | C51: =IF(ISERROR(A51),NA(),'Salary Worksheet'!$B$15) ->  | D51: ='Salary Worksheet'!$B$11*'Salary Calculations'!B51 ->  | E51: ='Salary Worksheet'!$B$12*'Salary Calculations'!B51 ->  | G51: =IF(ISERROR(A51),NA(),G50*(1+'Salary Worksheet'!$B$20)) ->  | H51: =IF(ISERROR(A51),NA(),H50*(1+'Salary Worksheet'!$B$20)) ->  | J51: ='Salary Worksheet'!$B$8*'Salary Calculations'!I51 ->  | K51: ='Salary Worksheet'!$B$13*'Salary Calculations'!I51 ->  | L51: ='Salary Worksheet'!$B$14*'Salary Calculations'!I51 ->  | M51: =IF('Salary Worksheet'!$B$18="Yes",'Salary Worksheet'!$B$9*'Salary Calculations'!I51,'Salary Worksheet'!$B$9*'Salary Calculations'!G51) ->  | N51: ='Salary Worksheet'!$B$10*'Salary Calculations'!I51 ->  | P51: =IF(ISERROR(A51),NA(),P50*(1+'Salary Worksheet'!$B$20)) -> 
A52: =IF(A51<'Salary Worksheet'!$B$6,A51+1,NA()) ->  | C52: =IF(ISERROR(A52),NA(),'Salary Worksheet'!$B$15) ->  | D52: ='Salary Worksheet'!$B$11*'Salary Calculations'!B52 ->  | E52: ='Salary Worksheet'!$B$12*'Salary Calculations'!B52 ->  | G52: =IF(ISERROR(A52),NA(),G51*(1+'Salary Worksheet'!$B$20)) ->  | H52: =IF(ISERROR(A52),NA(),H51*(1+'Salary Worksheet'!$B$20)) ->  | J52: ='Salary Worksheet'!$B$8*'Salary Calculations'!I52 ->  | K52: ='Salary Worksheet'!$B$13*'Salary Calculations'!I52 ->  | L52: ='Salary Worksheet'!$B$14*'Salary Calculations'!I52 ->  | M52: =IF('Salary Worksheet'!$B$18="Yes",'Salary Worksheet'!$B$9*'Salary Calculations'!I52,'Salary Worksheet'!$B$9*'Salary Calculations'!G52) ->  | N52: ='Salary Worksheet'!$B$10*'Salary Calculations'!I52 ->  | P52: =IF(ISERROR(A52),NA(),P51*(1+'Salary Worksheet'!$B$20)) -> 
A53: =IF(A52<'Salary Worksheet'!$B$6,A52+1,NA()) ->  | C53: =IF(ISERROR(A53),NA(),'Salary Worksheet'!$B$15) ->  | D53: ='Salary Worksheet'!$B$11*'Salary Calculations'!B53 ->  | E53: ='Salary Worksheet'!$B$12*'Salary Calculations'!B53 ->  | G53: =IF(ISERROR(A53),NA(),G52*(1+'Salary Worksheet'!$B$20)) ->  | H53: =IF(ISERROR(A53),NA(),H52*(1+'Salary Worksheet'!$B$20)) ->  | J53: ='Salary Worksheet'!$B$8*'Salary Calculations'!I53 ->  | K53: ='Salary Worksheet'!$B$13*'Salary Calculations'!I53 ->  | L53: ='Salary Worksheet'!$B$14*'Salary Calculations'!I53 ->  | M53: =IF('Salary Worksheet'!$B$18="Yes",'Salary Worksheet'!$B$9*'Salary Calculations'!I53,'Salary Worksheet'!$B$9*'Salary Calculations'!G53) ->  | N53: ='Salary Worksheet'!$B$10*'Salary Calculations'!I53 ->  | P53: =IF(ISERROR(A53),NA(),P52*(1+'Salary Worksheet'!$B$20)) -> 
A54: =IF(A53<'Salary Worksheet'!$B$6,A53+1,NA()) ->  | C54: =IF(ISERROR(A54),NA(),'Salary Worksheet'!$B$15) ->  | D54: ='Salary Worksheet'!$B$11*'Salary Calculations'!B54 ->  | E54: ='Salary Worksheet'!$B$12*'Salary Calculations'!B54 ->  | G54: =IF(ISERROR(A54),NA(),G53*(1+'Salary Worksheet'!$B$20)) ->  | H54: =IF(ISERROR(A54),NA(),H53*(1+'Salary Worksheet'!$B$20)) ->  | J54: ='Salary Worksheet'!$B$8*'Salary Calculations'!I54 ->  | K54: ='Salary Worksheet'!$B$13*'Salary Calculations'!I54 ->  | L54: ='Salary Worksheet'!$B$14*'Salary Calculations'!I54 ->  | M54: =IF('Salary Worksheet'!$B$18="Yes",'Salary Worksheet'!$B$9*'Salary Calculations'!I54,'Salary Worksheet'!$B$9*'Salary Calculations'!G54) ->  | N54: ='Salary Worksheet'!$B$10*'Salary Calculations'!I54 ->  | P54: =IF(ISERROR(A54),NA(),P53*(1+'Salary Worksheet'!$B$20)) -> 
A55: =IF(A54<'Salary Worksheet'!$B$6,A54+1,NA()) ->  | C55: =IF(ISERROR(A55),NA(),'Salary Worksheet'!$B$15) ->  | D55: ='Salary Worksheet'!$B$11*'Salary Calculations'!B55 ->  | E55: ='Salary Worksheet'!$B$12*'Salary Calculations'!B55 ->  | G55: =IF(ISERROR(A55),NA(),G54*(1+'Salary Worksheet'!$B$20)) ->  | H55: =IF(ISERROR(A55),NA(),H54*(1+'Salary Worksheet'!$B$20)) ->  | J55: ='Salary Worksheet'!$B$8*'Salary Calculations'!I55 ->  | K55: ='Salary Worksheet'!$B$13*'Salary Calculations'!I55 ->  | L55: ='Salary Worksheet'!$B$14*'Salary Calculations'!I55 ->  | M55: =IF('Salary Worksheet'!$B$18="Yes",'Salary Worksheet'!$B$9*'Salary Calculations'!I55,'Salary Worksheet'!$B$9*'Salary Calculations'!G55) ->  | N55: ='Salary Worksheet'!$B$10*'Salary Calculations'!I55 ->  | P55: =IF(ISERROR(A55),NA(),P54*(1+'Salary Worksheet'!$B$20)) -> 
A56: =IF(A55<'Salary Worksheet'!$B$6,A55+1,NA()) ->  | C56: =IF(ISERROR(A56),NA(),'Salary Worksheet'!$B$15) ->  | D56: ='Salary Worksheet'!$B$11*'Salary Calculations'!B56 ->  | E56: ='Salary Worksheet'!$B$12*'Salary Calculations'!B56 ->  | G56: =IF(ISERROR(A56),NA(),G55*(1+'Salary Worksheet'!$B$20)) ->  | H56: =IF(ISERROR(A56),NA(),H55*(1+'Salary Worksheet'!$B$20)) ->  | J56: ='Salary Worksheet'!$B$8*'Salary Calculations'!I56 ->  | K56: ='Salary Worksheet'!$B$13*'Salary Calculations'!I56 ->  | L56: ='Salary Worksheet'!$B$14*'Salary Calculations'!I56 ->  | M56: =IF('Salary Worksheet'!$B$18="Yes",'Salary Worksheet'!$B$9*'Salary Calculations'!I56,'Salary Worksheet'!$B$9*'Salary Calculations'!G56) ->  | N56: ='Salary Worksheet'!$B$10*'Salary Calculations'!I56 ->  | P56: =IF(ISERROR(A56),NA(),P55*(1+'Salary Worksheet'!$B$20)) -> 
A57: =IF(A56<'Salary Worksheet'!$B$6,A56+1,NA()) ->  | C57: =IF(ISERROR(A57),NA(),'Salary Worksheet'!$B$15) ->  | D57: ='Salary Worksheet'!$B$11*'Salary Calculations'!B57 ->  | E57: ='Salary Worksheet'!$B$12*'Salary Calculations'!B57 ->  | G57: =IF(ISERROR(A57),NA(),G56*(1+'Salary Worksheet'!$B$20)) ->  | H57: =IF(ISERROR(A57),NA(),H56*(1+'Salary Worksheet'!$B$20)) ->  | J57: ='Salary Worksheet'!$B$8*'Salary Calculations'!I57 ->  | K57: ='Salary Worksheet'!$B$13*'Salary Calculations'!I57 ->  | L57: ='Salary Worksheet'!$B$14*'Salary Calculations'!I57 ->  | M57: =IF('Salary Worksheet'!$B$18="Yes",'Salary Worksheet'!$B$9*'Salary Calculations'!I57,'Salary Worksheet'!$B$9*'Salary Calculations'!G57) ->  | N57: ='Salary Worksheet'!$B$10*'Salary Calculations'!I57 ->  | P57: =IF(ISERROR(A57),NA(),P56*(1+'Salary Worksheet'!$B$20)) -> 
A58: =IF(A57<'Salary Worksheet'!$B$6,A57+1,NA()) ->  | C58: =IF(ISERROR(A58),NA(),'Salary Worksheet'!$B$15) ->  | D58: ='Salary Worksheet'!$B$11*'Salary Calculations'!B58 ->  | E58: ='Salary Worksheet'!$B$12*'Salary Calculations'!B58 ->  | G58: =IF(ISERROR(A58),NA(),G57*(1+'Salary Worksheet'!$B$20)) ->  | H58: =IF(ISERROR(A58),NA(),H57*(1+'Salary Worksheet'!$B$20)) ->  | J58: ='Salary Worksheet'!$B$8*'Salary Calculations'!I58 ->  | K58: ='Salary Worksheet'!$B$13*'Salary Calculations'!I58 ->  | L58: ='Salary Worksheet'!$B$14*'Salary Calculations'!I58 ->  | M58: =IF('Salary Worksheet'!$B$18="Yes",'Salary Worksheet'!$B$9*'Salary Calculations'!I58,'Salary Worksheet'!$B$9*'Salary Calculations'!G58) ->  | N58: ='Salary Worksheet'!$B$10*'Salary Calculations'!I58 ->  | P58: =IF(ISERROR(A58),NA(),P57*(1+'Salary Worksheet'!$B$20)) -> 
A59: =IF(A58<'Salary Worksheet'!$B$6,A58+1,NA()) ->  | C59: =IF(ISERROR(A59),NA(),'Salary Worksheet'!$B$15) ->  | D59: ='Salary Worksheet'!$B$11*'Salary Calculations'!B59 ->  | E59: ='Salary Worksheet'!$B$12*'Salary Calculations'!B59 ->  | G59: =IF(ISERROR(A59),NA(),G58*(1+'Salary Worksheet'!$B$20)) ->  | H59: =IF(ISERROR(A59),NA(),H58*(1+'Salary Worksheet'!$B$20)) ->  | J59: ='Salary Worksheet'!$B$8*'Salary Calculations'!I59 ->  | K59: ='Salary Worksheet'!$B$13*'Salary Calculations'!I59 ->  | L59: ='Salary Worksheet'!$B$14*'Salary Calculations'!I59 ->  | M59: =IF('Salary Worksheet'!$B$18="Yes",'Salary Worksheet'!$B$9*'Salary Calculations'!I59,'Salary Worksheet'!$B$9*'Salary Calculations'!G59) ->  | N59: ='Salary Worksheet'!$B$10*'Salary Calculations'!I59 ->  | P59: =IF(ISERROR(A59),NA(),P58*(1+'Salary Worksheet'!$B$20)) -> 
A60: =IF(A59<'Salary Worksheet'!$B$6,A59+1,NA()) ->  | C60: =IF(ISERROR(A60),NA(),'Salary Worksheet'!$B$15) ->  | D60: ='Salary Worksheet'!$B$11*'Salary Calculations'!B60 ->  | E60: ='Salary Worksheet'!$B$12*'Salary Calculations'!B60 ->  | G60: =IF(ISERROR(A60),NA(),G59*(1+'Salary Worksheet'!$B$20)) ->  | H60: =IF(ISERROR(A60),NA(),H59*(1+'Salary Worksheet'!$B$20)) ->  | J60: ='Salary Worksheet'!$B$8*'Salary Calculations'!I60 ->  | K60: ='Salary Worksheet'!$B$13*'Salary Calculations'!I60 ->  | L60: ='Salary Worksheet'!$B$14*'Salary Calculations'!I60 ->  | M60: =IF('Salary Worksheet'!$B$18="Yes",'Salary Worksheet'!$B$9*'Salary Calculations'!I60,'Salary Worksheet'!$B$9*'Salary Calculations'!G60) ->  | N60: ='Salary Worksheet'!$B$10*'Salary Calculations'!I60 ->  | P60: =IF(ISERROR(A60),NA(),P59*(1+'Salary Worksheet'!$B$20)) -> 
A61: =IF(A60<'Salary Worksheet'!$B$6,A60+1,NA()) ->  | C61: =IF(ISERROR(A61),NA(),'Salary Worksheet'!$B$15) ->  | D61: ='Salary Worksheet'!$B$11*'Salary Calculations'!B61 ->  | E61: ='Salary Worksheet'!$B$12*'Salary Calculations'!B61 ->  | G61: =IF(ISERROR(A61),NA(),G60*(1+'Salary Worksheet'!$B$20)) ->  | H61: =IF(ISERROR(A61),NA(),H60*(1+'Salary Worksheet'!$B$20)) ->  | J61: ='Salary Worksheet'!$B$8*'Salary Calculations'!I61 ->  | K61: ='Salary Worksheet'!$B$13*'Salary Calculations'!I61 ->  | L61: ='Salary Worksheet'!$B$14*'Salary Calculations'!I61 ->  | M61: =IF('Salary Worksheet'!$B$18="Yes",'Salary Worksheet'!$B$9*'Salary Calculations'!I61,'Salary Worksheet'!$B$9*'Salary Calculations'!G61) ->  | N61: ='Salary Worksheet'!$B$10*'Salary Calculations'!I61 ->  | P61: =IF(ISERROR(A61),NA(),P60*(1+'Salary Worksheet'!$B$20)) -> 
A62: =IF(A61<'Salary Worksheet'!$B$6,A61+1,NA()) ->  | C62: =IF(ISERROR(A62),NA(),'Salary Worksheet'!$B$15) ->  | D62: ='Salary Worksheet'!$B$11*'Salary Calculations'!B62 ->  | E62: ='Salary Worksheet'!$B$12*'Salary Calculations'!B62 ->  | G62: =IF(ISERROR(A62),NA(),G61*(1+'Salary Worksheet'!$B$20)) ->  | H62: =IF(ISERROR(A62),NA(),H61*(1+'Salary Worksheet'!$B$20)) ->  | J62: ='Salary Worksheet'!$B$8*'Salary Calculations'!I62 ->  | K62: ='Salary Worksheet'!$B$13*'Salary Calculations'!I62 ->  | L62: ='Salary Worksheet'!$B$14*'Salary Calculations'!I62 ->  | M62: =IF('Salary Worksheet'!$B$18="Yes",'Salary Worksheet'!$B$9*'Salary Calculations'!I62,'Salary Worksheet'!$B$9*'Salary Calculations'!G62) ->  | N62: ='Salary Worksheet'!$B$10*'Salary Calculations'!I62 ->  | P62: =IF(ISERROR(A62),NA(),P61*(1+'Salary Worksheet'!$B$20)) -> 
A63: =IF(A62<'Salary Worksheet'!$B$6,A62+1,NA()) ->  | C63: =IF(ISERROR(A63),NA(),'Salary Worksheet'!$B$15) ->  | D63: ='Salary Worksheet'!$B$11*'Salary Calculations'!B63 ->  | E63: ='Salary Worksheet'!$B$12*'Salary Calculations'!B63 ->  | G63: =IF(ISERROR(A63),NA(),G62*(1+'Salary Worksheet'!$B$20)) ->  | H63: =IF(ISERROR(A63),NA(),H62*(1+'Salary Worksheet'!$B$20)) ->  | J63: ='Salary Worksheet'!$B$8*'Salary Calculations'!I63 ->  | K63: ='Salary Worksheet'!$B$13*'Salary Calculations'!I63 ->  | L63: ='Salary Worksheet'!$B$14*'Salary Calculations'!I63 ->  | M63: =IF('Salary Worksheet'!$B$18="Yes",'Salary Worksheet'!$B$9*'Salary Calculations'!I63,'Salary Worksheet'!$B$9*'Salary Calculations'!G63) ->  | N63: ='Salary Worksheet'!$B$10*'Salary Calculations'!I63 ->  | P63: =IF(ISERROR(A63),NA(),P62*(1+'Salary Worksheet'!$B$20)) -> 
A64: =IF(A63<'Salary Worksheet'!$B$6,A63+1,NA()) ->  | C64: =IF(ISERROR(A64),NA(),'Salary Worksheet'!$B$15) ->  | D64: ='Salary Worksheet'!$B$11*'Salary Calculations'!B64 ->  | E64: ='Salary Worksheet'!$B$12*'Salary Calculations'!B64 ->  | G64: =IF(ISERROR(A64),NA(),G63*(1+'Salary Worksheet'!$B$20)) ->  | H64: =IF(ISERROR(A64),NA(),H63*(1+'Salary Worksheet'!$B$20)) ->  | J64: ='Salary Worksheet'!$B$8*'Salary Calculations'!I64 ->  | K64: ='Salary Worksheet'!$B$13*'Salary Calculations'!I64 ->  | L64: ='Salary Worksheet'!$B$14*'Salary Calculations'!I64 ->  | M64: =IF('Salary Worksheet'!$B$18="Yes",'Salary Worksheet'!$B$9*'Salary Calculations'!I64,'Salary Worksheet'!$B$9*'Salary Calculations'!G64) ->  | N64: ='Salary Worksheet'!$B$10*'Salary Calculations'!I64 ->  | P64: =IF(ISERROR(A64),NA(),P63*(1+'Salary Worksheet'!$B$20)) -> 
A65: =IF(A64<'Salary Worksheet'!$B$6,A64+1,NA()) ->  | C65: =IF(ISERROR(A65),NA(),'Salary Worksheet'!$B$15) ->  | D65: ='Salary Worksheet'!$B$11*'Salary Calculations'!B65 ->  | E65: ='Salary Worksheet'!$B$12*'Salary Calculations'!B65 ->  | G65: =IF(ISERROR(A65),NA(),G64*(1+'Salary Worksheet'!$B$20)) ->  | H65: =IF(ISERROR(A65),NA(),H64*(1+'Salary Worksheet'!$B$20)) ->  | J65: ='Salary Worksheet'!$B$8*'Salary Calculations'!I65 ->  | K65: ='Salary Worksheet'!$B$13*'Salary Calculations'!I65 ->  | L65: ='Salary Worksheet'!$B$14*'Salary Calculations'!I65 ->  | M65: =IF('Salary Worksheet'!$B$18="Yes",'Salary Worksheet'!$B$9*'Salary Calculations'!I65,'Salary Worksheet'!$B$9*'Salary Calculations'!G65) ->  | N65: ='Salary Worksheet'!$B$10*'Salary Calculations'!I65 ->  | P65: =IF(ISERROR(A65),NA(),P64*(1+'Salary Worksheet'!$B$20)) -> 
A66: =IF(A65<'Salary Worksheet'!$B$6,A65+1,NA()) ->  | C66: =IF(ISERROR(A66),NA(),'Salary Worksheet'!$B$15) ->  | D66: ='Salary Worksheet'!$B$11*'Salary Calculations'!B66 ->  | E66: ='Salary Worksheet'!$B$12*'Salary Calculations'!B66 ->  | G66: =IF(ISERROR(A66),NA(),G65*(1+'Salary Worksheet'!$B$20)) ->  | H66: =IF(ISERROR(A66),NA(),H65*(1+'Salary Worksheet'!$B$20)) ->  | J66: ='Salary Worksheet'!$B$8*'Salary Calculations'!I66 ->  | K66: ='Salary Worksheet'!$B$13*'Salary Calculations'!I66 ->  | L66: ='Salary Worksheet'!$B$14*'Salary Calculations'!I66 ->  | M66: =IF('Salary Worksheet'!$B$18="Yes",'Salary Worksheet'!$B$9*'Salary Calculations'!I66,'Salary Worksheet'!$B$9*'Salary Calculations'!G66) ->  | N66: ='Salary Worksheet'!$B$10*'Salary Calculations'!I66 ->  | P66: =IF(ISERROR(A66),NA(),P65*(1+'Salary Worksheet'!$B$20)) -> 
A67: =IF(A66<'Salary Worksheet'!$B$6,A66+1,NA()) ->  | C67: =IF(ISERROR(A67),NA(),'Salary Worksheet'!$B$15) ->  | D67: ='Salary Worksheet'!$B$11*'Salary Calculations'!B67 ->  | E67: ='Salary Worksheet'!$B$12*'Salary Calculations'!B67 ->  | G67: =IF(ISERROR(A67),NA(),G66*(1+'Salary Worksheet'!$B$20)) ->  | H67: =IF(ISERROR(A67),NA(),H66*(1+'Salary Worksheet'!$B$20)) ->  | J67: ='Salary Worksheet'!$B$8*'Salary Calculations'!I67 ->  | K67: ='Salary Worksheet'!$B$13*'Salary Calculations'!I67 ->  | L67: ='Salary Worksheet'!$B$14*'Salary Calculations'!I67 ->  | M67: =IF('Salary Worksheet'!$B$18="Yes",'Salary Worksheet'!$B$9*'Salary Calculations'!I67,'Salary Worksheet'!$B$9*'Salary Calculations'!G67) ->  | N67: ='Salary Worksheet'!$B$10*'Salary Calculations'!I67 ->  | P67: =IF(ISERROR(A67),NA(),P66*(1+'Salary Worksheet'!$B$20)) -> 
A68: =IF(A67<'Salary Worksheet'!$B$6,A67+1,NA()) ->  | C68: =IF(ISERROR(A68),NA(),'Salary Worksheet'!$B$15) ->  | D68: ='Salary Worksheet'!$B$11*'Salary Calculations'!B68 ->  | E68: ='Salary Worksheet'!$B$12*'Salary Calculations'!B68 ->  | G68: =IF(ISERROR(A68),NA(),G67*(1+'Salary Worksheet'!$B$20)) ->  | H68: =IF(ISERROR(A68),NA(),H67*(1+'Salary Worksheet'!$B$20)) ->  | J68: ='Salary Worksheet'!$B$8*'Salary Calculations'!I68 ->  | K68: ='Salary Worksheet'!$B$13*'Salary Calculations'!I68 ->  | L68: ='Salary Worksheet'!$B$14*'Salary Calculations'!I68 ->  | M68: =IF('Salary Worksheet'!$B$18="Yes",'Salary Worksheet'!$B$9*'Salary Calculations'!I68,'Salary Worksheet'!$B$9*'Salary Calculations'!G68) ->  | N68: ='Salary Worksheet'!$B$10*'Salary Calculations'!I68 ->  | O68: =SUM(J68:N68) ->  | P68: =IF(ISERROR(A68),NA(),P67*(1+'Salary Worksheet'!$B$20)) -> 
A69: =IF(A68<'Salary Worksheet'!$B$6,A68+1,NA()) ->  | B69: =IF(ISERROR(A69),NA(),F68+Q68) ->  | C69: =IF(ISERROR(A69),NA(),'Salary Worksheet'!$B$15) ->  | D69: ='Salary Worksheet'!$B$11*'Salary Calculations'!B69 ->  | E69: ='Salary Worksheet'!$B$12*'Salary Calculations'!B69 ->  | G69: =IF(ISERROR(A69),NA(),G68*(1+'Salary Worksheet'!$B$20)) ->  | H69: =IF(ISERROR(A69),NA(),H68*(1+'Salary Worksheet'!$B$20)) ->  | J69: ='Salary Worksheet'!$B$8*'Salary Calculations'!I69 ->  | K69: ='Salary Worksheet'!$B$13*'Salary Calculations'!I69 ->  | L69: ='Salary Worksheet'!$B$14*'Salary Calculations'!I69 ->  | M69: =IF('Salary Worksheet'!$B$18="Yes",'Salary Worksheet'!$B$9*'Salary Calculations'!I69,'Salary Worksheet'!$B$9*'Salary Calculations'!G69) ->  | N69: ='Salary Worksheet'!$B$10*'Salary Calculations'!I69 ->  | O69: =SUM(J69:N69) ->  | P69: =IF(ISERROR(A69),NA(),P68*(1+'Salary Worksheet'!$B$20)) -> 
A70: =IF(A69<'Salary Worksheet'!$B$6,A69+1,NA()) ->  | B70: =IF(ISERROR(A70),NA(),F69+Q69) ->  | C70: =IF(ISERROR(A70),NA(),'Salary Worksheet'!$B$15) ->  | D70: ='Salary Worksheet'!$B$11*'Salary Calculations'!B70 ->  | E70: ='Salary Worksheet'!$B$12*'Salary Calculations'!B70 ->  | G70: =IF(ISERROR(A70),NA(),G69*(1+'Salary Worksheet'!$B$20)) ->  | H70: =IF(ISERROR(A70),NA(),H69*(1+'Salary Worksheet'!$B$20)) ->  | J70: ='Salary Worksheet'!$B$8*'Salary Calculations'!I70 ->  | K70: ='Salary Worksheet'!$B$13*'Salary Calculations'!I70 ->  | L70: ='Salary Worksheet'!$B$14*'Salary Calculations'!I70 ->  | M70: =IF('Salary Worksheet'!$B$18="Yes",'Salary Worksheet'!$B$9*'Salary Calculations'!I70,'Salary Worksheet'!$B$9*'Salary Calculations'!G70) ->  | N70: ='Salary Worksheet'!$B$10*'Salary Calculations'!I70 ->  | O70: =SUM(J70:N70) ->  | P70: =IF(ISERROR(A70),NA(),P69*(1+'Salary Worksheet'!$B$20)) -> 

Sheet Paystub Worksheet
A1: PAYSTUB COMPARISON | D1: Scenarios -> | E1: In the Military | H1: Outside the Military, With Pension | K1: Outside the Military, Without Pension
A2: DIRECTIONS: 1) Enter assumptions, 2) Assess % income differences | E2: Monthly | F2: Yearly | H2: Monthly | I2: Yearly | K2: Monthly | L2: Yearly
D3: Income
A4: Assumptions | D4: Salary | E4: =B5 -> 10000 | F4: =E4*12 -> 120000 | H4: =I4/12 -> 8333.333333 | I4: =B6 -> 100000 | K4: =L4/12 -> 8333.333333 | L4: =B6 -> 100000
A5: Monthly Salary in Military | B5: 10000 | D5: BAS | E5: =B7 -> 250 | F5: =E5*12 -> 3000
A6: Annual Salary outside Military | B6: 100000 | D6: BAH | E6: =B8 -> 1400 | F6: =E6*12 -> 16800
A7: Monthly BAS rate | B7: 250 | D7: Pension | H7: =I7/12 -> 5833.333333 | I7: =B9 -> 70000
A8: Monthly BAH rate | B8: 1400 | D8: Total Income | E8: =SUM(E4:E6) -> 11650 | F8: =SUM(F4:F6) -> 139800 | H8: =SUM(H4:H7) -> 14166.66667 | I8: =SUM(I4:I7) -> 170000 | K8: =SUM(K4:K7) -> 8333.333333 | L8: =SUM(L4:L7) -> 100000
A9: Annual Military Pension | B9: 70000
A10: Federal Tax rate in the Military (%) | B10: 0.25 | D10: Deductions
A11: Federal Tax rate Outside the Military (%) | B11: 0.25 | D11: Federal Taxes | E11: =B10*E4 -> 2500 | F11: =E11*12 -> 30000 | H11: =H8*B11 -> 3541.666667 | I11: =H11*12 -> 42500 | K11: =K8*B11 -> 2083.333333 | L11: =K11*12 -> 25000
A12: Social Security tax rate (%) | B12: 0.062 | D12: Social Security | E12: =B12*E4 -> 620 | F12: =E12*12 -> 7440 | H12: =B12*H8 -> 878.3333333 | I12: =H12*12 -> 10540 | K12: =B12*K8 -> 516.6666667 | L12: =K12*12 -> 6200
A13: Medicare Tax rate (%) | B13: 0.0145 | D13: Medicare | E13: =B13*E4 -> 145 | F13: =E13*12 -> 1740 | H13: =B13*H8 -> 205.4166667 | I13: =H13*12 -> 2465 | K13: =B13*K8 -> 120.8333333 | L13: =K13*12 -> 1450
A14: State Tax rate in the Military (%) | B14: 0.06 | D14: State Taxes | E14: =IF(B18="Yes",E4*B14,0) -> 600 | F14: =E14*12 -> 7200 | H14: =I14/12 -> 850 | I14: =IF(B20="Yes",B15*I8,B15*I4) -> 10200 | K14: =L14/12 -> 500 | L14: =B15*L8 -> 6000
A15: State Tax rate Outside the Military (%) | B15: 0.06 | D15: Local Taxes | E15: =IF(B19="Yes",B16*E4,0) -> 0 | F15: =E15*12 -> 0 | H15: =I15/12 -> 283.3333333 | I15: =IF(B21="Yes",B17*I8,B17*I4) -> 3400 | K15: =L15/12 -> 166.6666667 | L15: =B17*L8 -> 2000
A16: Local Tax rate in the Military (%) | B16: 0.02 | D16: Total Deductions | E16: =SUM(E11:E15) -> 3865 | F16: =SUM(F11:F15) -> 46380 | H16: =SUM(H11:H15) -> 5758.75 | I16: =SUM(I11:I15) -> 69105 | K16: =SUM(K11:K15) -> 3387.5 | L16: =SUM(L11:L15) -> 40650
A17: Local Tax rate Outside the Military (%) | B17: 0.02
A18: Military Salary Taxed by State? | B18: Yes | D18: After-Tax Income | E18: =E8-E16 -> 7785 | F18: =F8-F16 -> 93420 | H18: =H8-H16 -> 8407.916667 | I18: =I8-I16 -> 100895 | K18: =K8-K16 -> 4945.833333 | L18: =L8-L16 -> 59350
A19: Military Salary Taxed by Local? | B19: No
A20: Military Pension Taxed by State? | B20: Yes | H20: % decrease in after-tax income from being 'In the Military' | I20: =(F18-I18)/F18 -> -0.08001498608 | L20: =(F18-L18)/F18 -> 0.364697067
A21: Military Pension Taxed by Local? | B21: Yes | H21: Increase required to sustain 'In the Military' after-tax income | I21: =(F18-I18)/I18 -> -0.07408692205 | L21: =(F18-L18)/L18 -> 0.5740522325

Sheet Budget pro forma
A1: Category | B1: Jan | C1: Feb | D1: Mar | E1: Apr | F1: May | G1: Jun | H1: Jul | I1: Aug | J1: Sep | K1: Oct | L1: Nov | M1: Dec | N1: TOTAL
A2: Income
A3: Salary | N3: =SUM(B3:M3) -> 0
A4: Gifts | N4: =SUM(B4:M4) -> 0
A5: Pension | N5: 0
A6: Social Security | N6: 0
A7: Interest, Dividends, etc. | N7: 0
A8: Retirement Withdrawals | N8: 0
A9: Income Sub-total | B9: =SUM(B3:B8) -> 0 | C9: =SUM(C3:C8) -> 0 | D9: 0 | E9: 0 | F9: 0 | G9: 0 | H9: 0 | I9: 0 | J9: 0 | K9: 0 | L9: 0 | M9: 0 | N9: 0
A11: Expenses | N11: 0
A12: Savings (529 plan, IRAs, etc.) | N12: 0
A13: Automotive | N13: 0
A14: Charity | N14: 0
A15: Childcare/Daycare | N15: 0
A16: Clothing | N16: 0
A17: Dining | N17: 0
A18: Education | N18: 0
A19: Entertainment | N19: 0
A20: Groceries | N20: 0
A21: Grooming | N21: 0
A22: Home Mortgage / Rent | N22: 0
A23: Home Repair / Improvement | N23: 0
A24: Insurance | N24: 0
A25: Medical / Healthcare Expenses | N25: 0
A26: Recreation | N26: 0
A27: Subscriptions | N27: 0
A28: Taxes | N28: 0
A29: Utilities | N29: 0
A30: Vacation | N30: 0
A31: Expenses Sub-total | B31: =SUM(B12:B30) -> 0 | C31: =SUM(C12:C30) -> 0 | D31: =SUM(D12:D30) -> 0 | E31: =SUM(E12:E30) -> 0 | F31: =SUM(F12:F30) -> 0 | G31: =SUM(G12:G30) -> 0 | H31: =SUM(H12:H30) -> 0 | I31: =SUM(I12:I30) -> 0 | J31: =SUM(J12:J30) -> 0 | K31: =SUM(K12:K30) -> 0 | L31: =SUM(L12:L30) -> 0 | M31: =SUM(M12:M30) -> 0 | N31: 0
A33: Balance | B33: =B9-B31 -> 0 | C33: =C9-C31 -> 0 | D33: =D9-D31 -> 0 | E33: =E9-E31 -> 0 | F33: =F9-F31 -> 0 | G33: =G9-G31 -> 0 | H33: =H9-H31 -> 0 | I33: =I9-I31 -> 0 | J33: =J9-J31 -> 0 | K33: =K9-K31 -> 0 | L33: =L9-L31 -> 0 | M33: =M9-M31 -> 0 | N33: =N9-N31 -> 0
